Workbook

Sheet Manual
C3: MANUAL GUÍA
C5: Consideraciones iniciales:
B7: 1. | C7: Los datos de entrada se encuentran conformados por dos tipos:
C8: 1.1. Datos generales del proyecto.
C9: 1.2. Datos específicos del tramo.
B11: 2. | C11: Los nombres de las variables solicitadas se encuentran en las celdas de la columna B, las sombreadas de color azul corresponden a datos constantes, mientras que las de color gris corresponden a celdas que contienen una lista desplegable en la que deberá seleccionar el dato de entrada que aplica.
B13: 3. | C13: Cada variable de entrada especifica la unidad en la que deberá ingresarse el dato de entrada.
B15: 4. | C15: Los datos a ingresar se encuentran en la columna C todas las celdas se encuentran en color gris dado que todas deben ser modificadas. Los datos de entrada pueden ser literales, numéricos decimales, numéricos enteros y listas desplegables.
B17: 5. | C17: Para los datos de entrada del acero de refuerzo se requiere del diámetro de la varilla, el cual se ingresa con el número de barra, en la siguiente tabla se muestran los diámetros en pulgadas, en milímetros, el número de barra asociado y el peso por metro.
C19: Barra N° | D19: Diámetro (pulg) | E19: Diámetro (mm) | F19: Peso (kg/m)
C20: 2 | D20: 0.25 | E20: 6.4 | F20: 0.249
C21: 3 | D21: 0.375 | E21: 9.5 | F21: 0.559
C22: 4 | D22: 0.5 | E22: 12.7 | F22: 0.994
C23: 5 | D23: 0.625 | E23: 15.9 | F23: 1.554
C24: 6 | D24: 0.75 | E24: 19.1 | F24: 2.237
C25: 7 | D25: 0.875 | E25: 22.2 | F25: 3.045
C26: 8 | D26: 1 | E26: 25.4 | F26: 3.978

Sheet Datos generales
B2: DATOS GENERALES DEL PROYECTO
B3: Nombre del proyecto:
B4: Optimización del proceso de cálculo de cantidades y presupuesto de obras de pavimento rígido y flexible en la empresa Grupo Tecmedic S.A.S
B5: Municipio: | C5: Apartadó
B6: Departamento: | C6: Antioquia
B7: Número de tramos: | C7: 1
B8: Duración de la obra (meses): | C8: 6
B10: Distancias a centro de gravedad
B11: Botadero (km) | C11: 15
B12: Cantera base o subbase (km) | C12: 25
B13: Cantera afirmado (km) | C13: 25
B14: Cantera agregados concretos (km) | C14: 20
B15: Nota: Las vías con más de un tramo, su longitud a escombrera y cantera para el material petreo, se obtiene de un promedio ponderado con la longitud del tramo.
B16: Caracterización vial
B17: Longitud a caracterizar (km) | C17: 20
B20: DATOS ESPECÍFICOS DEL TRAMO
B22: Tramo: | C22: 1
B24: Especificaciones vía
B25: Abscisa inicio (m) | C25: 10230
B26: Abscisa fin(m) | C26: 12390
B27: Longitud tramo(m) | C27: =-C25+C26 -> 2160
B29: Especificaciones capas del pavimento
B30: Tipo de base | C30: Clase B
B31: Espesor base(m) | C31: 0.2
B32: Tipo de subbase | C32: Clase B
B33: Espesor subbase(m) | C33: 0.1
B34: Espesor afirmado(m) | C34: 0.1
B36: Especificaciones losa de concreto
B37: Resistencia concreto MR(Mpa) | C37: 3.8
B38: Largo de placa(m) | C38: 4
B39: Ancho de placa (m) | C39: 3.5
B40: Espesor losa (m) | C40: 0.2
B42: Especificaciones de refuerzo
B43: Refuerzo: Dovelas
B44: Diámetro dovelas:Barra N° | C44: 8
B45: Longitud de dovelas (m) | C45: 0.3
B46: Número dovelas | C46: 10
B47: Refuerzo: Barras de anclaje
B48: Diámetro anclajes:Barra N° | C48: 2
B49: Longitud de anclajes(m) | C49: 0.9
B50: Número anclajes | C50: 3
B52: Características sección transversal
B53: Obras laterales
B54: Berma | C54: Si
B55: Ancho de berma (m) | C55: 0.3
B56: Cuneta | C56: Si
B57: Ancho de cuneta (m) | C57: 0.2
B58: Zona peatonal | C58: Andén
B59: Confinamiento vía | C59: Bordillo prefabricado
B61: Refuerzo berma
B62: Tipo de refuerzo | C62: Parrilla ref. long. y transv.
B63: Malla electrosoldada
B64: Designación de malla | C64: XX-084
B65: Refuerzo longitudinal y transversal
B66: Diámetroref. Longitudinal:Barra N° | C66: 3
B67: Separación long. (m) | C67: 0.1
B68: Longitud ref. transversal(m) | C68: =C55+0.2 -> 0.5
B69: Diámetroref. transversal:Barra N° | C69: 3
B70: Separación transversal (m) | C70: 0.15
B71: Anclajes y dovelas
B72: Longitud de anclajes (m) | C72: =+C49 -> 0.9
B73: Diámetro anclajes:Barra N° | C73: 2
B74: Número de anclajes | C74: 3
B75: Diámetro dovelas:Barra N° | C75: 6
B76: Longitud de dovelas (m) | C76: 0.3
B77: Número dovelas | C77: 2
B79: Refuerzo cuneta
B80: Tipo de refuerzo | C80: Malla electrosoldada
B81: Malla electrosoldada
B82: Designación de malla | C82: XX-084
B83: Refuerzo longitudinal y transversal
B84: Diámetroref. Longitudinal:Barra N° | C84: 2
B85: Separación long. (m) | C85: 0.1
B86: Longitud ref. transversal(m) | C86: =C57+0.2 -> 0.4
B87: Diámetroref. transversal:Barra N° | C87: 2
B88: Separación transversal (m) | C88: 0.15
B90: Características andén
B91: Ancho andén (m) | C91: 1.2
B92: Espesor concreto andén (m) | C92: 0.08
B93: Espesor base andén (m) | C93: 0.1
B94: Espesor subbase andén (m) | C94: 0.1
B95: Espesor afirmado andén (m) | C95: 0.3
B96: Espesor de excavación andén(m) | C96: 0.05
B97: Tipo de confinamiento | C97: Viga cierre
B98: Altura viga cierre (m) | C98: 0.2
B99: Ancho viga cierre (m) | C99: 0.1
B101: Superficies táctiles
B102: Loseta tactil alerta rampa | C102: 20x20
B103: Loseta táctil guía | C103: 20x20
B104: Loseta táctil alerta rectangular | C104: 10x20
B106: Rampa peatonal
B107: Cantidad de rampas peatones | C107: 1
B108: Largo de rampa peatonal (m) | C108: 1.5
B109: Ancho de rampa peatonal (m) | C109: 1.2
B110: Ancho de loseta en rampa (m) | C110: =0.2*3 -> 0.6
B112: Refuerzo andén
B113: Malla electrosoldada | C113: Si
B114: Designación de malla | C114: XX-084
B116: Refuerzo viga cierre andén
B117: Longitud de estribos (m) | C117: 0.4
B118: Diámetroestribos: Barra N° | C118: 3
B119: Separación de estribos (m) | C119: 0.3
B120: N° barras longitudinales | C120: 2
B121: Diámetro ref. longitudinal: Barra N° | C121: 2
B123: Características bordillo
B124: Alto bordillo(m) | C124: 0.4
B125: Ancho bordillo(m) | C125: 0.15
B126: Largo bordillo prefabricado(m) | C126: 0.8
B128: Refuerzo bordillo insitu
B129: Diámetro ref. longitudinal: Barra N° | C129: 2
B130: N° de barras long. (m) | C130: 1
B131: Diámetro ganchos: Barra N° | C131: 2
B132: Longitud de gancho (m) | C132: =+(C124-0.1)*2 -> 0.6
B133: Separación ganchos (m) | C133: 0.2
B135: Rampa de acceso vial
B136: Cantidad de rampas de acceso: | C136: 1
B137: Ancho de rampa(m) | C137: =4*2 -> 8
B138: Largo de rampa(m) | C138: 1.2
B139: Espesor de rampa(m) | C139: 0.2
B140: Longitud ref. longitudinal (m) | C140: =+C138 -> 1.2
B141: Diámetro ref. longitudinal: Barra N° | C141: 4
B142: Separación ref. longit. (m): | C142: 0.2
B143: Longitud ref. transversal (m) | C143: =+C137 -> 8
B144: Diámetro ref. transversal: Barra N° | C144: 4
B145: Separación ref. transv. (m): | C145: 0.25
B146: Refuerzo viga rampa vial
B147: Longitud de estribos (m) | C147: 0.4
B148: Diámetroestribos: Barra N° | C148: 3
B149: Separación de estribos (m) | C149: 0.3
B150: N° barras longitudinales | C150: 2
B151: Diámetro ref. longitudinal: Barra N° | C151: 2
B153: Canastilla para dovelas
B154: Longitud de ganchos (m) | C154: 0.13
B155: Diámetro apoyos: Barra N° | C155: 2
B157: Movimientos de tierra (DGV)
B158: Excavaciones DGV(m³) | C158: 200
B159: Llenos DGV (m³) | C159: 300
B160: ¿Desea excavar el espesor de la siguiente capa?
B161: Material de afirmado | C161: Si
B162: Subbase | C162: Si
B163: Base | C163: Si

Sheet Memorias T1
B3: MEMORIA DE CÁLCULO DE CANTIDADES DE OBRA
B5: RESUMEN DATOS INICIALES PARA CÁLCULO DE CANTIDADES DE OBRA
B6: =+'Datos generales'!B5 -> Municipio: | C6: =+'Datos generales'!C5 -> Apartadó | D6: Especificaciones vía | F6: Especificaciones del pavimento | H6: Especificaciones losa de concreto
D7: Abscisa inicio (m) | E7: =+'Datos generales'!C25 -> 10230 | F7: Espesor base(m) | G7: =+'Datos generales'!C31 -> 0.2 | H7: Largo de placa(m) | I7: =+'Datos generales'!C38 -> 4
B8: =+'Datos generales'!B6 -> Departamento: | C8: =+'Datos generales'!C6 -> Antioquia | D8: Abscisa fin(m) | E8: =+'Datos generales'!C26 -> 12390 | F8: Espesor subbase(m) | G8: =+'Datos generales'!C33 -> 0.1 | H8: Ancho de placa (m) | I8: =+'Datos generales'!C39 -> 3.5
D9: Longitud tramo(m) | E9: =+E8-E7 -> 2160 | F9: Espesor afirmado(m) | G9: =+'Datos generales'!C34 -> 0.1 | H9: Espesor losa (m) | I9: =+'Datos generales'!C40 -> 0.2
B11: Especificaciones de refuerzo
B12: Refuerzo: Dovelas | F12: Refuerzo: Barras de anclaje
B13: Barra N° | D13: =+'Datos generales'!C44 -> 8 | F13: Barra N° | H13: =+'Datos generales'!C48 -> 2
B14: Longitud de dovelas (m) | D14: =+'Datos generales'!C45 -> 0.3 | F14: Longitud de anclajes(m) | H14: =+'Datos generales'!C49 -> 0.9
B15: =+'Datos generales'!B46 -> Número dovelas | D15: =+'Datos generales'!C46 -> 10 | F15: =+'Datos generales'!B50 -> Número anclajes | H15: =+'Datos generales'!C50 -> 3
AA18: filtro
A19: CAPÍTULO | B19: =+'Presupuesto General'!$B$7 -> 1 | C19: =+'Presupuesto General'!$D$7 -> Estructura de pavimento | AA19: =IF(AND(AA22="ocultar",AA23="ocultar",AA24="ocultar",AA25="ocultar",AA26="ocultar",AA27="ocultar"),"ocultar","visible") -> visible
A20: SUBITEM | B20: =+'Presupuesto General'!$B$8 -> 1.1 | C20: =+'Presupuesto General'!$D$8 -> Excavación en material común de la explanación y canales. No incluye transporte ni disposición final del material sobrante. | AA20: =IF(AND(AA22="ocultar",AA23="ocultar",AA24="ocultar",AA25="ocultar",AA26="ocultar",AA27="ocultar"),"ocultar","visible") -> visible
A21: TIPO | B21: ELEMENTO | C21: LONGITUD (m) | D21: ANCHO (m) | E21: PROFUNDIDAD (m) | I21: VOLUMEN (m³) | J21: UNIDAD | K21: SUBTOTAL | AA21: =IF(AND(AA22="ocultar",AA23="ocultar",AA24="ocultar",AA25="ocultar",AA26="ocultar",AA27="ocultar"),"ocultar","visible") -> visible
A22: =IF(B22="Excavación","DGV"," ") -> DGV | B22: =+IF('Datos generales'!C158=0," ","Excavación") -> Excavación | I22: =IF(B22="Excavación",'Datos generales'!C158," ") -> 200 | J22: =IF(B22="Excavación","m³"," ") -> m³ | K22: =+I22 -> 200 | AA22: =+IF(K22=" ","ocultar","visible") -> visible
A23: =+IF(B23=" "," ","Tramo 1") -> Tramo 1 | B23: =IF(AND(G9>0,'Datos generales'!C161="Si"),"Afirmado"," ") -> Afirmado | C23: =IF(B23="Afirmado",$E$9," ") -> 2160 | D23: =IF($B$23="Afirmado",$I$8*2+IF('Datos generales'!C59<>"Ninguno",'Datos generales'!$C$125*2,0)+IF('Datos generales'!C54="Si",'Datos generales'!$C$55*2,0)," ") -> 7.9 | E23: =IF($B$23="Afirmado",$G$9," ") -> 0.1 | I23: =IF(B23=" "," ",C23*D23*E23) -> 1706.4 | J23: =IF($B$23="Afirmado","m³"," ") -> m³ | K23: 1706.4 | AA23: =+IF(K23=" ","ocultar","visible") -> visible
A24: =+IF(B24=" "," ","Tramo 1") -> Tramo 1 | B24: =IF(AND(G7>0,'Datos generales'!C163="Si"),"Base"," ") -> Base | C24: =IF($B$24="Base",$E$9," ") -> 2160 | D24: =IF($B$24="Base",$I$8*2+IF('Datos generales'!C59<>"Ninguno",'Datos generales'!$C$125*2,0)+IF('Datos generales'!C54="Si",'Datos generales'!$C$55*2,0)," ") -> 7.9 | E24: =IF(B$24="Base",$G$7," ") -> 0.2 | I24: =IF(B24=" "," ",C24*D24*E24) -> 3412.8 | J24: =IF(B24="Base","m³"," ") -> m³ | K24: 3412.8 | AA24: visible
A25: =+IF(B25=" "," ","Tramo 1") -> Tramo 1 | B25: =IF(AND(G8>0,'Datos generales'!C162="Si"),"Subbase"," ") -> Subbase | C25: =IF($B$25="Subbase",$E$9," ") -> 2160 | D25: =IF($B$25="Subbase",$I$8*2+IF('Datos generales'!C59<>"Ninguno",'Datos generales'!$C$125*2,0)+IF('Datos generales'!C54="Si",'Datos generales'!$C$55*2,0)," ") -> 7.9 | E25: =IF(B$25="Subbase",$G$8," ") -> 0.1 | I25: =IF(B25=" "," ",C25*D25*E25) -> 1706.4 | J25: =IF(B$25="Subbase","m³"," ") -> m³ | K25: 1706.4 | AA25: visible
A26: =+IF(B26="Bordillo","Der. e Izq."," ") -> Der. e Izq. | B26: =IF('Datos generales'!C59="Bordillo insitu"," ","Bordillo") -> Bordillo | C26: =+IF($B$26="Bordillo",E9*2," ") -> 4320 | D26: =+IF(B26="Bordillo",'Datos generales'!$C$125," ") -> 0.15 | E26: =+IF($B$26="Bordillo",'Datos generales'!C124-0.1," ") -> 0.3 | I26: =+IF(B26=" "," ",C26*D26*E26) -> 194.4 | J26: =+IF($B$26="Bordillo","m³"," ") -> m³ | K26: 194.4 | AA26: visible
A27: =+IF(B27="Andén","Der. e Izq."," ") -> Der. e Izq. | B27: =+IF(AND('Datos generales'!C58="Andén",'Datos generales'!C96>0),"Andén"," ") -> Andén | C27: =+IF($B$27="Andén",E9*2," ") -> 4320 | D27: =+IF(B27="Andén",'Datos generales'!C91," ") -> 1.2 | E27: =+IF($B$27="Andén",'Datos generales'!C96," ") -> 0.05 | I27: =+IF(B27="Andén",C27*D27*E27," ") -> 259.2 | J27: =+IF($B$27="Andén","m³"," ") -> m³ | K27: 259.2 | AA27: visible
A28: Nota: | I28: ITEM | J28: =+B20 -> 1.1 | K28: TOTAL | L28: =SUM(K22:K27) -> 7479.2 | AA28: =IF(AND(AA22="ocultar",AA23="ocultar",AA24="ocultar",AA25="ocultar",AA26="ocultar",AA27="ocultar"),"ocultar","visible") -> visible
AA29: =IF(AND(AA22="ocultar",AA23="ocultar",AA24="ocultar",AA25="ocultar",AA26="ocultar",AA27="ocultar"),"ocultar","visible") -> visible
AA30: =IF(AND(AA22="ocultar",AA23="ocultar",AA24="ocultar",AA25="ocultar",AA26="ocultar",AA27="ocultar"),"ocultar","visible") -> visible
AA31: =IF(AND(AA22="ocultar",AA23="ocultar",AA24="ocultar",AA25="ocultar",AA26="ocultar",AA27="ocultar"),"ocultar","visible") -> visible
AA32: =IF(AND(AA22="ocultar",AA23="ocultar",AA24="ocultar",AA25="ocultar",AA26="ocultar",AA27="ocultar"),"ocultar","visible") -> visible
A33: CAPÍTULO | B33: =+'Presupuesto General'!$B$7 -> 1 | C33: =+'Presupuesto General'!$D$7 -> Estructura de pavimento | AA33: =+IF(AA36="ocultar","ocultar","visible") -> visible
A34: SUBITEM | B34: =+'Presupuesto General'!$B$9 -> 1.2 | C34: =+'Presupuesto General'!$D$9 -> Transporte de material proveniente de la excavación de la explanación, canales y prestamos para distancias mayores de mil metros (1000 M) medido a partir de 100 metros (100 M), que es la distancia libre. Material compacto (Incluye 30% de expansion). | AA34: =+IF(AA36="ocultar","ocultar","visible") -> visible
A35: TIPO | B35: ELEMENTO | C35: TRANSPORTE DE VOLUMEN DE EXCAVACION (m³) | D35: DISTANCIA A BOTADERO (km) | E35: FACTOR DE EXPANSIÓN | J35: UNIDAD | K35: SUBTOTAL | AA35: =+IF(AA36="ocultar","ocultar","visible") -> visible
A36: Tramo 1 | B36: Excavación | C36: =+L28 -> 7479.2 | D36: =+'Datos generales'!C11 -> 15 | E36: 1.3 | J36: m³/km | K36: =C36*D36*E36 -> 145844.4 | AA36: =+IF(K36=" ","ocultar","visible") -> visible
A37: Nota: | I37: ITEM | J37: =+B34 -> 1.2 | K37: TOTAL | L37: =ROUND(SUM(K36:K36),0) -> 145844 | AA37: =+IF(AA36="ocultar","ocultar","visible") -> visible
AA38: =+IF(AA36="ocultar","ocultar","visible") -> visible
AA39: =+IF(AA36="ocultar","ocultar","visible") -> visible
AA40: =+IF(AA36="ocultar","ocultar","visible") -> visible
AA41: =+IF(AA36="ocultar","ocultar","visible") -> visible
A42: CAPÍTULO | B42: =+'Presupuesto General'!$B$7 -> 1 | C42: =+'Presupuesto General'!$D$7 -> Estructura de pavimento | AA42: =+IF(AA45="ocultar","ocultar","visible") -> visible
A43: SUBITEM | B43: =+'Presupuesto General'!$B$10 -> 1.3 | C43: =+'Presupuesto General'!$D$10 -> Conformación de la calzada existente. | AA43: =+IF(AA45="ocultar","ocultar","visible") -> visible
A44: TIPO | B44: ELEMENTO | C44: ANCHO DE CALZADA (m) | D44: LONGITUD (m) | J44: UNIDAD | K44: SUBTOTAL | AA44: =+IF(AA45="ocultar","ocultar","visible") -> visible
A45: Tramo 1 | B45: Calzada | C45: =+'Datos generales'!C39*2+IF('Datos generales'!C54="Si",'Datos generales'!$C$55*2,0)+IF('Datos generales'!C59<>"Ninguno",'Datos generales'!$C$125*2,0) -> 7.9 | D45: =+E9 -> 2160 | J45: m² | K45: =+C45*D45 -> 17064 | AA45: =+IF(K45=" ","ocultar","visible") -> visible
A46: Nota: | I46: ITEM | J46: =+B43 -> 1.3 | K46: TOTAL | L46: =ROUND(SUM(K45:K45),2) -> 17064 | AA46: =+IF(AA45="ocultar","ocultar","visible") -> visible
AA47: =+IF(AA45="ocultar","ocultar","visible") -> visible
AA48: =+IF(AA45="ocultar","ocultar","visible") -> visible
AA49: =+IF(AA45="ocultar","ocultar","visible") -> visible
AA50: =+IF(AA45="ocultar","ocultar","visible") -> visible
A51: =IF(B54=" "," ","CAPÍTULO") -> CAPÍTULO | B51: =IF(B54=" "," ",'Presupuesto General'!$B$7) -> 1 | C51: =IF(B54=" "," ",'Presupuesto General'!$D$7) -> Estructura de pavimento | AA51: =+IF(AND(AA54="ocultar",AA55="ocultar"),"ocultar","visible") -> visible
A52: =IF(B54=" "," ","SUBITEM") -> SUBITEM | B52: =IF(B54=" "," ",'Presupuesto General'!$B$11) -> 1.4 | C52: =IF(B54=" "," ",'Presupuesto General'!$D$11) -> Suministro, extendida y compactación de material seleccionado para Sub-Base Granular Clase B (incluye transporte) | AA52: =+IF(AND(AA54="ocultar",AA55="ocultar"),"ocultar","visible") -> visible
A53: =IF(B54=" "," ","TIPO") -> TIPO | B53: =IF(B54=" "," ","ELEMENTO") -> ELEMENTO | C53: =IF(B54=" "," ","AREA DE CONFORMACIÓN (m²)") -> AREA DE CONFORMACIÓN (m²) | D53: =IF(B54=" "," ","ESPESOR (m)") -> ESPESOR (m) | J53: =IF(B54=" "," ","UNIDAD") -> UNIDAD | K53: =IF(B54=" "," ","SUBTOTAL") -> SUBTOTAL | AA53: =+IF(AND(AA54="ocultar",AA55="ocultar"),"ocultar","visible") -> visible
A54: =IF(B54=" "," ","Tramo 1") -> Tramo 1 | B54: =+IF('Datos generales'!C33>0,"Calzada"," ") -> Calzada | C54: =IF(B54=" "," ",E9*('Datos generales'!C39*2+IF('Datos generales'!C54="Si",'Datos generales'!$C$55*2,0)+IF('Datos generales'!C59<>"Ninguno",'Datos generales'!$C$125*2,0))) -> 17064 | D54: =IF(B54=" "," ",'Datos generales'!C33) -> 0.1 | J54: =IF(B54=" "," ","m³") -> m³ | K54: =IF(B54=" "," ",C54*D54) -> 1706.4 | AA54: =+IF(K54=" ","ocultar","visible") -> visible
A55: =+IF(B55="Andén","Der. e Izq."," ") -> Der. e Izq. | B55: =+IF(AND('Datos generales'!C58="Andén",'Datos generales'!C94>0),"Andén"," ") -> Andén | C55: =IF(B55="Andén",E9*'Datos generales'!C91*2," ") -> 5184 | D55: =+IF(B55=" "," ",'Datos generales'!C94) -> 0.1 | J55: =IF(B55="Andén","m³"," ") -> m³ | K55: =IF(B55="Andén",C55*D55," ") -> 518.4 | AA55: =+IF(K55=" ","ocultar","visible") -> visible
A56: Nota: | I56: =IF(B54=" "," ","ITEM") -> ITEM | J56: =+B52 -> 1.4 | K56: =IF(B54=" "," ","TOTAL") -> TOTAL | L56: =ROUND(SUM(K54:K55),2) -> 2224.8 | AA56: =+IF(AND(AA54="ocultar",AA55="ocultar"),"ocultar","visible") -> visible
AA57: =+IF(AND(AA54="ocultar",AA55="ocultar"),"ocultar","visible") -> visible
AA58: =+IF(AA55="ocultar","ocultar","visible") -> visible
AA59: =+IF(AA55="ocultar","ocultar","visible") -> visible
AA60: =+IF(AA55="ocultar","ocultar","visible") -> visible
A61: =IF(B64=" "," ","CAPÍTULO") -> CAPÍTULO | B61: =IF(B64=" "," ",'Presupuesto General'!$B$7) -> 1 | C61: =IF(B64=" "," ",'Presupuesto General'!$D$7) -> Estructura de pavimento | AA61: =+IF(AND(AA64="ocultar",AA65="ocultar"),"ocultar","visible") -> visible
A62: =IF(B64=" "," ","SUBITEM") -> SUBITEM | B62: =IF(B64=" "," ",'Presupuesto General'!$B$12) -> 1.5 | C62: =IF(B64=" "," ",'Presupuesto General'!$D$12) -> Suministro, extendida y compactación de material seleccionado para Base Granular Clase B (incluye transporte) | AA62: =+IF(AND(AA64="ocultar",AA65="ocultar"),"ocultar","visible") -> visible
A63: =IF(B64=" "," ","TIPO") -> TIPO | B63: =IF(B64=" "," ","ELEMENTO") -> ELEMENTO | C63: =IF(B64=" "," ","AREA DE CONFORMACIÓN (m²)") -> AREA DE CONFORMACIÓN (m²) | D63: =IF(B64=" "," ","ESPESOR (m)") -> ESPESOR (m) | J63: =IF(B64=" "," ","UNIDAD") -> UNIDAD | K63: =IF(B64=" "," ","SUBTOTAL") -> SUBTOTAL | AA63: =+IF(AND(AA64="ocultar",AA65="ocultar"),"ocultar","visible") -> visible
A64: =IF(B64=" "," ","Tramo 1") -> Tramo 1 | B64: =+IF('Datos generales'!C31>0,"Calzada"," ") -> Calzada | C64: =+IF(B64=" "," ",E9*('Datos generales'!C39*2+IF('Datos generales'!C54="Si",'Datos generales'!$C$55*2,0)+IF('Datos generales'!C59<>"Ninguno",'Datos generales'!$C$125*2,0))) -> 17064 | D64: =+'Datos generales'!C31 -> 0.2 | J64: =IF(B64=" "," ","m³") -> m³ | K64: =+IF(B64=" "," ",C64*D64) -> 3412.8 | AA64: =+IF(K64=" ","ocultar","visible") -> visible
A65: =+IF(B65="Andén","Der. e Izq."," ") -> Der. e Izq. | B65: =+IF(AND('Datos generales'!C58="Andén",'Datos generales'!C93>0),"Andén"," ") -> Andén | C65: =IF(B65="Andén",E9*'Datos generales'!C91*2," ") -> 5184 | D65: =+IF(B65=" "," ",'Datos generales'!C93) -> 0.1 | J65: =+IF(B65=" "," ","m³") -> m³ | K65: =IF(B65=" "," ",C65*D65) -> 518.4 | AA65: =+IF(K65=" ","ocultar","visible") -> visible
A66: Nota: | I66: =IF(B64=" "," ","ITEM") -> ITEM | J66: =+B62 -> 1.5 | K66: =IF(B64=" "," ","TOTAL") -> TOTAL | L66: =ROUND(SUM(K64:K65),2) -> 3931.2 | AA66: =+IF(AND(AA64="ocultar",AA65="ocultar"),"ocultar","visible") -> visible
AA67: =+IF(AND(AA64="ocultar",AA65="ocultar"),"ocultar","visible") -> visible
AA68: =+IF(AND(AA64="ocultar",AA65="ocultar"),"ocultar","visible") -> visible
AA69: =+IF(AND(AA64="ocultar",AA65="ocultar"),"ocultar","visible") -> visible
AA70: =+IF(AND(AA64="ocultar",AA65="ocultar"),"ocultar","visible") -> visible
A71: CAPÍTULO | B71: =+'Presupuesto General'!$B$7 -> 1 | C71: =+'Presupuesto General'!$D$7 -> Estructura de pavimento | AA71: =+IF(AND(AA74="ocultar",AA75="ocultar",AA76="ocultar"),"ocultar","visible") -> visible
A72: SUBITEM | B72: =+'Presupuesto General'!$B$13 -> 1.6 | C72: =+'Presupuesto General'!$D$13 -> Material de afirmado o mejoramiento | AA72: =+IF(AND(AA74="ocultar",AA75="ocultar",AA76="ocultar"),"ocultar","visible") -> visible
A73: TIPO | B73: ELEMENTO | C73: =IF(B74=" "," ","AREA DE CONFORMACIÓN (m²)") -> AREA DE CONFORMACIÓN (m²) | D73: =IF(B74=" "," ","ESPESOR MEJORAMIENTO (m)") -> ESPESOR MEJORAMIENTO (m) | I73: VOLUMEN (m³) | J73: UNIDAD | K73: SUBTOTAL | AA73: =+IF(AND(AA74="ocultar",AA75="ocultar",AA76="ocultar"),"ocultar","visible") -> visible
A74: =+IF(B74=" "," ","DGV") -> DGV | B74: =+IF('Datos generales'!C159>0,"Lleno"," ") -> Lleno | I74: =IF(B74=" "," ",'Datos generales'!C159) -> 300 | J74: =+IF(B74=" "," ","m³") -> m³ | K74: =IF(B74=" "," ",I74) -> 300 | AA74: =+IF(K74=" ","ocultar","visible") -> visible
A75: =IF(B75=" "," ","Tramo 1") -> Tramo 1 | B75: =IF((G9>0),"Mejoramiento calzada"," ") -> Mejoramiento calzada | C75: =IF(B75="Mejoramiento calzada",(E9*('Datos generales'!C39*2+IF('Datos generales'!C54="Si",'Datos generales'!$C$55*2,0)+IF('Datos generales'!C59<>"Ninguno",'Datos generales'!$C$125*2,0)))," ") -> 17064 | D75: =IF(B75="Mejoramiento calzada",G9," ") -> 0.1 | I75: =+IF(B75=" "," ",C75*D75) -> 1706.4 | J75: =IF(B75="Mejoramiento calzada","m³"," ") -> m³ | K75: =IF(B75="Mejoramiento calzada",C75*D75," ") -> 1706.4 | AA75: =+IF(K75=" ","ocultar","visible") -> visible
A76: =+IF(B76="Mejoramiento andén","Der. e Izq."," ") -> Der. e Izq. | B76: =IF(AND('Datos generales'!C58="Andén",'Datos generales'!C95>0),"Mejoramiento andén"," ") -> Mejoramiento andén | C76: =IF(B76="Mejoramiento andén",E9*'Datos generales'!C91*2," ") -> 5184 | D76: =IF(B76="Mejoramiento andén",'Datos generales'!C95," ") -> 0.3 | I76: =+IF(B76=" "," ",C76*D76) -> 1555.2 | J76: =IF(B76="Mejoramiento andén","m³"," ") -> m³ | K76: =IF(B76="Mejoramiento andén",I76," ") -> 1555.2 | AA76: =+IF(K76=" ","ocultar","visible") -> visible
A77: Nota: | I77: ITEM | J77: =+B72 -> 1.6 | K77: TOTAL | L77: =ROUND(SUM(K74:K76),2) -> 3561.6 | AA77: =+IF(AND(AA74="ocultar",AA75="ocultar",AA76="ocultar"),"ocultar","visible") -> visible
AA78: =+IF(AND(AA74="ocultar",AA75="ocultar",AA76="ocultar"),"ocultar","visible") -> visible
AA79: =+IF(AND(AA74="ocultar",AA75="ocultar",AA76="ocultar"),"ocultar","visible") -> visible
AA80: =+IF(AND(AA74="ocultar",AA75="ocultar",AA76="ocultar"),"ocultar","visible") -> visible
AA81: =+IF(AND(AA74="ocultar",AA75="ocultar",AA76="ocultar"),"ocultar","visible") -> visible
A82: CAPÍTULO | B82: =+'Presupuesto General'!$B$7 -> 1 | C82: =+'Presupuesto General'!$D$7 -> Estructura de pavimento | AA82: =+IF(AND(AA85="ocultar",AA86="ocultar"),"ocultar","visible") -> visible
A83: SUBITEM | B83: =+'Presupuesto General'!$B$14 -> 1.7 | C83: =+'Presupuesto General'!$D$14 -> Losa de concreto MR=3.8 Mpa. Suministro, Formaleteado, Colocación, Curado, juntas y Acabado. No Incluye Acero. | AA83: =+IF(AND(AA85="ocultar",AA86="ocultar"),"ocultar","visible") -> visible
A84: TIPO | B84: ELEMENTO | C84: LONGITUD (m) | D84: ANCHO (m) | E84: PROFUNDIDAD (m) | F84: Factor de Correccion | J84: UNIDAD | K84: SUBTOTAL | AA84: =+IF(AND(AA85="ocultar",AA86="ocultar"),"ocultar","visible") -> visible
A85: Tramo 1 | B85: Pavimento | C85: =+E9 -> 2160 | D85: =+I8*2+IF('Datos generales'!C59="Bordillo insitu",'Datos generales'!C125*2,0) -> 7 | E85: =+I9 -> 0.2 | F85: 0.003 | J85: m³ | K85: =+C85*D85*E85*(F85+1) -> 3033.072 | AA85: =+IF(K85=" ","ocultar","visible") -> visible
A86: =IF(B86=" "," ","Tramo 1") ->  | B86: =+IF('Datos generales'!C136="Si","Rampa de acceso"," ") ->  | C86: =IF(B86=" "," ",'Datos generales'!C138) ->  | D86: =IF(B86=" "," ",'Datos generales'!C137) ->  | E86: =IF(B86=" "," ",'Datos generales'!C139) ->  | F86: =IF(B86=" "," ",0.3%) ->  | J86: =IF(B86=" "," ","m³") ->  | K86: =IF(B86=" "," ",C86*D86*E86*(F86+1)) ->  | AA86: =+IF(K86=" ","ocultar","visible") -> ocultar
A87: Nota: | I87: ITEM | J87: =+B83 -> 1.7 | K87: TOTAL | L87: =ROUND(SUM(K85:K85),2) -> 3033.07 | AA87: =+IF(AND(AA85="ocultar",AA86="ocultar"),"ocultar","visible") -> visible
AA88: =+IF(AND(AA85="ocultar",AA86="ocultar"),"ocultar","visible") -> visible
AA89: =+IF(AND(AA85="ocultar",AA86="ocultar"),"ocultar","visible") -> visible
AA90: =+IF(AND(AA85="ocultar",AA86="ocultar"),"ocultar","visible") -> visible
AA91: =+IF(AND(AA85="ocultar",AA86="ocultar"),"ocultar","visible") -> visible
A92: =+IF('Datos generales'!C59="No aplica", " ", "CAPÍTULO") -> CAPÍTULO | B92: =+'Presupuesto General'!$B$7 -> 1 | C92: =+'Presupuesto General'!$D$7 -> Estructura de pavimento | AA92: =+IF(AND(AA95="ocultar",AA96="ocultar"),"ocultar","visible") -> visible
A93: =+IF('Datos generales'!C59="No aplica", " ", "SUBITEM") -> SUBITEM | B93: =+'Presupuesto General'!$B$15 -> 1.8 | C93: =+'Presupuesto General'!$D$15 -> Suministro, Transporte e Instalacion de Bordillo Prefabricado (0.4x0.15x0.8m) | AA93: =+IF(AND(AA95="ocultar",AA96="ocultar"),"ocultar","visible") -> visible
A94: =IF('Datos generales'!C59="No aplica", " ", "TIPO") -> TIPO | B94: ELEMENTO | C94: LONGITUD (m) | J94: UNIDAD | K94: SUBTOTAL | AA94: =+IF(AND(AA95="ocultar",AA96="ocultar"),"ocultar","visible") -> visible
A95: =+IF('Datos generales'!C59="No aplica", " ", "Tramo 1") -> Tramo 1 | B95: BORDILLO DERECHO | C95: =IF(AND('Datos generales'!C97="Bordillo prefabricado",'Datos generales'!C59<>"Ninguno"),E9*2,E9) -> 2160 | J95: m | K95: =IF('Datos generales'!C59="No aplica", "No aplica", C95) -> 2160 | AA95: =+IF(K95=" ","ocultar","visible") -> visible
A96: =+IF('Datos generales'!C59="No aplica", " ", "Tramo 1") -> Tramo 1 | B96: BORDILLO IZQUIERDO | C96: =IF(AND('Datos generales'!C97="Bordillo prefabricado",'Datos generales'!C59<>"Ninguno"),E9*2,E9) -> 2160 | J96: m | K96: =IF('Datos generales'!C59="No aplica", " ", C96) -> 2160 | AA96: =+IF(K96=" ","ocultar","visible") -> visible
I97: ITEM | J97: =+B93 -> 1.8 | K97: TOTAL | L97: =IF('Datos generales'!C59="No aplica"," ",SUM(K95:K96)) -> 4320 | AA97: =+IF(AND(AA95="ocultar",AA96="ocultar"),"ocultar","visible") -> visible
AA98: =+IF(AND(AA95="ocultar",AA96="ocultar"),"ocultar","visible") -> visible
AA99: =+IF(AND(AA95="ocultar",AA96="ocultar"),"ocultar","visible") -> visible
AA100: =+IF(AND(AA95="ocultar",AA96="ocultar"),"ocultar","visible") -> visible
AA101: =+IF(AND(AA95="ocultar",AA96="ocultar"),"ocultar","visible") -> visible
A102: CAPÍTULO | B102: =+'Presupuesto General'!$B$7 -> 1 | C102: =+'Presupuesto General'!$D$7 -> Estructura de pavimento | AA102: =+IF(AND(AA104="ocultar",AA117="ocultar",AA121="ocultar",AA124="ocultar",AA128="ocultar",AA132="ocultar",AA136="ocultar"),"ocultar","visible") -> visible
A103: SUBITEM | B103: =+'Presupuesto General'!$B$16 -> 1.9 | C103: =+'Presupuesto General'!$D$16 -> Acero de refuerzo fy 420MPA | AA103: =+IF(AND(AA104="ocultar",AA117="ocultar",AA121="ocultar",AA124="ocultar",AA128="ocultar",AA132="ocultar",AA136="ocultar"),"ocultar","visible") -> visible
A104: TIPO | B104: ELEMENTO | C104: CANT. LOSAS | D104: LONGITUD (m) | E104: BARRA N° | F104: CANT. ELEMENTOS POR LOSA | G104: LONGITUD TOTAL (m) | H104: PESO (kg/m) | J104: UNIDAD | K104: SUBTOTAL | AA104: =+IF(AND(AA105="ocultar",AA106="ocultar",AA108="ocultar",AA109="ocultar",AA110="ocultar",AA112="ocultar",AA113="ocultar",AA115="ocultar",AA116="ocultar"),"ocultar","visible") -> visible
A105: Tramo 1 | B105: Dovelas | C105: =+ROUNDUP(E9/I7,0)*2 -> 1080 | D105: =+D14 -> 0.3 | E105: =+D13 -> 8 | F105: =IF(B15="Separación dovelas (m)",ROUNDUP(I8/D15,0),D15) -> 10 | G105: =+(C105)*F105*D105+F105*D105*2 -> 3246 | H105: =IF(E105=2,0.25,IF(E105=3,0.56,IF(E105=4,0.994,IF(E105=5,1.552,IF(E105=6,2.235,IF(E105=7,3.042,IF(E105=8,3.973,"Número de barra incorrecto"))))))) -> 3.973 | J105: kg | K105: =+H105*G105 -> 12896.358 | AA105: =+IF(K105=" ","ocultar","visible") -> visible
A106: Tramo 1 | B106: Barras de anclaje | C106: =+ROUNDUP($E$9/$I$7,0) -> 540 | D106: =+H14 -> 0.9 | E106: =+H13 -> 2 | F106: =IF($F$15="Separación anclajes (m)",ROUNDUP($I$7/$H$15,0),$H$15) -> 3 | G106: =+(C106)*F106*D106 -> 1458 | H106: =IF(E106=2,0.25,IF(E106=3,0.56,IF(E106=4,0.994,IF(E106=5,1.552,IF(E106=6,2.235,IF(E106=7,3.042,IF(E106=8,3.973,"Número de barra incorrecto"))))))) -> 0.25 | J106: kg | K106: =+H106*G106 -> 364.5 | AA106: =+IF(K106=" ","ocultar","visible") -> visible
AA107: =+IF(AND(AA105="ocultar",AA106="ocultar"),"ocultar","visible") -> visible
A108: Tramo 1 | B108: Canastillas ganchos | C108: =+ROUNDUP($E$9/$I$7,0)*2 -> 1080 | D108: =+'Datos generales'!C154 -> 0.13 | E108: =+'Datos generales'!$C$155 -> 2 | F108: =+F105*2 -> 20 | G108: =+F108*D108*C108 -> 2808 | H108: =IF(E108=2,0.25,IF(E108=3,0.56,IF(E108=4,0.994,IF(E108=5,1.552,IF(E108=6,2.235,IF(E108=7,3.042,IF(E108=8,3.973,"Número de barra incorrecto"))))))) -> 0.25 | J108: kg | K108: =+H108*G108 -> 702 | AA108: =+IF(K108=" ","ocultar","visible") -> visible
A109: Tramo 1 | B109: Canastillas amarre transv. | C109: =+ROUNDUP($E$9/$I$7,0)*2 -> 1080 | D109: =+'Datos generales'!C45 -> 0.3 | E109: =+'Datos generales'!$C$155 -> 2 | F109: =+F105 -> 10 | G109: =+F109*D109*C109 -> 3240 | H109: =IF(E109=2,0.25,IF(E109=3,0.56,IF(E109=4,0.994,IF(E109=5,1.552,IF(E109=6,2.235,IF(E109=7,3.042,IF(E109=8,3.973,"Número de barra incorrecto"))))))) -> 0.25 | J109: kg | K109: =+H109*G109 -> 810 | AA109: =+IF(K109=" ","ocultar","visible") -> visible
A110: Tramo 1 | B110: Canastillas amarre longit. | C110: =+ROUNDUP($E$9/$I$7,0)*2 -> 1080 | D110: =+I8-0.2 -> 3.3 | E110: =+'Datos generales'!$C$155 -> 2 | F110: 2 | G110: =+F110*D110*C110 -> 7128 | H110: =IF(E110=2,0.25,IF(E110=3,0.56,IF(E110=4,0.994,IF(E110=5,1.552,IF(E110=6,2.235,IF(E110=7,3.042,IF(E110=8,3.973,"Número de barra incorrecto"))))))) -> 0.25 | J110: kg | K110: =+H110*G110 -> 1782 | AA110: =+IF(K110=" ","ocultar","visible") -> visible
AA111: =+IF(AND(AA108="ocultar",AA109="ocultar",AA110="ocultar"),"ocultar","visible") -> visible
A112: =+IF(B112=" "," ","Tramo 1") ->  | B112: =+IF('Datos generales'!C59="Bordillo insitu","Bordillo ganchos"," ") ->  | C112: =+IF(B112=" "," ",ROUNDUP($E$9/$I$7,0)*2) ->  | D112: =+IF(B112=" "," ",'Datos generales'!C132) ->  | E112: =+IF(B112=" "," ",'Datos generales'!C131) ->  | F112: =+IF(B112=" "," ",ROUND('Datos generales'!C38/'Datos generales'!C133,0)) ->  | G112: =+IF(B112=" "," ",F112*D112*C112) ->  | H112: =+IF(B112=" "," ",IF(E112=2,0.25,IF(E112=3,0.56,IF(E112=4,0.994,IF(E112=5,1.552,IF(E112=6,2.235,IF(E112=7,3.042,IF(E112=8,3.973,"Número de barra incorrecto")))))))) ->  | J112: =+IF(B112=" "," ","kg") ->  | K112: =+IF(B112=" "," ",H112*G112) ->  | AA112: =+IF(K112=" ","ocultar","visible") -> ocultar
A113: =+IF(B113=" "," ","Tramo 1") ->  | B113: =+IF('Datos generales'!C59="Bordillo insitu","Bordillo refuerzo longit."," ") ->  | D113: =+IF(B113=" "," ",E9*2) ->  | E113: =+IF(B113=" "," ",'Datos generales'!C129) ->  | F113: =+IF(B113=" "," ",'Datos generales'!C130) ->  | G113: =+IF(B113=" "," ",F113*D113) ->  | H113: =+IF(B113=" "," ",IF(E113=2,0.25,IF(E113=3,0.56,IF(E113=4,0.994,IF(E113=5,1.552,IF(E113=6,2.235,IF(E113=7,3.042,IF(E113=8,3.973,"Número de barra incorrecto")))))))) ->  | J113: =+IF(B113=" "," ","kg") ->  | K113: =+IF(B113=" "," ",H113*G113) ->  | AA113: =+IF(K113=" ","ocultar","visible") -> ocultar
AA114: =+IF(AND(AA112="ocultar",AA113="ocultar"),"ocultar","visible") -> ocultar
A115: =+IF(B115=" "," ","Der. e Izq.") -> Der. e Izq. | B115: =+IF(AND('Datos generales'!C54="Si",'Datos generales'!C62="Anclajes y dovelas"),"Berma anclajes",IF(AND('Datos generales'!C54="Si",'Datos generales'!C62="Parrilla ref. long. y transv."),"Berma ref. transv."," ")) -> Berma ref. transv. | C115: =IF(B115=" "," ",2*ROUNDUP($E$9/$I$7,0)) -> 1080 | D115: =IF(B115=" "," ",IF('Datos generales'!C62="Parrilla ref. long. y transv.",'Datos generales'!C68,'Datos generales'!C72)) -> 0.5 | E115: =IF(B115=" "," ",IF('Datos generales'!C62="Parrilla ref. long. y transv.",'Datos generales'!C69,'Datos generales'!C73)) -> 3 | F115: =IF(B115=" "," ",IF(AND('Datos generales'!C62="Anclajes y dovelas",'Datos generales'!B74="Separación anclajes (m)"),ROUNDUP($I$8/'Datos generales'!C74,0),IF(AND('Datos generales'!C62="Anclajes y dovelas",'Datos generales'!B74="Número de anclajes"),'Datos generales'!C74,ROUND('Datos generales'!C38/'Datos generales'!C70,0)))) -> 27 | G115: =IF(B115=" "," ",(C115)*F115*D115) -> 14580 | H115: =IF(B115=" "," ",IF(E115=2,0.25,IF(E115=3,0.56,IF(E115=4,0.994,IF(E115=5,1.552,IF(E115=6,2.235,IF(E115=7,3.042,IF(E115=8,3.973,"Número de barra incorrecto")))))))) -> 0.56 | J115: =IF(B115=" "," ","kg") -> kg | K115: =IF(B115=" "," ",H115*G115) -> 8164.8 | AA115: =+IF(K115=" ","ocultar","visible") -> visible
A116: =+IF(B116=" "," ","Der. e Izq.") -> Der. e Izq. | B116: =+IF(AND('Datos generales'!C54="Si",'Datos generales'!C62="Anclajes y dovelas"),"Berma dovelas",IF(AND('Datos generales'!C54="Si",'Datos generales'!C62="Parrilla ref. long. y transv."),"Berma ref. long."," ")) -> Berma ref. long. | C116: =IF(B116=" "," ",IF('Datos generales'!C62="Parrilla ref. long. y transv."," ",2*ROUNDUP($E$9/$I$7,0))) ->  | D116: =IF(B116=" "," ",IF('Datos generales'!C62="Parrilla ref. long. y transv.",'Datos generales'!C27*2,'Datos generales'!C76)) -> 4320 | E116: =IF(B116=" "," ",IF('Datos generales'!C62="Parrilla ref. long. y transv.",'Datos generales'!C66,'Datos generales'!C75)) -> 3 | F116: =IF(B116=" "," ",IF(AND('Datos generales'!C62="Anclajes y dovelas",'Datos generales'!B77="Separación dovelas (m)"),ROUNDUP($I$8/'Datos generales'!C77,0),IF(AND('Datos generales'!C62="Anclajes y dovelas",'Datos generales'!B77="Número dovelas"),'Datos generales'!C77,ROUND('Datos generales'!C55/'Datos generales'!C67,0)))) -> 3 | G116: =IF(B116=" "," ",IF('Datos generales'!C62="Parrilla ref. long. y transv.",D116*F116,(C116)*F116*D116)) -> 12960 | H116: =IF(B116=" "," ",IF(E116=2,0.25,IF(E116=3,0.56,IF(E116=4,0.994,IF(E116=5,1.552,IF(E116=6,2.235,IF(E116=7,3.042,IF(E116=8,3.973,"Número de barra incorrecto")))))))) -> 0.56 | J116: =IF(B116=" "," ","kg") -> kg | K116: =IF(B116=" "," ",H116*G116) -> 7257.6 | AA116: =+IF(K116=" ","ocultar","visible") -> visible
C117: =+IF((B118=" ")," ","ANCHO (m)") ->  | D117: =+IF((B118=" ")," ","LONGITUD (m)") ->  | H117: =+IF(B118=" "," ","PESO (kg/m²)") ->  | AA117: =+IF(AND(AA118="ocultar",AA119="ocultar",AA120="ocultar"),"ocultar","visible") -> ocultar
A118: =+IF(B118=" "," ","Der. e Izq.") ->  | B118: =+IF(AND('Datos generales'!C62="Malla electrosoldada",'Datos generales'!C54="Si"),"Malla electros. berma"," ") ->  | C118: =+IF(B118=" "," ",'Datos generales'!C55) ->  | D118: =+IF(B118=" "," ",$E$9*2) ->  | H118: =+IF(B118=" "," ",IF('Datos generales'!C64="XX-050",11.5/(6*2.35),IF('Datos generales'!C64="XX-063",14.1/(6*2.35),IF('Datos generales'!C64="XX-084",18.8/(6*2.35),0)))) ->  | J118: =+IF(B118=" "," ","kg") ->  | K118: =+IF(B118=" "," ",H118*D118*C118) ->  | AA118: =+IF(K118=" ","ocultar","visible") -> ocultar
A119: =+IF(B119=" "," ","Der. e Izq.") ->  | B119: =+IF(AND('Datos generales'!C56="Si",'Datos generales'!C80="Parrilla ref. long. y transv."),"Cuneta ref. transv."," ") ->  | C119: =IF(B119=" "," ",2*ROUNDUP($E$9/$I$7,0)) ->  | D119: =IF(B119=" "," ",'Datos generales'!C86) ->  | E119: =IF(B119=" "," ",'Datos generales'!C87) ->  | F119: =+IF(B119=" "," ",ROUND('Datos generales'!$C$38/'Datos generales'!$C$88,0)) ->  | G119: =IF(B119=" "," ",(C119)*F119*D119) ->  | H119: =IF(B119=" "," ",IF(E119=2,0.25,IF(E119=3,0.56,IF(E119=4,0.994,IF(E119=5,1.552,IF(E119=6,2.235,IF(E119=7,3.042,IF(E119=8,3.973,"Número de barra incorrecto")))))))) ->  | J119: =IF(B119=" "," ","kg") ->  | K119: =IF(B119=" "," ",H119*G119) ->  | AA119: =+IF(K119=" ","ocultar","visible") -> ocultar
A120: =+IF(B120=" "," ","Der. e Izq.") ->  | B120: =+IF(AND('Datos generales'!C56="Si",'Datos generales'!C80="Parrilla ref. long. y transv."),"Cuneta ref. longit."," ") ->  | D120: =IF(B120=" "," ",'Datos generales'!C27*2) ->  | E120: =IF(B120=" "," ",'Datos generales'!C84) ->  | F120: =+IF(B120=" "," ",ROUND('Datos generales'!C57/'Datos generales'!C85,0)) ->  | G120: =IF(B120=" "," ",F120*D120) ->  | H120: =IF(B120=" "," ",IF(E120=2,0.25,IF(E120=3,0.56,IF(E120=4,0.994,IF(E120=5,1.552,IF(E120=6,2.235,IF(E120=7,3.042,IF(E120=8,3.973,"Número de barra incorrecto")))))))) ->  | J120: =IF(B120=" "," ","kg") ->  | K120: =IF(B120=" "," ",H120*G120) ->  | AA120: =+IF(K120=" ","ocultar","visible") -> ocultar
C121: =+IF(B122=" "," ","ANCHO (m)") -> ANCHO (m) | D121: =+IF(B122=" "," ","LONGITUD (m)") -> LONGITUD (m) | H121: =+IF(B122=" "," ","PESO (kg/m²)") -> PESO (kg/m²) | AA121: =+IF(AND(AA122="ocultar"),"ocultar","visible") -> visible
A122: =+IF(B122=" "," ","Der. e Izq.") -> Der. e Izq. | B122: =+IF(AND('Datos generales'!C80="Malla electrosoldada",'Datos generales'!C56="Si"),"Malla electros. cuneta"," ") -> Malla electros. cuneta | C122: =+IF(B122=" "," ",'Datos generales'!C57) -> 0.2 | D122: =+IF(B122=" "," ",$E$9*2) -> 4320 | H122: =+IF(B122=" "," ",IF('Datos generales'!C82="XX-050",11.5/(6*2.35),IF('Datos generales'!C82="XX-063",14.1/(6*2.35),IF('Datos generales'!C82="XX-084",18.8/(6*2.35),0)))) -> 1.333333333 | J122: =+IF(B122=" "," ","kg") -> kg | K122: =+IF(B122=" "," ",H122*D122*C122) -> 1152 | AA122: =+IF(K122=" ","ocultar","visible") -> visible
AA123: =+IF(AND(AA117="ocultar",AA121="ocultar"),"ocultar","visible") -> visible
C124: =+IF(AND(B125=" ",B126=" ")," ","ANCHO (m)") -> ANCHO (m) | D124: =+IF(AND(B125=" ",B126=" ")," ","LONGITUD (m)") -> LONGITUD (m) | H124: =+IF(AND(B125=" ",B126=" ")," ","PESO (kg/m²)") -> PESO (kg/m²) | AA124: =+IF(AND(AA125="ocultar",AA126="ocultar"),"ocultar","visible") -> visible
A125: =+IF(B125=" "," ","Der. e Izq.") -> Der. e Izq. | B125: =+IF('Datos generales'!C113="Si","Malla electros. Andén"," ") -> Malla electros. Andén | C125: =+IF(B125=" "," ",('Datos generales'!C91-IF('Datos generales'!C59="Ninguno",0,'Datos generales'!C125)-IF('Datos generales'!C97="Viga cierre",'Datos generales'!C99,IF('Datos generales'!C97="Bordillo prefabricado",'Datos generales'!C125,0))-IF('Datos generales'!C103="20x20",0.2,IF('Datos generales'!C103="10x10",0.1,0))-IF('Datos generales'!C104="10x20",0.1,IF('Datos generales'!C104="20x40",0.2,0)))) -> 0.65 | D125: =+IF(B125=" "," ",E9*2) -> 4320 | H125: =+IF(B125=" "," ",IF('Datos generales'!C114="XX-050",11.5/(6*2.35),IF('Datos generales'!C114="XX-063",14.1/(6*2.35),IF('Datos generales'!C114="XX-084",18.8/(6*2.35),0)))) -> 1.333333333 | J125: =+IF(B125=" "," ","kg") -> kg | K125: =+IF(B125=" "," ",H125*D125*C125) -> 3744 | AA125: =+IF(K125=" ","ocultar","visible") -> visible
A126: =+IF(B126=" "," ","Tramo 1") -> Tramo 1 | B126: =+IF('Datos generales'!C107>0,"Malla electros. rampa andén"," ") -> Malla electros. rampa andén | C126: =+IF(B126=" "," ",'Datos generales'!C109-'Datos generales'!C110) -> 0.6 | D126: =+IF(B126=" "," ",'Datos generales'!C108*'Datos generales'!C107) -> 1.5 | H126: =+IF(B125=" "," ",IF('Datos generales'!C114="XX-050",11.5/(6*2.35),IF('Datos generales'!C114="XX-063",14.1/(6*2.35),IF('Datos generales'!C114="XX-084",18.8/(6*2.35),0)))) -> 1.333333333 | J126: =+IF(B126=" "," ","kg") -> kg | K126: =+IF(B126=" "," ",H126*D126*C126) -> 1.2 | AA126: =+IF(K126=" ","ocultar","visible") -> visible
AA127: =+IF(AND(AA125="ocultar",AA126="ocultar"),"ocultar","visible") -> visible
C128: =+IF(AND(B129=" ",B130=" ")," ","CANT. LOSAS") -> CANT. LOSAS | D128: =+IF(AND(B129=" ",B130=" ")," ","LONGITUD (m)") -> LONGITUD (m) | E128: =+IF(AND(B129=" ",B130=" ")," ","BARRA N°") -> BARRA N° | F128: =+IF(AND(B129=" ",B130=" ")," ","CANT. ELEMENTOS") -> CANT. ELEMENTOS | G128: =+IF(AND(B129=" ",B130=" ")," ","LONGITUD TOTAL (m)") -> LONGITUD TOTAL (m) | H128: =+IF(AND(B129=" ",B130=" ")," ","PESO (kg/m)") -> PESO (kg/m) | AA128: =+IF(AND(AA129="ocultar",AA130="ocultar"),"ocultar","visible") -> visible
A129: =+IF(B129=" "," ","Der. e Izq") -> Der. e Izq | B129: =+IF('Datos generales'!C97="Viga cierre","Viga cierre ref. estribos"," ") -> Viga cierre ref. estribos | C129: =+IF(B129=" "," ",ROUNDUP($E$9/$I$7,0)*2) -> 1080 | D129: =+IF(B129=" "," ",'Datos generales'!C117) -> 0.4 | E129: =+IF(B129=" "," ",'Datos generales'!C118) -> 3 | F129: =+IF(B129=" "," ",ROUND('Datos generales'!$C$38/'Datos generales'!$C$119,0)) -> 13 | G129: =+IF(B129=" "," ",F129*D129*C129) -> 5616 | H129: =+IF(B129=" "," ",IF(E129=2,0.25,IF(E129=3,0.56,IF(E129=4,0.994,IF(E129=5,1.552,IF(E129=6,2.235,IF(E129=7,3.042,IF(E129=8,3.973,"Número de barra incorrecto")))))))) -> 0.56 | J129: =+IF(B129=" "," ","kg") -> kg | K129: =+IF(B129=" "," ",H129*G129) -> 3144.96 | AA129: =+IF(K129=" ","ocultar","visible") -> visible
A130: =+IF(B130=" "," ","Der. e Izq") -> Der. e Izq | B130: =+IF('Datos generales'!C97="Viga cierre","Viga cierre ref. longit."," ") -> Viga cierre ref. longit. | D130: =+IF(B130=" "," ",2*'Datos generales'!C27) -> 4320 | E130: =+IF(B130=" "," ",'Datos generales'!C121) -> 2 | F130: =+IF(B130=" "," ",'Datos generales'!C120) -> 2 | G130: =+IF(B130=" "," ",F130*D130) -> 8640 | H130: =+IF(B129=" "," ",IF(E130=2,0.25,IF(E130=3,0.56,IF(E130=4,0.994,IF(E130=5,1.552,IF(E130=6,2.235,IF(E130=7,3.042,IF(E130=8,3.973,"Número de barra incorrecto")))))))) -> 0.25 | J130: =+IF(B130=" "," ","kg") -> kg | K130: =+IF(B130=" "," ",H130*G130) -> 2160 | AA130: =+IF(K130=" ","ocultar","visible") -> visible
AA131: =+IF(AND(AA129="ocultar",AA130="ocultar"),"ocultar","visible") -> visible
C132: =+IF(AND(C133=" ",C134=" ")," ","CANTIDAD DE RAMPAS") -> CANTIDAD DE RAMPAS | D132: =+IF(AND(C133=" ",C134=" ")," ","LONGITUD BARRAS (m)") -> LONGITUD BARRAS (m) | E132: =+IF(AND(C133=" ",C134=" ")," ","BARRA N°") -> BARRA N° | F132: =+IF(AND(C133=" ",C134=" ")," ","CANT. ELEMENTOS") -> CANT. ELEMENTOS | G132: =+IF(AND(C133=" ",C134=" ")," ","LONGITUD TOTAL (m)") -> LONGITUD TOTAL (m) | H132: =+IF(AND(C133=" ",C134=" ")," ","PESO (kg/m)") -> PESO (kg/m) | AA132: =+IF(AND(AA133="ocultar",AA134="ocultar"),"ocultar","visible") -> visible
A133: =+IF(B133=" "," ","Tramo 1") -> Tramo 1 | B133: =+IF('Datos generales'!C136>0,"Rampa de acceso víal longit."," ") -> Rampa de acceso víal longit. | C133: =+IF(B133=" "," ",'Datos generales'!$C$136) -> 1 | D133: =+IF(B133=" "," ",'Datos generales'!C140) -> 1.2 | E133: =+IF(B133=" "," ",'Datos generales'!C141) -> 4 | F133: =+IF(B133=" "," ",ROUND('Datos generales'!C137/'Datos generales'!C142,0)) -> 40 | G133: =+IF(B133=" "," ",F133*D133*C133) -> 48 | H133: =+IF(B133=" "," ",IF(E133=2,0.25,IF(E133=3,0.56,IF(E133=4,0.994,IF(E133=5,1.552,IF(E133=6,2.235,IF(E133=7,3.042,IF(E133=8,3.973,"Número de barra incorrecto")))))))) -> 0.994 | J133: =+IF(B133=" "," ","kg") -> kg | K133: =+IF(B133=" "," ",H133*G133) -> 47.712 | AA133: =+IF(K133=" ","ocultar","visible") -> visible
A134: =+IF(B134=" "," ","Tramo 1") -> Tramo 1 | B134: =+IF('Datos generales'!C136>0,"Rampa de acceso víal transv."," ") -> Rampa de acceso víal transv. | C134: =+IF(B134=" "," ",'Datos generales'!$C$136) -> 1 | D134: =+IF(B134=" "," ",'Datos generales'!C143) -> 8 | E134: =+IF(B134=" "," ",'Datos generales'!C144) -> 4 | F134: =+IF(B134=" "," ",ROUND('Datos generales'!C138/'Datos generales'!C145,0)) -> 5 | G134: =+IF(B134=" "," ",F134*D134*C134) -> 40 | H134: =+IF(B134=" "," ",IF(E134=2,0.25,IF(E134=3,0.56,IF(E134=4,0.994,IF(E134=5,1.552,IF(E134=6,2.235,IF(E134=7,3.042,IF(E134=8,3.973,"Número de barra incorrecto")))))))) -> 0.994 | J134: =+IF(B134=" "," ","kg") -> kg | K134: =+IF(B134=" "," ",H134*G134) -> 39.76 | AA134: =+IF(K134=" ","ocultar","visible") -> visible
AA135: =+IF(AND(AA133="ocultar",AA134="ocultar"),"ocultar","visible") -> visible
C136: =+IF(AND(B137=" ",B138=" ")," ","CANTIDAD DE RAMPAS") -> CANTIDAD DE RAMPAS | D136: =+IF(AND(B137=" ",B138=" ")," ","LONGITUD (m)") -> LONGITUD (m) | E136: =+IF(AND(B137=" ",B138=" ")," ","BARRA N°") -> BARRA N° | F136: =+IF(AND(B137=" ",B138=" ")," ","CANT. ELEMENTOS") -> CANT. ELEMENTOS | G136: =+IF(AND(B137=" ",B138=" ")," ","LONGITUD TOTAL (m)") -> LONGITUD TOTAL (m) | H136: =+IF(AND(B137=" ",B138=" ")," ","PESO (kg/m)") -> PESO (kg/m) | AA136: =+IF(AND(AA137="ocultar",AA138="ocultar"),"ocultar","visible") -> visible
A137: =+IF(B137=" "," ","Tramo 1") -> Tramo 1 | B137: =+IF('Datos generales'!C136>0,"Viga rampa ref. estribos"," ") -> Viga rampa ref. estribos | C137: =+IF(B137=" "," ",'Datos generales'!$C$136) -> 1 | D137: =+IF(B137=" "," ",'Datos generales'!C147) -> 0.4 | E137: =+IF(B137=" "," ",'Datos generales'!C148) -> 3 | F137: =+IF(B137=" "," ",ROUND('Datos generales'!C137/'Datos generales'!C149,0)) -> 27 | G137: =+IF(B137=" "," ",F137*D137*C137) -> 10.8 | H137: =+IF(B137=" "," ",IF(E137=2,0.25,IF(E137=3,0.56,IF(E137=4,0.994,IF(E137=5,1.552,IF(E137=6,2.235,IF(E137=7,3.042,IF(E137=8,3.973,"Número de barra incorrecto")))))))) -> 0.56 | J137: =+IF(B137=" "," ","kg") -> kg | K137: =+IF(B137=" "," ",H137*G137) -> 6.048 | AA137: =+IF(K137=" ","ocultar","visible") -> visible
A138: =+IF(B138=" "," ","Tramo 1") -> Tramo 1 | B138: =+IF('Datos generales'!C136>0,"Viga rampa ref. longit."," ") -> Viga rampa ref. longit. | C138: =+IF(B138=" "," ",'Datos generales'!$C$136) -> 1 | D138: =+IF(B138=" "," ",'Datos generales'!C137) -> 8 | E138: =+IF(B138=" "," ",'Datos generales'!C151) -> 2 | F138: =+IF(B138=" "," ",'Datos generales'!C150) -> 2 | G138: =+IF(B138=" "," ",F138*D138*C138) -> 16 | H138: =+IF(B138=" "," ",IF(E138=2,0.25,IF(E138=3,0.56,IF(E138=4,0.994,IF(E138=5,1.552,IF(E138=6,2.235,IF(E138=7,3.042,IF(E138=8,3.973,"Número de barra incorrecto")))))))) -> 0.25 | J138: =+IF(B138=" "," ","kg") -> kg | K138: =+IF(B138=" "," ",H138*G138) -> 4 | AA138: =+IF(K138=" ","ocultar","visible") -> visible
I139: ITEM | J139: =+B103 -> 1.9 | K139: TOTAL | L139: =SUM(K105:K139) -> 42276.938 | AA139: =+IF(AND(AA104="ocultar",AA117="ocultar",AA121="ocultar",AA124="ocultar",AA128="ocultar",AA132="ocultar",AA136="ocultar"),"ocultar","visible") -> visible
AA140: =+IF(AND(AA104="ocultar",AA117="ocultar",AA121="ocultar",AA124="ocultar",AA128="ocultar",AA132="ocultar",AA136="ocultar"),"ocultar","visible") -> visible
AA141: =+IF(AND(AA104="ocultar",AA117="ocultar",AA121="ocultar",AA124="ocultar",AA128="ocultar",AA132="ocultar",AA136="ocultar"),"ocultar","visible") -> visible
AA142: =+IF(AND(AA104="ocultar",AA117="ocultar",AA121="ocultar",AA124="ocultar",AA128="ocultar",AA132="ocultar",AA136="ocultar"),"ocultar","visible") -> visible
AA143: =+IF(AND(AA104="ocultar",AA117="ocultar",AA121="ocultar",AA124="ocultar",AA128="ocultar",AA132="ocultar",AA136="ocultar"),"ocultar","visible") -> visible
A144: =+IF(B147=" "," ","CAPÍTULO") -> CAPÍTULO | B144: =+IF(B147=" "," ",'Presupuesto General'!$B$7) -> 1 | C144: =+IF(B147=" "," ",'Presupuesto General'!$D$7) -> Estructura de pavimento | AA144: =+IF(AND(AA147="ocultar",AA149="ocultar",AA151="ocultar"),"ocultar","visible") -> visible
A145: =+IF(B147=" "," ","SUBITEM") -> SUBITEM | B145: =+IF(B147=" "," ",'Presupuesto General'!$B$17) -> 1.10 | C145: =+IF(B147=" "," ",'Presupuesto General'!$D$17) -> Concreto de resistencia 21MPA (D) (Andén) | AA145: =+IF(AND(AA147="ocultar",AA149="ocultar",AA151="ocultar"),"ocultar","visible") -> visible
A146: =+IF(B147=" "," ","TIPO") -> TIPO | B146: =+IF(B147=" "," ","ELEMENTO") -> ELEMENTO | C146: =+IF(B147=" "," ","ÁREA DE ANDÉN (m²)") -> ÁREA DE ANDÉN (m²) | D146: =+IF(B147=" "," ","ESPESOR (m)") -> ESPESOR (m) | J146: =+IF(B147=" "," ","UNIDAD") -> UNIDAD | K146: =+IF(B147=" "," ","SUBTOTAL") -> SUBTOTAL | AA146: =+IF(AND(AA147="ocultar"),"ocultar","visible") -> visible
A147: =+IF(B147="Andén","Tramo 1"," ") -> Tramo 1 | B147: =+IF('Datos generales'!C58="Andén","Andén"," ") -> Andén | C147: =IF(B147="Andén",E9*2*('Datos generales'!C91-IF('Datos generales'!C59="Ninguno",0,'Datos generales'!C125)-IF('Datos generales'!C97="Viga cierre",'Datos generales'!C99,IF('Datos generales'!C97="Bordillo prefabricado",'Datos generales'!C125,0))-IF('Datos generales'!C103="20x20",0.2,IF('Datos generales'!C103="10x10",0.1,0))-IF('Datos generales'!C104="10x20",0.1,IF('Datos generales'!C104="20x40",0.2,0)))," ") -> 2808 | D147: =IF(B147="Andén",'Datos generales'!C92," ") -> 0.08 | J147: =+IF(B147=" "," ","m³") -> m³ | K147: =+IF(B147=" "," ",C147*D147) -> 224.64 | AA147: =+IF(K147=" ","ocultar","visible") -> visible
C148: =+IF(B149=" "," ","ÁREA VIGA ANDÉN (m²)") -> ÁREA VIGA ANDÉN (m²) | D148: =+IF(B149=" "," ","ALTURA (m)") -> ALTURA (m) | AA148: =+IF(AND(AA149="ocultar"),"ocultar","visible") -> visible
A149: =+IF(B149=" "," ","Tramo 1") -> Tramo 1 | B149: =+IF(AND(B147="Andén",'Datos generales'!C97="Viga cierre"),"Viga cierre"," ") -> Viga cierre | C149: =IF(B149=" "," ",E9*'Datos generales'!C99) -> 216 | D149: =IF(B149=" "," ",'Datos generales'!C98) -> 0.2 | J149: =+IF(B149=" "," ","m³") -> m³ | K149: =+IF(B149=" "," ",D149*C149) -> 43.2 | AA149: =+IF(K149=" ","ocultar","visible") -> visible
C150: =+IF(B151=" "," ","ÁREA DE RAMPA (m²)") -> ÁREA DE RAMPA (m²) | D150: =+IF(B151=" "," ","ESPESOR (m)") -> ESPESOR (m) | AA150: =+IF(AND(AA151="ocultar"),"ocultar","visible") -> visible
A151: =+IF(B151=" "," ","Tramo 1") -> Tramo 1 | B151: =+IF(AND(B147="Andén",'Datos generales'!C107>0),"Rampa peatonal"," ") -> Rampa peatonal | C151: =IF(B151=" "," ",'Datos generales'!C108*('Datos generales'!C109-'Datos generales'!C110)) -> 0.9 | D151: =IF(B151=" "," ",'Datos generales'!C92) -> 0.08 | J151: =+IF(B151=" "," ","m³") -> m³ | K151: =+IF(B151=" "," ",D151*C151) -> 0.072 | AA151: =+IF(K151=" ","ocultar","visible") -> visible
I152: =+IF(B147=" "," ","ITEM") -> ITEM | J152: =+IF(B147=" "," ",B145) -> 1.10 | K152: =+IF(B147=" "," ","TOTAL") -> TOTAL | L152: =ROUND(SUM(K147:K151),2) -> 267.91 | AA152: =+IF(AND(AA147="ocultar",AA149="ocultar",AA151="ocultar"),"ocultar","visible") -> visible
AA153: =+IF(AND(AA147="ocultar",AA149="ocultar",AA151="ocultar"),"ocultar","visible") -> visible
AA154: =+IF(AND(AA147="ocultar",AA149="ocultar",AA151="ocultar"),"ocultar","visible") -> visible
AA155: =+IF(AND(AA147="ocultar",AA149="ocultar",AA151="ocultar"),"ocultar","visible") -> visible
AA156: =+IF(AND(AA147="ocultar",AA149="ocultar",AA151="ocultar"),"ocultar","visible") -> visible
A157: =+IF(B160=" "," ","CAPÍTULO") -> CAPÍTULO | B157: =+IF(B160=" "," ",'Presupuesto General'!$B$7) -> 1 | C157: =+IF(B160=" "," ",'Presupuesto General'!$D$7) -> Estructura de pavimento | AA157: =+IF(AND(AA160="ocultar",AA161="ocultar",AA162="ocultar"),"ocultar","visible") -> visible
A158: =+IF(B160=" "," ","SUBITEM") -> SUBITEM | B158: =+IF(B160=" "," ",'Presupuesto General'!$B$18) -> 1.11 | C158: =+IF(B160=" "," ",'Presupuesto General'!$D$18) -> Suministro, transporte y colocación de loseta táctil guía y alerta para discapacitados visuales | AA158: =+IF(AND(AA160="ocultar",AA161="ocultar",AA162="ocultar"),"ocultar","visible") -> visible
A159: =+IF(B160=" "," ","TIPO") -> TIPO | B159: =+IF(B160=" "," ","ELEMENTO") -> ELEMENTO | C159: =+IF(B160=" "," ","LONGITUD DE ADOQUÍN (m)") -> LONGITUD DE ADOQUÍN (m) | E159: =+IF(B160=" "," ","ANCHO ADOQUÍN (m)") -> ANCHO ADOQUÍN (m) | J159: =+IF(B160=" "," ","UNIDAD") -> UNIDAD | K159: =+IF(B160=" "," ","SUBTOTAL") -> SUBTOTAL | AA159: =+IF(AND(AA160="ocultar",AA161="ocultar",AA162="ocultar"),"ocultar","visible") -> visible
A160: =+IF(B160="Loseta guía","Tramo 1"," ") -> Tramo 1 | B160: =+IF(AND('Datos generales'!C58="Andén",'Datos generales'!C103<>"Ninguno"),"Loseta guía"," ") -> Loseta guía | C160: =+IF(B160=" "," ",E9*2) -> 4320 | E160: =+IF(B160=" "," ",IF('Datos generales'!C103="20x20",0.2,IF('Datos generales'!C103="40x40",0.4,0))) -> 0.2 | J160: =+IF(B160=" "," ","m²") -> m² | K160: =+IF(B160=" "," ",C160*E160) -> 864 | AA160: =+IF(K160=" ","ocultar","visible") -> visible
A161: =+IF(B161="Loseta rectangular alerta","Tramo 1"," ") -> Tramo 1 | B161: =+IF(AND('Datos generales'!C58="Andén",'Datos generales'!C104<>"Ninguno"),"Loseta rectangular alerta"," ") -> Loseta rectangular alerta | C161: =+IF(B161=" "," ",E9*2) -> 4320 | E161: =+IF(B161=" "," ",IF('Datos generales'!C104="10x20",0.1,IF('Datos generales'!C104="20x40",0.2,0))) -> 0.1 | J161: =+IF(B161=" "," ","m²") -> m² | K161: =+IF(B161=" "," ",C161*E161) -> 432 | AA161: =+IF(K161=" ","ocultar","visible") -> visible
A162: =+IF(B162="Loseta alerta rampa","Tramo 1"," ") -> Tramo 1 | B162: =+IF(AND('Datos generales'!C58="Andén",'Datos generales'!C102<>"Ninguno"),"Loseta alerta rampa"," ") -> Loseta alerta rampa | C162: =+IF(B162=" "," ",'Datos generales'!C108*'Datos generales'!C107) -> 1.5 | E162: =+IF(B162=" "," ",'Datos generales'!C110) -> 0.6 | J162: =+IF(B162=" "," ","m²") -> m² | K162: =+IF(B162=" "," ",C162*E162) -> 0.9 | AA162: =+IF(K162=" ","ocultar","visible") -> visible
I163: =+IF(B160=" "," ","ITEM") -> ITEM | J163: =+IF(B160=" "," ",B158) -> 1.11 | K163: =+IF(B160=" "," ","TOTAL") -> TOTAL | L163: =ROUND(SUM(K160:K164),2) -> 1296.9 | AA163: =+IF(AND(AA160="ocultar",AA161="ocultar",AA162="ocultar"),"ocultar","visible") -> visible
AA164: =+IF(AND(AA160="ocultar",AA161="ocultar",AA162="ocultar"),"ocultar","visible") -> visible

Sheet Presupuesto General
B4: PRESUPUESTO GENERAL
B5: PROYECTO | D5: ='Datos generales'!B4 -> Optimización del proceso de cálculo de cantidades y presupuesto de obras de pavimento rígido y flexible en la empresa Grupo Tecmedic S.A.S
B6: Ítem | C6: Ítem Invias | D6: Descripción | E6: Unidad | F6: Cantidad | G6: Precio Unitario | H6: Valor parcial
B7: 1 | D7: Estructura de pavimento | AA7: filtro
B8: 1.1 | C8: 210.2.2 | D8: Excavación en material común de la explanación y canales. No incluye transporte ni disposición final del material sobrante. | E8: m³ | F8: =+'Memorias T1'!L28 -> 7479.2 | G8: =+'1.1'!H32 -> 3797.841687 | H8: =ROUND(F8*G8,0) -> 28404818 | AA8: =+IF(Tabla4[[#This Row],[Valor parcial]]=0,"ocultar","visible") -> visible
B9: 1.2 | C9: 900.2 | D9: Transporte de material proveniente de la excavación de la explanación, canales y prestamos para distancias mayores de mil metros (1000 M) medido a partir de 100 metros (100 M), que es la distancia libre. Material compacto (Incluye 30% de expansion). | E9: m³/km | F9: =+'Memorias T1'!L37 -> 145844 | G9: ='1.2'!H32 -> 2000 | H9: 291688000 | AA9: =+IF(Tabla4[[#This Row],[Valor parcial]]=0,"ocultar","visible") -> visible
B10: 1.3 | C10: 310.1 | D10: Conformación de la calzada existente. | E10: m² | F10: =+'Memorias T1'!L46 -> 17064 | G10: =+'1.3'!H33 -> 4615.227792 | H10: 78754247 | AA10: =+IF(Tabla4[[#This Row],[Valor parcial]]=0,"ocultar","visible") -> visible
B11: =+IF('Datos generales'!C33>0,"1.4","BORRAR 1") -> 1.4 | C11: 320.3 | D11: =+CONCATENATE("Suministro, extendida y compactación de material seleccionado para Sub-Base Granular ",'Datos generales'!C32," (incluye transporte)") -> Suministro, extendida y compactación de material seleccionado para Sub-Base Granular Clase B (incluye transporte) | E11: m³ | F11: =+'Memorias T1'!L56 -> 2224.8 | G11: =+'1.4'!H33 -> 171165.9817 | H11: 380810076 | AA11: =+IF(Tabla4[[#This Row],[Valor parcial]]=0,"ocultar","visible") -> visible
B12: =+IF(AND('Datos generales'!C31>0,B11="1.4"),"1.5",IF(AND('Datos generales'!C31>0,B11="BORRAR 1"),"1.4","BORRAR 2")) -> 1.5 | C12: 320.3 | D12: =+CONCATENATE("Suministro, extendida y compactación de material seleccionado para Base Granular ",'Datos generales'!C30," (incluye transporte)") -> Suministro, extendida y compactación de material seleccionado para Base Granular Clase B (incluye transporte) | E12: m³ | F12: =+'Memorias T1'!L66 -> 3931.2 | G12: =+'1.5'!H33 -> 171164.6817 | H12: =ROUND(F12*G12,0) -> 672882597 | AA12: =+IF(Tabla4[[#This Row],[Valor parcial]]=0,"ocultar","visible") -> visible
B13: =+IF(AND('Datos generales'!C34>0,'Presupuesto General'!B12="1.5"),"1.6",IF(AND('Datos generales'!C34>0,'Presupuesto General'!B12="1.4"),"1.5",IF(AND('Datos generales'!C34>0,'Presupuesto General'!B12="BORRAR 2",B11<>"BORRAR 1"),"1.5",IF(AND('Datos generales'!C34>0,'Presupuesto General'!B12="BORRAR 2",B11="BORRAR 1"),"1.4","BORRAR 3")))) -> 1.6 | C13: 610.1 | D13: Material de afirmado o mejoramiento | E13: m³ | F13: =+'Memorias T1'!L77 -> 3561.6 | G13: =+'1.6'!H32 -> 125518.3417 | H13: 447046126 | AA13: =+IF(Tabla4[[#This Row],[Valor parcial]]=0,"ocultar","visible") -> visible
B14: =+IF(AND(B11="BORRAR 1",B12="BORRAR 2",B13="BORRAR 3"),"1.4",IF(B13="1.4","1.5",IF(B13="1.5","1.6",IF(AND(B11="BORRAR 1",B12<>"BORRAR 2",B13="BORRAR 3"),"1.5",IF(AND(B12="BORRAR 2",B13="BORRAR 3",B11<>"BORRAR 1"),"1.5",IF(AND(B11<>"BORRAR 1",B12<>"BORRAR 2",B13="BORRAR 3"),"1.6","1.7")))))) -> 1.7 | C14: 500.1 | D14: =+CONCATENATE("Losa de concreto MR=",'Datos generales'!C37," Mpa. Suministro, Formaleteado, Colocación, Curado, juntas y Acabado. No Incluye Acero.") -> Losa de concreto MR=3.8 Mpa. Suministro, Formaleteado, Colocación, Curado, juntas y Acabado. No Incluye Acero. | E14: m³ | F14: =+'Memorias T1'!L87 -> 3033.07 | G14: =+'1.7'!H38 -> 922897.335 | H14: 2799212220 | AA14: =+IF(Tabla4[[#This Row],[Valor parcial]]=0,"ocultar","visible") -> visible
B15: =+IF(B14="1.4","1.5",IF(B14="1.5","1.6",IF(B14="1.6","1.7",IF(B14="1.7","1.8")))) -> 1.8 | C15: 672.2 | D15: =IF('Datos generales'!C59="Bordillo prefabricado","Suministro, Transporte e Instalacion de Bordillo Prefabricado (0.4x0.15x0.8m) ","Suministro e instalación de bordillo in-situ de 21MPa") -> Suministro, Transporte e Instalacion de Bordillo Prefabricado (0.4x0.15x0.8m) | E15: m | F15: =+'Memorias T1'!L97 -> 4320 | G15: =+'1.8'!H34 -> 56822.82667 | H15: 245474611 | AA15: =+IF(Tabla4[[#This Row],[Valor parcial]]=0,"ocultar","visible") -> visible
B16: =+IF(B15="1.5","1.6",IF(B15="1.6","1.7",IF(B15="1.7","1.8",IF(B15="1.8","1.9","ERROR")))) -> 1.9 | C16: 640.1 | D16: Acero de refuerzo fy 420MPA | E16: kg | F16: =+'Memorias T1'!L139 -> 42276.938 | G16: =+'1.9'!H32 -> 8630.191688 | H16: 364858079 | AA16: =+IF(Tabla4[[#This Row],[Valor parcial]]=0,"ocultar","visible") -> visible
B17: =+IF('Datos generales'!C58="Andén",IF(B16="1.6","1.7",IF(B16="1.7","1.8",IF(B16="1.8","1.9",IF(B16="1.9","1.10","BORRAR 4")))),"BORRAR 4") -> 1.10 | C17: 630.1 | D17: Concreto de resistencia 21MPA (D) (Andén) | E17: m³ | F17: =+'Memorias T1'!L152 -> 267.91 | G17: =+'1.10'!H39 -> 600016.9377 | H17: 160750538 | AA17: =+IF(Tabla4[[#This Row],[Valor parcial]]=0,"ocultar","visible") -> visible
B18: =+IF(B17="BORRAR 4","BORRAR 5",CONCATENATE("1.",MID(B17,3,2)+1)) -> 1.11 | D18: Suministro, transporte y colocación de loseta táctil guía y alerta para discapacitados visuales | E18: m² | F18: =+'Memorias T1'!L163 -> 1296.9 | G18: =+'1.11'!H32 -> 106792.9275 | H18: 138499748 | AA18: =+IF(Tabla4[[#This Row],[Valor parcial]]=0,"ocultar","visible") -> visible
B19: Total costos directos redondeados al peso | H19: =+SUM(H8:H18) -> 5608381060 | AA19: =+IF(H19=0,"ocultar","visible") -> visible
B20: Administración | G20: =+AIU!H57 -> 0.2361667285 | H20: =+AIU!I57 -> 1324513007 | AA20: =+IF(H20=0,"ocultar","visible") -> visible
B21: Imprevistos | G21: 0.01 | H21: =+G21*$H$19 -> 56083810.6 | AA21: visible
B22: Utilidad | G22: 0.05 | H22: =+G22*$H$19 -> 280419053 | AA22: visible
B23: SUBTOTAL AIU | G23: =+SUM(G20:G22) -> 0.2961667285 | H23: =+SUM(H20:H22) -> 1661015871 | AA23: visible
B24: Total costos Directos + A.I.U. | H24: =+H23+H19 -> 7269396931 | AA24: visible
B25: COSTO TOTAL DEL PRESUPUESTO AMBIENTAL | H25: =+Ambiental!G37 -> 16503256 | AA25: visible
B26: IMPLEMENTACIÓN DEL PLAN DE MANEJO DE TRANSITO | H26: =+PMT!I33 -> 41321324 | AA26: visible
B27: CARACTERIZACIÓN VIAL ( Resolución 1860 de 2013 y 1067 de 2015 del Ministerio de Transporte) | H27: =+'Caracterización vial'!H38 -> 11633290 | AA27: visible
B28: COSTO TOTAL DE OBRA | H28: =+H24+H25+H26+H27 -> 7338854801 | AA28: visible
B29: COSTO TOTAL DE INTERVENTORÍA TECNICA, AMBIENTAL Y FINANCIERA | H29: =+Interventoría!I36 -> 465911002.4 | AA29: visible
B30: APOYO A LA SUPERVISIÓN DEL CONTRATO | H30: =+'Supervisión contrato'!I15 -> 48000000 | AA30: visible
B31: REVISIÓN DE ESTUDIOS Y DISEÑOS | H31: =+'Revisión estudios'!F25 -> 94093300 | AA31: visible
B32: VALOR TOTAL DEL PROYECTO REDONDEADO AL PESO | H32: =+SUM(H28:H31) -> 7946859103 | AA32: visible
AA33: ocultar

Sheet 1.1
B2: ANÁLISIS DE PRECIOS UNITARIOS
B3: CAPITULO: | C3: =+'Presupuesto General'!D7 -> Estructura de pavimento | F3: Municipio: | G3: =+'Datos generales'!C5 -> Apartadó
F4: Departamento: | G4: =+'Datos generales'!C6 -> Antioquia
B5: ACTIVIDAD: | C5: =VLOOKUP(C6,Tabla4[],3,FALSE) -> Excavación en material común de la explanación y canales. No incluye transporte ni disposición final del material sobrante.
B6: ITEM: | C6: =+'Presupuesto General'!B8 -> 1.1 | G6: UNIDAD | H6: =VLOOKUP(C6,Tabla4[],4,FALSE) -> m³
B7: I. MATERIALES EN OBRA
B8: Descripción | D8: Unidad | E8: Precio-Unit. | F8: Cantidad | G8: Valor Unitario
B9: - | D9: =IF(B9="","",VLOOKUP(B9,Tabla1[[INSUMO]:[PRECIO]],2,FALSE)) -> - | E9: =IF(B9="","",VLOOKUP(B9,Tabla1[[INSUMO]:[PRECIO]],3,FALSE)) -> - | G9: =IF(B9="-","-",F9*E9) -> -
B10: - | D10: =IF(B10="","",VLOOKUP(B10,Tabla1[[INSUMO]:[PRECIO]],2,FALSE)) -> - | E10: =IF(B10="","",VLOOKUP(B10,Tabla1[[INSUMO]:[PRECIO]],3,FALSE)) -> - | G10: =IF(B10="-","-",F10*E10) -> -
G11: Sub-Total | H11: =+SUM(G9:G11) -> 0
B13: II. EQUIPO Y HERRAMIENTAS
B14: Descripción | D14: Unidad | E14: Tarifa/Unidad | F14: Rendimiento | G14: Valor Unitario
B15: =CONCATENATE("Herramientas menores ",F15*100,"%M.O") -> Herramientas menores 5%M.O | F15: 0.05 | G15: =F15*H30 -> 14.1829375
B16: Buldozer, Potencia al volante de 140 HP, motor de 2200 RPM, longitud de hoja 4,80 m. | D16: =IF(B16="","",VLOOKUP(B16,Tabla2[[EQUIPOS Y TRANSPORTE]:[PRECIO]],2,FALSE)) -> h | E16: =IF(B16="","",VLOOKUP(B16,Tabla2[[EQUIPOS Y TRANSPORTE]:[PRECIO]],3,FALSE)) -> 180000 | F16: 100 | G16: =IF(B16="-","-",E16/F16) -> 1800
B17: Retroexcavadora de llantas, motor 62 HP, profundidad de excavacion de 5.41m | D17: =IF(B17="","",VLOOKUP(B17,Tabla2[[EQUIPOS Y TRANSPORTE]:[PRECIO]],2,FALSE)) -> h | E17: =IF(B17="","",VLOOKUP(B17,Tabla2[[EQUIPOS Y TRANSPORTE]:[PRECIO]],3,FALSE)) -> 170000 | F17: 100 | G17: =IF(B17="-","-",E17/F17) -> 1700
G18: Sub-Total | H18: =+SUM(G15:G18) -> 3514.182937
B20: III. TRANSPORTES
B21: Materiales | C21: Vol-Peso | D21: Distancia | E21: m³/km | F21: Tarifa | G21: Valor Unitario
E22: =IF(D22=0,"",C22*D22) ->  | F22: =IF(B22="","",'Equipos y transporte'!$E$63) ->  | G22: =+IF(B22="","",E22*F22) -> 
E23: =IF(D23=0,"",C23*D23) ->  | F23: =IF(B23="","",'Equipos y transporte'!$E$63) ->  | G23: =+IF(B23="","",E23*F23) -> 
G24: Sub-Total | H24: =+SUM(G22:G24) -> 0
B26: IV. MANO DE OBRA
B27: Trabajador o Cuadrilla | C27: Cantidad | D27: Jornal/und* | E27: Jornal total | F27: Rendimiento | G27: Valor Unitario
B28: Oficial de construccion | C28: 1 | D28: =VLOOKUP(B28,Tabla3[],6,FALSE) -> 95915 | E28: =+D28*C28 -> 95915 | F28: =+F16*8 -> 800 | G28: =+E28/F28 -> 119.89375
B29: Ayudante de construccion | C29: 2 | D29: =VLOOKUP(B29,Tabla3[],6,FALSE) -> 65506 | E29: =+D29*C29 -> 131012 | F29: =+F28 -> 800 | G29: =+E29/F29 -> 163.765
G30: Sub-Total | H30: =+SUM(G28:G30) -> 283.65875
B31: *Incluye prestaciones de ley
B32: Total Costos Directos | F32: =+B6 -> ITEM: | G32: =+C6 -> 1.1 | H32: =+H11+H18+H24+H30 -> 3797.841687

Sheet 1.2
B2: ANÁLISIS DE PRECIOS UNITARIOS
B3: CAPITULO: | C3: =+'Presupuesto General'!D7 -> Estructura de pavimento | F3: Municipio: | G3: =+'Datos generales'!C5 -> Apartadó
F4: Departamento: | G4: =+'Datos generales'!C6 -> Antioquia
B5: ACTIVIDAD: | C5: =VLOOKUP(C6,Tabla4[],3,FALSE) -> Transporte de material proveniente de la excavación de la explanación, canales y prestamos para distancias mayores de mil metros (1000 M) medido a partir de 100 metros (100 M), que es la distancia libre. Material compacto (Incluye 30% de expansion).
B6: ITEM: | C6: =+'Presupuesto General'!B9 -> 1.2 | G6: UNIDAD | H6: =VLOOKUP(C6,Tabla4[],4,FALSE) -> m³/km
B7: I. MATERIALES EN OBRA
B8: Descripción | D8: Unidad | E8: Precio-Unit. | F8: Cantidad | G8: Valor Unitario
B9: - | D9: =IF(B9="","",VLOOKUP(B9,Tabla1[[INSUMO]:[PRECIO]],2,FALSE)) -> - | E9: =IF(B9="","",VLOOKUP(B9,Tabla1[[INSUMO]:[PRECIO]],3,FALSE)) -> - | G9: =IF(B9="-","-",F9*E9) -> -
B10: - | D10: =IF(B10="","",VLOOKUP(B10,Tabla1[[INSUMO]:[PRECIO]],2,FALSE)) -> - | E10: =IF(B10="","",VLOOKUP(B10,Tabla1[[INSUMO]:[PRECIO]],3,FALSE)) -> - | G10: =IF(B10="-","-",F10*E10) -> -
G11: Sub-Total | H11: =+SUM(G9:G11) -> 0
B13: II. EQUIPO Y HERRAMIENTAS
B14: Descripción | D14: Unidad | E14: Tarifa/Unidad | F14: Rendimiento | G14: Valor Unitario
B15: =CONCATENATE("Herramientas menores ",F15*100,"%M.O") -> Herramientas menores 5%M.O | F15: 0.05 | G15: =F15*H30 -> 0
B16: Volqueta 6 m³ | D16: =IF(B16="","",VLOOKUP(B16,Tabla2[[EQUIPOS Y TRANSPORTE]:[PRECIO]],2,FALSE)) -> h | E16: =IF(B16="","",VLOOKUP(B16,Tabla2[[EQUIPOS Y TRANSPORTE]:[PRECIO]],3,FALSE)) -> 200000 | F16: 100 | G16: =IF(B16="-","-",E16/F16) -> 2000
B17: - | D17: =IF(B17="","",VLOOKUP(B17,Tabla2[[EQUIPOS Y TRANSPORTE]:[PRECIO]],2,FALSE)) -> - | E17: =IF(B17="","",VLOOKUP(B17,Tabla2[[EQUIPOS Y TRANSPORTE]:[PRECIO]],3,FALSE)) -> - | G17: =IF(B17="-","-",E17/F17) -> -
G18: Sub-Total | H18: =+SUM(G15:G18) -> 2000
B20: III. TRANSPORTES
B21: Materiales | C21: Vol-Peso | D21: Distancia | E21: m³/km | F21: Tarifa | G21: Valor Unitario
E22: =IF(D22=0,"",C22*D22) ->  | F22: =IF(B22="","",'Equipos y transporte'!$E$63) ->  | G22: =+IF(B22="","",E22*F22) -> 
E23: =IF(D23=0,"",C23*D23) ->  | F23: =IF(B23="","",'Equipos y transporte'!$E$63) ->  | G23: =+IF(B23="","",E23*F23) -> 
G24: Sub-Total | H24: =+SUM(G22:G24) -> 0
B26: IV. MANO DE OBRA
B27: Trabajador o Cuadrilla | C27: Cantidad | D27: Jornal/und* | E27: Jornal total | F27: Rendimiento | G27: Valor Unitario
B28: - | D28: =VLOOKUP(B28,Tabla3[],6,FALSE) -> - | E28: =IF(B28="-","-",D28*C28) -> - | G28: =IF(B28="-","-",E28/F28) -> -
B29: - | D29: =VLOOKUP(B29,Tabla3[],6,FALSE) -> - | E29: =IF(B29="-","-",D29*C29) -> - | G29: =IF(B29="-","-",E29/F29) -> -
G30: Sub-Total | H30: =+SUM(G28:G30) -> 0
B31: *Incluye prestaciones de ley
B32: Total Costos Directos | F32: =+B6 -> ITEM: | G32: =+C6 -> 1.2 | H32: =+H11+H18+H24+H30 -> 2000

Sheet 1.3
B2: ANÁLISIS DE PRECIOS UNITARIOS
B3: CAPITULO: | C3: =+'Presupuesto General'!D7 -> Estructura de pavimento | F3: Municipio: | G3: =+'Datos generales'!C5 -> Apartadó
F4: Departamento: | G4: =+'Datos generales'!C6 -> Antioquia
B5: ACTIVIDAD: | C5: =VLOOKUP(C6,Tabla4[],3,FALSE) -> Conformación de la calzada existente.
B6: ITEM: | C6: =+'Presupuesto General'!B10 -> 1.3 | G6: UNIDAD | H6: =VLOOKUP(C6,Tabla4[],4,FALSE) -> m²
B7: I. MATERIALES EN OBRA
B8: Descripción | D8: Unidad | E8: Precio-Unit. | F8: Cantidad | G8: Valor Unitario
B9: Agua | D9: =IF(B9="","",VLOOKUP(B9,Tabla1[[INSUMO]:[PRECIO]],2,FALSE)) -> Lt | E9: =IF(B9="","",VLOOKUP(B9,Tabla1[[INSUMO]:[PRECIO]],3,FALSE)) -> 90 | F9: 5 | G9: =IF(B9="-","-",F9*E9) -> 450
B10: - | D10: =IF(B10="","",VLOOKUP(B10,Tabla1[[INSUMO]:[PRECIO]],2,FALSE)) -> - | E10: =IF(B10="","",VLOOKUP(B10,Tabla1[[INSUMO]:[PRECIO]],3,FALSE)) -> - | G10: =IF(B10="-","-",F10*E10) -> -
G11: Sub-Total | H11: =+SUM(G9:G11) -> 450
B13: II. EQUIPO Y HERRAMIENTAS
B14: Descripción | D14: Unidad | E14: Tarifa/Unidad | F14: Rendimiento | G14: Valor Unitario
B15: =CONCATENATE("Herramientas menores ",F15*100,"%M.O") -> Herramientas menores 5%M.O | F15: 0.05 | G15: =F15*H31 -> 9.455291667
B16: Motoniveladora potencia 215 HP, ancho de cuchilla 4,27 m, peso 18 ton. | D16: =IF(B16="","",VLOOKUP(B16,Tabla2[[EQUIPOS Y TRANSPORTE]:[PRECIO]],2,FALSE)) -> h | E16: =IF(B16="","",VLOOKUP(B16,Tabla2[[EQUIPOS Y TRANSPORTE]:[PRECIO]],3,FALSE)) -> 200000 | F16: 150 | G16: =IF(B16="-","-",E16/F16) -> 1333.333333
B17: Vibrocompatador, potencia 153 HP, peso 10 Ton. | D17: =IF(B17="","",VLOOKUP(B17,Tabla2[[EQUIPOS Y TRANSPORTE]:[PRECIO]],2,FALSE)) -> h | E17: =IF(B17="","",VLOOKUP(B17,Tabla2[[EQUIPOS Y TRANSPORTE]:[PRECIO]],3,FALSE)) -> 170000 | F17: =+F16 -> 150 | G17: =IF(B17="-","-",E17/F17) -> 1133.333333
B18: Carrotanque de Agua 1000 gl | D18: =IF(B18="","",VLOOKUP(B18,Tabla2[[EQUIPOS Y TRANSPORTE]:[PRECIO]],2,FALSE)) -> h | E18: =IF(B18="","",VLOOKUP(B18,Tabla2[[EQUIPOS Y TRANSPORTE]:[PRECIO]],3,FALSE)) -> 225000 | F18: =+F17 -> 150 | G18: =IF(B18="-","-",E18/F18) -> 1500
G19: Sub-Total | H19: =+SUM(G15:G19) -> 3976.121958
B21: III. TRANSPORTES
B22: Materiales | C22: Vol-Peso | D22: Distancia | E22: m³/km | F22: Tarifa | G22: Valor Unitario
E23: =IF(D23=0,"",C23*D23) ->  | F23: =IF(B23="","",'Equipos y transporte'!$E$63) ->  | G23: =+IF(B23="","",E23*F23) -> 
E24: =IF(D24=0,"",C24*D24) ->  | F24: =IF(B24="","",'Equipos y transporte'!$E$63) ->  | G24: =+IF(B24="","",E24*F24) -> 
G25: Sub-Total | H25: =+SUM(G23:G25) -> 0
B27: IV. MANO DE OBRA
B28: Trabajador o Cuadrilla | C28: Cantidad | D28: Jornal/und* | E28: Jornal total | F28: Rendimiento | G28: Valor Unitario
B29: Oficial de construccion | C29: 1 | D29: =VLOOKUP(B29,Tabla3[],6,FALSE) -> 95915 | E29: =+D29*C29 -> 95915 | F29: =+F16*8 -> 1200 | G29: =+E29/F29 -> 79.92916667
B30: Ayudante de construccion | C30: 2 | D30: =VLOOKUP(B30,Tabla3[],6,FALSE) -> 65506 | E30: =+D30*C30 -> 131012 | F30: =+F29 -> 1200 | G30: =+E30/F30 -> 109.1766667
G31: Sub-Total | H31: =+SUM(G29:G31) -> 189.1058333
B32: *Incluye prestaciones de ley
B33: Total Costos Directos | F33: =+B6 -> ITEM: | G33: =+C6 -> 1.3 | H33: =+H11+H19+H25+H31 -> 4615.227792

Sheet 1.4
B2: ANÁLISIS DE PRECIOS UNITARIOS
B3: CAPITULO: | C3: =+'Presupuesto General'!D7 -> Estructura de pavimento | F3: Municipio: | G3: =+'Datos generales'!C5 -> Apartadó
F4: Departamento: | G4: =+'Datos generales'!C6 -> Antioquia
B5: ACTIVIDAD: | C5: =VLOOKUP(C6,Tabla4[],3,FALSE) -> Suministro, extendida y compactación de material seleccionado para Sub-Base Granular Clase B (incluye transporte)
B6: ITEM: | C6: =+'Presupuesto General'!B11 -> 1.4 | G6: UNIDAD | H6: =VLOOKUP(C6,Tabla4[],4,FALSE) -> m³
B7: I. MATERIALES EN OBRA
B8: Descripción | D8: Unidad | E8: Precio-Unit. | F8: Cantidad | G8: Valor Unitario
B9: Agua | D9: =IF(B9="","",VLOOKUP(B9,Tabla1[[INSUMO]:[PRECIO]],2,FALSE)) -> Lt | E9: =IF(B9="","",VLOOKUP(B9,Tabla1[[INSUMO]:[PRECIO]],3,FALSE)) -> 90 | F9: 10 | G9: =IF(B9="-","-",F9*E9) -> 900
B10: Material de subbase | D10: =IF(B10="","",VLOOKUP(B10,Tabla1[[INSUMO]:[PRECIO]],2,FALSE)) -> m³ | E10: =IF(B10="","",VLOOKUP(B10,Tabla1[[INSUMO]:[PRECIO]],3,FALSE)) -> 77542.8 | F10: 1.3 | G10: =IF(B10="-","-",F10*E10) -> 100805.64
G11: Sub-Total | H11: =+SUM(G9:G11) -> 101705.64
B13: II. EQUIPO Y HERRAMIENTAS
B14: Descripción | D14: Unidad | E14: Tarifa/Unidad | F14: Rendimiento | G14: Valor Unitario
B15: =CONCATENATE("Herramientas menores ",F15*100,"%M.O") -> Herramientas menores 5%M.O | F15: 0.05 | G15: =F15*H31 -> 14.1829375
B16: Motoniveladora potencia 215 HP, ancho de cuchilla 4,27 m | D16: =IF(B16="","",VLOOKUP(B16,Tabla2[[EQUIPOS Y TRANSPORTE]:[PRECIO]],2,FALSE)) -> h | E16: =IF(B16="","",VLOOKUP(B16,Tabla2[[EQUIPOS Y TRANSPORTE]:[PRECIO]],3,FALSE)) -> 200000 | F16: 100 | G16: =IF(B16="-","-",E16/F16) -> 2000
B17: Vibrocompatador, potencia 153 HP, peso 10 Ton. | D17: =IF(B17="","",VLOOKUP(B17,Tabla2[[EQUIPOS Y TRANSPORTE]:[PRECIO]],2,FALSE)) -> h | E17: =IF(B17="","",VLOOKUP(B17,Tabla2[[EQUIPOS Y TRANSPORTE]:[PRECIO]],3,FALSE)) -> 170000 | F17: 100 | G17: =IF(B17="-","-",E17/F17) -> 1700
B18: Carrotanque de Agua 1000 gl | D18: =IF(B18="","",VLOOKUP(B18,Tabla2[[EQUIPOS Y TRANSPORTE]:[PRECIO]],2,FALSE)) -> h | E18: =IF(B18="","",VLOOKUP(B18,Tabla2[[EQUIPOS Y TRANSPORTE]:[PRECIO]],3,FALSE)) -> 225000 | F18: 100 | G18: =IF(B18="-","-",E18/F18) -> 2250
G19: Sub-Total | H19: =+SUM(G15:G19) -> 5964.182937
B21: III. TRANSPORTES
B22: Materiales | C22: Vol-Peso | D22: Distancia | E22: m³/km | F22: Tarifa | G22: Valor Unitario
B23: =+B10 -> Material de subbase | C23: =+F10 -> 1.3 | D23: =+'Datos generales'!C12 -> 25 | E23: =IF(D23=0,"",C23*D23) -> 32.5 | F23: =IF(B23="","",'Equipos y transporte'!$E$63) -> 1945 | G23: =+IF(B23="","",E23*F23) -> 63212.5
E24: =IF(D24=0,"",C24*D24) ->  | F24: =IF(B24="","",'Equipos y transporte'!$E$63) ->  | G24: =+IF(B24="","",E24*F24) -> 
G25: Sub-Total | H25: =+SUM(G23:G25) -> 63212.5
B27: IV. MANO DE OBRA
B28: Trabajador o Cuadrilla | C28: Cantidad | D28: Jornal/und* | E28: Jornal total | F28: Rendimiento | G28: Valor Unitario
B29: Oficial de construccion | C29: 1 | D29: =VLOOKUP(B29,Tabla3[],6,FALSE) -> 95915 | E29: =+D29*C29 -> 95915 | F29: =+F16*8 -> 800 | G29: =+E29/F29 -> 119.89375
B30: Ayudante de construccion | C30: 2 | D30: =VLOOKUP(B30,Tabla3[],6,FALSE) -> 65506 | E30: =+D30*C30 -> 131012 | F30: =+F29 -> 800 | G30: =+E30/F30 -> 163.765
G31: Sub-Total | H31: =+SUM(G29:G31) -> 283.65875
B32: *Incluye prestaciones de ley
B33: Total Costos Directos | F33: =+B6 -> ITEM: | G33: =+C6 -> 1.4 | H33: =+H11+H19+H25+H31 -> 171165.9817

Sheet 1.5
B2: ANÁLISIS DE PRECIOS UNITARIOS
B3: CAPITULO: | C3: =+'Presupuesto General'!D7 -> Estructura de pavimento | F3: Municipio: | G3: =+'Datos generales'!C5 -> Apartadó
F4: Departamento: | G4: =+'Datos generales'!C6 -> Antioquia
B5: ACTIVIDAD: | C5: =VLOOKUP(C6,Tabla4[],3,FALSE) -> Suministro, extendida y compactación de material seleccionado para Base Granular Clase B (incluye transporte)
B6: ITEM: | C6: =+'Presupuesto General'!B12 -> 1.5 | G6: UNIDAD | H6: =VLOOKUP(C6,Tabla4[],4,FALSE) -> m³
B7: I. MATERIALES EN OBRA
B8: Descripción | D8: Unidad | E8: Precio-Unit. | F8: Cantidad | G8: Valor Unitario
B9: Agua | D9: =IF(B9="","",VLOOKUP(B9,Tabla1[[INSUMO]:[PRECIO]],2,FALSE)) -> Lt | E9: =IF(B9="","",VLOOKUP(B9,Tabla1[[INSUMO]:[PRECIO]],3,FALSE)) -> 90 | F9: 10 | G9: =IF(B9="-","-",F9*E9) -> 900
B10: Material de base | D10: =IF(B10="","",VLOOKUP(B10,Tabla1[[INSUMO]:[PRECIO]],2,FALSE)) -> m³ | E10: =IF(B10="","",VLOOKUP(B10,Tabla1[[INSUMO]:[PRECIO]],3,FALSE)) -> 77541.8 | F10: 1.3 | G10: =IF(B10="-","-",F10*E10) -> 100804.34
G11: Sub-Total | H11: =+SUM(G9:G11) -> 101704.34
B13: II. EQUIPO Y HERRAMIENTAS
B14: Descripción | D14: Unidad | E14: Tarifa/Unidad | F14: Rendimiento | G14: Valor Unitario
B15: =CONCATENATE("Herramientas menores ",F15*100,"%M.O") -> Herramientas menores 5%M.O | F15: 0.05 | G15: =F15*H31 -> 14.1829375
B16: Motoniveladora potencia 215 HP, ancho de cuchilla 4,27 m | D16: =IF(B16="","",VLOOKUP(B16,Tabla2[[EQUIPOS Y TRANSPORTE]:[PRECIO]],2,FALSE)) -> h | E16: =IF(B16="","",VLOOKUP(B16,Tabla2[[EQUIPOS Y TRANSPORTE]:[PRECIO]],3,FALSE)) -> 200000 | F16: 100 | G16: =IF(B16="-","-",E16/F16) -> 2000
B17: Vibrocompatador, potencia 153 HP, peso 10 Ton. | D17: =IF(B17="","",VLOOKUP(B17,Tabla2[[EQUIPOS Y TRANSPORTE]:[PRECIO]],2,FALSE)) -> h | E17: =IF(B17="","",VLOOKUP(B17,Tabla2[[EQUIPOS Y TRANSPORTE]:[PRECIO]],3,FALSE)) -> 170000 | F17: 100 | G17: =IF(B17="-","-",E17/F17) -> 1700
B18: Carrotanque de Agua 1000 gl | D18: =IF(B18="","",VLOOKUP(B18,Tabla2[[EQUIPOS Y TRANSPORTE]:[PRECIO]],2,FALSE)) -> h | E18: =IF(B18="","",VLOOKUP(B18,Tabla2[[EQUIPOS Y TRANSPORTE]:[PRECIO]],3,FALSE)) -> 225000 | F18: 100 | G18: =IF(B18="-","-",E18/F18) -> 2250
G19: Sub-Total | H19: =+SUM(G15:G19) -> 5964.182937
B21: III. TRANSPORTES
B22: Materiales | C22: Vol-Peso | D22: Distancia | E22: m³/km | F22: Tarifa | G22: Valor Unitario
B23: =+B10 -> Material de base | C23: =+F10 -> 1.3 | D23: =+'Datos generales'!C12 -> 25 | E23: =IF(D23=0,"",C23*D23) -> 32.5 | F23: =IF(B23="","",'Equipos y transporte'!$E$63) -> 1945 | G23: =+IF(B23="","",E23*F23) -> 63212.5
E24: =IF(D24=0,"",C24*D24) ->  | F24: =IF(B24="","",'Equipos y transporte'!$E$63) ->  | G24: =+IF(B24="","",E24*F24) -> 
G25: Sub-Total | H25: =+SUM(G23:G25) -> 63212.5
B27: IV. MANO DE OBRA
B28: Trabajador o Cuadrilla | C28: Cantidad | D28: Jornal/und* | E28: Jornal total | F28: Rendimiento | G28: Valor Unitario
B29: Oficial de construccion | C29: 1 | D29: =VLOOKUP(B29,Tabla3[],6,FALSE) -> 95915 | E29: =+D29*C29 -> 95915 | F29: =+F16*8 -> 800 | G29: =+E29/F29 -> 119.89375
B30: Ayudante de construccion | C30: 2 | D30: =VLOOKUP(B30,Tabla3[],6,FALSE) -> 65506 | E30: =+D30*C30 -> 131012 | F30: =+F29 -> 800 | G30: =+E30/F30 -> 163.765
G31: Sub-Total | H31: =+SUM(G29:G31) -> 283.65875
B32: *Incluye prestaciones de ley
B33: Total Costos Directos | F33: =+B6 -> ITEM: | G33: =+C6 -> 1.5 | H33: =+H11+H19+H25+H31 -> 171164.6817

Sheet 1.6
B2: ANÁLISIS DE PRECIOS UNITARIOS
B3: CAPITULO: | C3: =+'Presupuesto General'!D7 -> Estructura de pavimento | F3: Municipio: | G3: =+'Datos generales'!C5 -> Apartadó
F4: Departamento: | G4: =+'Datos generales'!C6 -> Antioquia
B5: ACTIVIDAD: | C5: =VLOOKUP(C6,Tabla4[],3,FALSE) -> Material de afirmado o mejoramiento
B6: ITEM: | C6: =+'Presupuesto General'!B13 -> 1.6 | G6: UNIDAD | H6: =VLOOKUP(C6,Tabla4[],4,FALSE) -> m³
B7: I. MATERIALES EN OBRA
B8: Descripción | D8: Unidad | E8: Precio-Unit. | F8: Cantidad | G8: Valor Unitario
B9: Material de Recebo Para Relleno | D9: =IF(B9="","",VLOOKUP(B9,Tabla1[[INSUMO]:[PRECIO]],2,FALSE)) -> m³ | E9: =IF(B9="","",VLOOKUP(B9,Tabla1[[INSUMO]:[PRECIO]],3,FALSE)) -> 44160 | F9: 1.3 | G9: =IF(B9="-","-",F9*E9) -> 57408
B10: Agua | D10: =IF(B10="","",VLOOKUP(B10,Tabla1[[INSUMO]:[PRECIO]],2,FALSE)) -> Lt | E10: =IF(B10="","",VLOOKUP(B10,Tabla1[[INSUMO]:[PRECIO]],3,FALSE)) -> 90 | F10: 10 | G10: =IF(B10="-","-",F10*E10) -> 900
G11: Sub-Total | H11: =+SUM(G9:G11) -> 58308
B13: II. EQUIPO Y HERRAMIENTAS
B14: Descripción | D14: Unidad | E14: Tarifa/Unidad | F14: Rendimiento | G14: Valor Unitario
B15: =CONCATENATE("Herramientas menores ",F15*100,"%M.O") -> Herramientas menores 5%M.O | F15: 0.05 | G15: =F15*H30 -> 14.1829375
B16: Motoniveladora potencia 215 HP, ancho de cuchilla 4,27 m | D16: =IF(B16="","",VLOOKUP(B16,Tabla2[[EQUIPOS Y TRANSPORTE]:[PRECIO]],2,FALSE)) -> h | E16: =IF(B16="","",VLOOKUP(B16,Tabla2[[EQUIPOS Y TRANSPORTE]:[PRECIO]],3,FALSE)) -> 200000 | F16: 100 | G16: =IF(B16="-","-",E16/F16) -> 2000
B17: Vibrocompatador, potencia 153 HP, peso 10 Ton. | D17: =IF(B17="","",VLOOKUP(B17,Tabla2[[EQUIPOS Y TRANSPORTE]:[PRECIO]],2,FALSE)) -> h | E17: =IF(B17="","",VLOOKUP(B17,Tabla2[[EQUIPOS Y TRANSPORTE]:[PRECIO]],3,FALSE)) -> 170000 | F17: 100 | G17: =IF(B17="-","-",E17/F17) -> 1700
G18: Sub-Total | H18: =+SUM(G15:G18) -> 3714.182937
B20: III. TRANSPORTES
B21: Materiales | C21: Vol-Peso | D21: Distancia | E21: m³/km | F21: Tarifa | G21: Valor Unitario
B22: =+B9 -> Material de Recebo Para Relleno | C22: =+F9 -> 1.3 | D22: =+'Datos generales'!C13 -> 25 | E22: =IF(D22=0,"",C22*D22) -> 32.5 | F22: =IF(B22="","",'Equipos y transporte'!$E$63) -> 1945 | G22: =+IF(B22="","",E22*F22) -> 63212.5
E23: =IF(D23=0,"",C23*D23) ->  | F23: =IF(B23="","",'Equipos y transporte'!$E$63) ->  | G23: =+IF(B23="","",E23*F23) -> 
G24: Sub-Total | H24: =+SUM(G22:G24) -> 63212.5
B26: IV. MANO DE OBRA
B27: Trabajador o Cuadrilla | C27: Cantidad | D27: Jornal/und* | E27: Jornal total | F27: Rendimiento | G27: Valor Unitario
B28: Oficial de construccion | C28: 1 | D28: =VLOOKUP(B28,Tabla3[],6,FALSE) -> 95915 | E28: =+D28*C28 -> 95915 | F28: =+F16*8 -> 800 | G28: =+E28/F28 -> 119.89375
B29: Ayudante de construccion | C29: 2 | D29: =VLOOKUP(B29,Tabla3[],6,FALSE) -> 65506 | E29: =+D29*C29 -> 131012 | F29: =+F28 -> 800 | G29: =+E29/F29 -> 163.765
G30: Sub-Total | H30: =+SUM(G28:G30) -> 283.65875
B31: *Incluye prestaciones de ley
B32: Total Costos Directos | F32: =+B6 -> ITEM: | G32: =+C6 -> 1.6 | H32: =+H11+H18+H24+H30 -> 125518.3417

Sheet 1.7
B2: ANÁLISIS DE PRECIOS UNITARIOS
B3: CAPITULO: | C3: =+'Presupuesto General'!D7 -> Estructura de pavimento | F3: Municipio: | G3: =+'Datos generales'!C5 -> Apartadó
F4: Departamento: | G4: =+'Datos generales'!C6 -> Antioquia
B5: ACTIVIDAD: | C5: =VLOOKUP(C6,Tabla4[],3,FALSE) -> Losa de concreto MR=3.8 Mpa. Suministro, Formaleteado, Colocación, Curado, juntas y Acabado. No Incluye Acero.
B6: ITEM: | C6: =+'Presupuesto General'!B14 -> 1.7 | G6: UNIDAD | H6: =VLOOKUP(C6,Tabla4[],4,FALSE) -> m³
B7: I. MATERIALES EN OBRA
B8: Descripción | D8: Unidad | E8: Precio-Unit. | F8: Cantidad | G8: Valor Unitario
B9: =+Insumos!C39 -> Concreto premezclado hidráulico para pavimento MR-3.8MPa incluye servicio de bombeo T.Max . 1'' Asent.(7+/-1'') | D9: =IF(B9="","",VLOOKUP(B9,Tabla1[[INSUMO]:[PRECIO]],2,FALSE)) -> m³ | E9: =IF(B9="","",VLOOKUP(B9,Tabla1[[INSUMO]:[PRECIO]],3,FALSE)) -> 701740 | F9: 1.05 | G9: =IF(B9="-","-",F9*E9) -> 736827
B10: Aditivo curador | D10: =IF(B10="","",VLOOKUP(B10,Tabla1[[INSUMO]:[PRECIO]],2,FALSE)) -> kg | E10: =IF(B10="","",VLOOKUP(B10,Tabla1[[INSUMO]:[PRECIO]],3,FALSE)) -> 21875 | F10: 1.05 | G10: =IF(B10="-","-",F10*E10) -> 22968.75
B11: Cintilla De Poliuretano (Pavimentos De Concreto Hidráulico) | D11: =IF(B11="","",VLOOKUP(B11,Tabla1[[INSUMO]:[PRECIO]],2,FALSE)) -> m | E11: =IF(B11="","",VLOOKUP(B11,Tabla1[[INSUMO]:[PRECIO]],3,FALSE)) -> 1398 | F11: 1.5 | G11: =IF(B11="-","-",F11*E11) -> 2097
B12: Sello de silicona o sellador autonivelante | D12: =IF(B12="","",VLOOKUP(B12,Tabla1[[INSUMO]:[PRECIO]],2,FALSE)) -> m | E12: =IF(B12="","",VLOOKUP(B12,Tabla1[[INSUMO]:[PRECIO]],3,FALSE)) -> 9370 | F12: 1.05 | G12: =IF(B12="-","-",F12*E12) -> 9838.5
B13: Canastilla o silla pasajuntas | D13: =IF(B13="","",VLOOKUP(B13,Tabla1[[INSUMO]:[PRECIO]],2,FALSE)) -> un | E13: =IF(B13="","",VLOOKUP(B13,Tabla1[[INSUMO]:[PRECIO]],3,FALSE)) -> 26500 | F13: 0.9 | G13: =IF(B13="-","-",F13*E13) -> 23850
G14: Sub-Total | H14: =+SUM(G9:G14) -> 795581.25
B16: II. EQUIPO Y HERRAMIENTAS
B17: Descripción | D17: Unidad | E17: Tarifa/Unidad | F17: Rendimiento | G17: Valor Unitario
B18: =CONCATENATE("Herramientas menores ",F18*100,"%M.O") -> Herramientas menores 5%M.O | F18: 0.05 | G18: =F18*H36 -> 2772.285
B19: Vibrador de concreto, Motor de 3 hp a 18.000 rpm Mangueras de 4 mt | D19: =IF(B19="","",VLOOKUP(B19,Tabla2[[EQUIPOS Y TRANSPORTE]:[PRECIO]],2,FALSE)) -> h | E19: =IF(B19="","",VLOOKUP(B19,Tabla2[[EQUIPOS Y TRANSPORTE]:[PRECIO]],3,FALSE)) -> 8640 | F19: =F20/8 -> 1.25 | G19: =IF(B19="-","-",E19/F19) -> 6912
B20: Formaleta metálica (concreto hidráulico) | D20: =IF(B20="","",VLOOKUP(B20,Tabla2[[EQUIPOS Y TRANSPORTE]:[PRECIO]],2,FALSE)) -> Dia | E20: =IF(B20="","",VLOOKUP(B20,Tabla2[[EQUIPOS Y TRANSPORTE]:[PRECIO]],3,FALSE)) -> 21600 | F20: 10 | G20: =IF(B20="-","-",E20/F20) -> 2160
B21: Aspersor manual (día) | D21: =IF(B21="","",VLOOKUP(B21,Tabla2[[EQUIPOS Y TRANSPORTE]:[PRECIO]],2,FALSE)) -> día | E21: =IF(B21="","",VLOOKUP(B21,Tabla2[[EQUIPOS Y TRANSPORTE]:[PRECIO]],3,FALSE)) -> 20160 | F21: 10 | G21: =IF(B21="-","-",E21/F21) -> 2016
B22: Cortadora de pavimento, Máxima profundidad de corte: 160 mm. Capacidad de disco: desde 12´´ hasta 18´´ de diámetro. Peso operacional: 135 kg, 13.5 hp de potencia | D22: =IF(B22="","",VLOOKUP(B22,Tabla2[[EQUIPOS Y TRANSPORTE]:[PRECIO]],2,FALSE)) -> día | E22: =IF(B22="","",VLOOKUP(B22,Tabla2[[EQUIPOS Y TRANSPORTE]:[PRECIO]],3,FALSE)) -> 114000 | F22: 10 | G22: =IF(B22="-","-",E22/F22) -> 11400
B23: Regla vibratoria, de longitud de 3 a 5 m, motor de 3600 rpm, potencia 6 HP | D23: =IF(B23="","",VLOOKUP(B23,Tabla2[[EQUIPOS Y TRANSPORTE]:[PRECIO]],2,FALSE)) -> día | E23: =IF(B23="","",VLOOKUP(B23,Tabla2[[EQUIPOS Y TRANSPORTE]:[PRECIO]],3,FALSE)) -> 98496 | F23: 10 | G23: =IF(B23="-","-",E23/F23) -> 9849.6
G24: Sub-Total | H24: =+SUM(G18:G24) -> 35109.885
B26: III. TRANSPORTES
B27: Materiales | C27: Vol-Peso | D27: Distancia | E27: m³/km | F27: Tarifa | G27: Valor Unitario
B28: =+B9 -> Concreto premezclado hidráulico para pavimento MR-3.8MPa incluye servicio de bombeo T.Max . 1'' Asent.(7+/-1'') | C28: =+F9 -> 1.05 | D28: 30 | E28: =IF(D28=0,"",C28*D28) -> 31.5 | F28: =IF(B28="","",'Equipos y transporte'!$E$63*0.6) -> 1167 | G28: =+IF(B28="","",E28*F28) -> 36760.5
E29: =IF(D29=0,"",C29*D29) ->  | F29: =IF(B29="","",'Equipos y transporte'!$E$63) ->  | G29: =+IF(B29="","",E29*F29) -> 
G30: Sub-Total | H30: =+SUM(G28:G30) -> 36760.5
B32: IV. MANO DE OBRA
B33: Trabajador o Cuadrilla | C33: Cantidad | D33: Jornal/und* | E33: Jornal total | F33: Rendimiento | G33: Valor Unitario
B34: Oficial de construccion | C34: 1 | D34: =VLOOKUP(B34,Tabla3[],6,FALSE) -> 95915 | E34: =+D34*C34 -> 95915 | F34: =+F19*8 -> 10 | G34: =+E34/F34 -> 9591.5
B35: Ayudante de construccion | C35: 7 | D35: =VLOOKUP(B35,Tabla3[],6,FALSE) -> 65506 | E35: =+D35*C35 -> 458542 | F35: =+F34 -> 10 | G35: =+E35/F35 -> 45854.2
G36: Sub-Total | H36: =+SUM(G34:G36) -> 55445.7
B37: *Incluye prestaciones de ley
B38: Total Costos Directos | F38: =+B6 -> ITEM: | G38: =+C6 -> 1.7 | H38: =+H14+H24+H30+H36 -> 922897.335

Sheet 1.8
B2: ANÁLISIS DE PRECIOS UNITARIOS
B3: CAPITULO: | C3: =+'Presupuesto General'!D7 -> Estructura de pavimento | F3: Municipio: | G3: =+'Datos generales'!C5 -> Apartadó
F4: Departamento: | G4: =+'Datos generales'!C6 -> Antioquia
B5: ACTIVIDAD: | C5: =VLOOKUP(C6,Tabla4[],3,FALSE) -> Suministro, Transporte e Instalacion de Bordillo Prefabricado (0.4x0.15x0.8m) | AA5: PREFABRICADO
B6: ITEM: | C6: =+'Presupuesto General'!B15 -> 1.8 | G6: UNIDAD | H6: =VLOOKUP(C6,Tabla4[],4,FALSE) -> m | AA6: Materiales
B7: I. MATERIALES EN OBRA | AA7: =+Insumos!C23 -> Bordillo Prefabricado de 0.4x0.15x0.8 | AB7: =1/0.8 -> 1.25
B8: Descripción | D8: Unidad | E8: Precio-Unit. | F8: Cantidad | G8: Valor Unitario | AA8: =+'Concretos y Morteros'!A18 -> Mortero 1:3 Con Arena Fina | AB8: 0.01
B9: =+IF('Datos generales'!C59="Bordillo prefabricado",'1.8'!AA7,'1.8'!AA18) -> Bordillo Prefabricado de 0.4x0.15x0.8 | D9: =IF(B9="","",VLOOKUP(B9,Tabla1[[INSUMO]:[PRECIO]],2,FALSE)) -> un | E9: =IF(B9="","",VLOOKUP(B9,Tabla1[[INSUMO]:[PRECIO]],3,FALSE)) -> 32500 | F9: =+IF('Datos generales'!C59="Bordillo prefabricado",AB7,AB18) -> 1.25 | G9: =IF(B9="-","-",F9*E9) -> 40625
B10: =+IF('Datos generales'!C59="Bordillo prefabricado",AA8,AA19) -> Mortero 1:3 Con Arena Fina | D10: =IF(B10="","",VLOOKUP(B10,Tabla1[[INSUMO]:[PRECIO]],2,FALSE)) -> m³ | E10: =IF(B10="","",VLOOKUP(B10,Tabla1[[INSUMO]:[PRECIO]],3,FALSE)) -> 525142 | F10: =+IF('Datos generales'!C59="Bordillo prefabricado",AB8,AB19) -> 0.01 | G10: =IF(B10="-","-",F10*E10) -> 5251.42 | AA10: Equipo y herramientas
B11: =+IF('Datos generales'!C59="Bordillo prefabricado","-",AA20) -> - | D11: =IF(B11="","",VLOOKUP(B11,Tabla1[[INSUMO]:[PRECIO]],2,FALSE)) -> - | E11: =IF(B11="","",VLOOKUP(B11,Tabla1[[INSUMO]:[PRECIO]],3,FALSE)) -> - | F11: =+IF('Datos generales'!C59="Bordillo prefabricado"," ",AB20) ->  | G11: =IF(B11="-","-",F11*E11) -> - | AA11: Herramienta menor | AB11: 0.1
B12: - | D12: =IF(B12="","",VLOOKUP(B12,Tabla1[[INSUMO]:[PRECIO]],2,FALSE)) -> - | E12: =IF(B12="","",VLOOKUP(B12,Tabla1[[INSUMO]:[PRECIO]],3,FALSE)) -> - | G12: =IF(B12="-","-",F12*E12) -> -
G13: Sub-Total | H13: =+SUM(G9:G13) -> 45876.42 | AA13: Transportes | AB13: Vol-Peso | AC13: Distancia
AA14: =+AA7 -> Bordillo Prefabricado de 0.4x0.15x0.8 | AB14: =0.45*1*0.15 -> 0.0675 | AC14: 20
B15: II. EQUIPO Y HERRAMIENTAS
B16: Descripción | D16: Unidad | E16: Tarifa/Unidad | F16: Rendimiento | G16: Valor Unitario | AA16: INSITU
B17: =CONCATENATE("Herramientas menores ",F17*100,"%M.O") -> Herramientas menores 10%M.O | F17: 0.1 | G17: =F17*H32 -> 756.4233333 | AA17: Materiales
B18: =+IF('Datos generales'!C59="Bordillo prefabricado","-",AA26) -> - | D18: =IF(B18="","",VLOOKUP(B18,Tabla2[[EQUIPOS Y TRANSPORTE]:[PRECIO]],2,FALSE)) -> - | E18: =IF(B18="","",VLOOKUP(B18,Tabla2[[EQUIPOS Y TRANSPORTE]:[PRECIO]],3,FALSE)) -> - | F18: =+IF('Datos generales'!C59="Bordillo prefabricado"," ",AB26) ->  | G18: =IF(B18="-","-",E18/F18) -> - | AA18: =+Insumos!C37 -> Concreto de 3000psi (210kg/cm^2) | AB18: =+'Datos generales'!C124*'Datos generales'!C125*1.05 -> 0.063
B19: - | D19: =IF(B19="","",VLOOKUP(B19,Tabla2[[EQUIPOS Y TRANSPORTE]:[PRECIO]],2,FALSE)) -> - | E19: =IF(B19="","",VLOOKUP(B19,Tabla2[[EQUIPOS Y TRANSPORTE]:[PRECIO]],3,FALSE)) -> - | G19: =IF(B19="-","-",E19/F19) -> - | AA19: =+Insumos!C8 -> Aditivo curador | AB19: 0.15
G20: Sub-Total | H20: =+SUM(G17:G20) -> 756.4233333 | AA20: =+Insumos!C42 -> Desencofrante | AB20: =0.03*'Datos generales'!C124*2 -> 0.024
AA21: -
B22: III. TRANSPORTES
B23: Materiales | C23: Vol-Peso | D23: Distancia | E23: m³/km | F23: Tarifa | G23: Valor Unitario
B24: =+IF('Datos generales'!C59="Bordillo prefabricado",AA14,AA29) -> Bordillo Prefabricado de 0.4x0.15x0.8 | C24: =+IF('Datos generales'!C59="Bordillo prefabricado",AB14,AB29) -> 0.0675 | D24: =+IF('Datos generales'!C59="Bordillo prefabricado",20,20) -> 20 | E24: =IF(D24=0,"",C24*D24) -> 1.35 | F24: =IF(B24="","",'Equipos y transporte'!$E$63) -> 1945 | G24: =+IF(B24="","",E24*F24) -> 2625.75 | AA24: Equipo y herramientas
E25: =IF(D25=0,"",C25*D25) ->  | F25: =IF(B25="","",'Equipos y transporte'!$E$63) ->  | G25: =+IF(B25="","",E25*F25) ->  | AA25: Herramienta menor | AB25: 0.1
G26: Sub-Total | H26: =+SUM(G24:G26) -> 2625.75 | AA26: =+'Equipos y transporte'!C30 -> Formaleta metálica (concreto hidráulico) | AB26: 10
B28: IV. MANO DE OBRA | AA28: Transportes | AB28: Vol-Peso | AC28: Distancia
B29: Trabajador o Cuadrilla | C29: Cantidad | D29: Jornal/und* | E29: Jornal total | F29: Rendimiento | G29: Valor Unitario | AA29: =+AA18 -> Concreto de 3000psi (210kg/cm^2) | AB29: =0.45*1*0.15 -> 0.0675 | AC29: 20
B30: Oficial de construccion | C30: 1 | D30: =VLOOKUP(B30,Tabla3[],6,FALSE) -> 95915 | E30: =+D30*C30 -> 95915 | F30: 30 | G30: =+E30/F30 -> 3197.166667
B31: Ayudante de construccion | C31: 2 | D31: =VLOOKUP(B31,Tabla3[],6,FALSE) -> 65506 | E31: =+D31*C31 -> 131012 | F31: =+F30 -> 30 | G31: =+E31/F31 -> 4367.066667 | AA31: Rendimiento mano de obra | AB31: 30
G32: Sub-Total | H32: =+SUM(G30:G32) -> 7564.233333
B33: *Incluye prestaciones de ley
B34: Total Costos Directos | F34: =+B6 -> ITEM: | G34: =+C6 -> 1.8 | H34: =+H13+H20+H26+H32 -> 56822.82667

Sheet 1.9
B2: ANÁLISIS DE PRECIOS UNITARIOS
B3: CAPITULO: | C3: =+'Presupuesto General'!D7 -> Estructura de pavimento | F3: Municipio: | G3: =+'Datos generales'!C5 -> Apartadó
F4: Departamento: | G4: =+'Datos generales'!C6 -> Antioquia
B5: ACTIVIDAD: | C5: =VLOOKUP(C6,Tabla4[],3,FALSE) -> Acero de refuerzo fy 420MPA
B6: ITEM: | C6: =+'Presupuesto General'!B16 -> 1.9 | G6: UNIDAD | H6: =VLOOKUP(C6,Tabla4[],4,FALSE) -> kg
B7: I. MATERIALES EN OBRA
B8: Descripción | D8: Unidad | E8: Precio-Unit. | F8: Cantidad | G8: Valor Unitario
B9: Acero 60.000 psi, incluye Transporte y descargue | D9: =IF(B9="","",VLOOKUP(B9,Tabla1[[INSUMO]:[PRECIO]],2,FALSE)) -> kg | E9: =IF(B9="","",VLOOKUP(B9,Tabla1[[INSUMO]:[PRECIO]],3,FALSE)) -> 5827 | F9: 1.05 | G9: =IF(B9="-","-",F9*E9) -> 6118.35
B10: Alambre negro no. 17 | D10: =IF(B10="","",VLOOKUP(B10,Tabla1[[INSUMO]:[PRECIO]],2,FALSE)) -> kg | E10: =IF(B10="","",VLOOKUP(B10,Tabla1[[INSUMO]:[PRECIO]],3,FALSE)) -> 8970 | F10: 0.1 | G10: =IF(B10="-","-",F10*E10) -> 897
B11: Disco abrasivo corte de metal 14" | D11: =IF(B11="","",VLOOKUP(B11,Tabla1[[INSUMO]:[PRECIO]],2,FALSE)) -> un | E11: =IF(B11="","",VLOOKUP(B11,Tabla1[[INSUMO]:[PRECIO]],3,FALSE)) -> 31900 | F11: 0.03 | G11: =IF(B11="-","-",F11*E11) -> 957
G12: Sub-Total | H12: =+SUM(G9:G12) -> 7972.35
B14: II. EQUIPO Y HERRAMIENTAS
B15: Descripción | D15: Unidad | E15: Tarifa/Unidad | F15: Rendimiento | G15: Valor Unitario
B16: =CONCATENATE("Herramientas menores ",F16*100,"%M.O") -> Herramientas menores 5%M.O | F16: 0.05 | G16: =F16*H30 -> 14.1829375
B17: Tronzadora 14" | D17: =IF(B17="","",VLOOKUP(B17,Tabla2[[EQUIPOS Y TRANSPORTE]:[PRECIO]],2,FALSE)) -> día | E17: =IF(B17="","",VLOOKUP(B17,Tabla2[[EQUIPOS Y TRANSPORTE]:[PRECIO]],3,FALSE)) -> 36000 | F17: 100 | G17: =IF(B17="-","-",E17/F17) -> 360
G18: Sub-Total | H18: =+SUM(G16:G18) -> 374.1829375
B20: III. TRANSPORTES
B21: Materiales | C21: Vol-Peso | D21: Distancia | E21: m³/km | F21: Tarifa | G21: Valor Unitario
E22: =IF(D22=0,"",C22*D22) ->  | F22: =IF(B22="","",'Equipos y transporte'!$E$63) ->  | G22: =+IF(B22="","",E22*F22) -> 
E23: =IF(D23=0,"",C23*D23) ->  | F23: =IF(B23="","",'Equipos y transporte'!$E$63) ->  | G23: =+IF(B23="","",E23*F23) -> 
G24: Sub-Total | H24: =+SUM(G22:G24) -> 0
B26: IV. MANO DE OBRA
B27: Trabajador o Cuadrilla | C27: Cantidad | D27: Jornal/und* | E27: Jornal total | F27: Rendimiento | G27: Valor Unitario
B28: Oficial de construccion | C28: 1 | D28: =VLOOKUP(B28,Tabla3[],6,FALSE) -> 95915 | E28: =+D28*C28 -> 95915 | F28: =+F17*8 -> 800 | G28: =+E28/F28 -> 119.89375
B29: Ayudante de construccion | C29: 2 | D29: =VLOOKUP(B29,Tabla3[],6,FALSE) -> 65506 | E29: =+D29*C29 -> 131012 | F29: =+F28 -> 800 | G29: =+E29/F29 -> 163.765
G30: Sub-Total | H30: =+SUM(G28:G30) -> 283.65875
B31: *Incluye prestaciones de ley
B32: Total Costos Directos | F32: =+B6 -> ITEM: | G32: =+C6 -> 1.9 | H32: =+H12+H18+H24+H30 -> 8630.191688

Sheet 1.10
B2: ANÁLISIS DE PRECIOS UNITARIOS
B3: CAPITULO: | C3: =+'Presupuesto General'!D7 -> Estructura de pavimento | F3: Municipio: | G3: =+'Datos generales'!C5 -> Apartadó
F4: Departamento: | G4: =+'Datos generales'!C6 -> Antioquia
B5: ACTIVIDAD: | C5: =VLOOKUP(C6,Tabla4[],3,FALSE) -> Concreto de resistencia 21MPA (D) (Andén)
B6: ITEM: | C6: =+'Presupuesto General'!B17 -> 1.10 | G6: UNIDAD | H6: =VLOOKUP(C6,Tabla4[],4,FALSE) -> m³
B7: I. MATERIALES EN OBRA
B8: Descripción | D8: Unidad | E8: Precio-Unit. | F8: Cantidad | G8: Valor Unitario
B9: Concreto de 3000psi (210kg/cm^2) | D9: =IF(B9="","",VLOOKUP(B9,Tabla1[[INSUMO]:[PRECIO]],2,FALSE)) -> m³ | E9: =IF(B9="","",VLOOKUP(B9,Tabla1[[INSUMO]:[PRECIO]],3,FALSE)) -> 493485 | F9: 1.05 | G9: =IF(B9="-","-",F9*E9) -> 518159.25
B10: Antisol blanco (presentación 20 kg) | D10: =IF(B10="","",VLOOKUP(B10,Tabla1[[INSUMO]:[PRECIO]],2,FALSE)) -> kg | E10: =IF(B10="","",VLOOKUP(B10,Tabla1[[INSUMO]:[PRECIO]],3,FALSE)) -> 13734 | F10: 0.4 | G10: 5493.6
B11: Endurecedor de Cuarzo (Tonos terracota o rojo) | D11: =IF(B11="","",VLOOKUP(B11,Tabla1[[INSUMO]:[PRECIO]],2,FALSE)) -> kg | E11: =IF(B11="","",VLOOKUP(B11,Tabla1[[INSUMO]:[PRECIO]],3,FALSE)) -> 2100 | F11: 15 | G11: 31500
B12: Desencofrante | D12: =IF(B12="","",VLOOKUP(B12,Tabla1[[INSUMO]:[PRECIO]],2,FALSE)) -> kg | E12: =IF(B12="","",VLOOKUP(B12,Tabla1[[INSUMO]:[PRECIO]],3,FALSE)) -> 20500 | F12: =1.05*'Datos generales'!C40*2 -> 0.42 | G12: 8610
B13: Sellador acrílico transparente | D13: =IF(B13="","",VLOOKUP(B13,Tabla1[[INSUMO]:[PRECIO]],2,FALSE)) -> lt | E13: =IF(B13="","",VLOOKUP(B13,Tabla1[[INSUMO]:[PRECIO]],3,FALSE)) -> 14800 | F13: 1.2 | G13: 17760
B14: - | D14: =IF(B14="","",VLOOKUP(B14,Tabla1[[INSUMO]:[PRECIO]],2,FALSE)) -> - | E14: =IF(B14="","",VLOOKUP(B14,Tabla1[[INSUMO]:[PRECIO]],3,FALSE)) -> - | G14: -
G15: Sub-Total | H15: =+SUM(G9:G15) -> 581522.85
B17: II. EQUIPO Y HERRAMIENTAS
B18: Descripción | D18: Unidad | E18: Tarifa/Unidad | F18: Rendimiento | G18: Valor Unitario
B19: =CONCATENATE("Herramientas menores ",F19*100,"%M.O") -> Herramientas menores 10%M.O | F19: 0.1 | G19: =F19*H37 -> 945.5291667
B20: Formaleta (gaviones, juntas de bordillos, juntas de cunetas, muros, concretos clase D,E, F y G) | D20: =IF(B20="","",VLOOKUP(B20,Tabla2[[EQUIPOS Y TRANSPORTE]:[PRECIO]],2,FALSE)) -> m² | E20: =IF(B20="","",VLOOKUP(B20,Tabla2[[EQUIPOS Y TRANSPORTE]:[PRECIO]],3,FALSE)) -> 5435.400659 | F20: 3 | G20: =IF(B20="-","-",E20/F20) -> 1811.80022
B21: Aspersor manual (h) | D21: =IF(B21="","",VLOOKUP(B21,Tabla2[[EQUIPOS Y TRANSPORTE]:[PRECIO]],2,FALSE)) -> h | E21: =IF(B21="","",VLOOKUP(B21,Tabla2[[EQUIPOS Y TRANSPORTE]:[PRECIO]],3,FALSE)) -> 2174.4 | F21: 3 | G21: =IF(B21="-","-",E21/F21) -> 724.8
B22: Vibrador de concreto, Motor de 3 hp a 18.000 rpm Mangueras de 4 mt | D22: =IF(B22="","",VLOOKUP(B22,Tabla2[[EQUIPOS Y TRANSPORTE]:[PRECIO]],2,FALSE)) -> h | E22: =IF(B22="","",VLOOKUP(B22,Tabla2[[EQUIPOS Y TRANSPORTE]:[PRECIO]],3,FALSE)) -> 8640 | F22: 3 | G22: =IF(B22="-","-",E22/F22) -> 2880
B23: Molde poliuretano para estampar concreto | D23: =IF(B23="","",VLOOKUP(B23,Tabla2[[EQUIPOS Y TRANSPORTE]:[PRECIO]],2,FALSE)) -> und | E23: =IF(B23="","",VLOOKUP(B23,Tabla2[[EQUIPOS Y TRANSPORTE]:[PRECIO]],3,FALSE)) -> 325000 | F23: 150 | G23: =IF(B23="-","-",E23/F23) -> 2166.666667
B24: Pisón para estampado 114cmx28.9cm | D24: =IF(B24="","",VLOOKUP(B24,Tabla2[[EQUIPOS Y TRANSPORTE]:[PRECIO]],2,FALSE)) -> und | E24: =IF(B24="","",VLOOKUP(B24,Tabla2[[EQUIPOS Y TRANSPORTE]:[PRECIO]],3,FALSE)) -> 255000 | F24: 500 | G24: =IF(B24="-","-",E24/F24) -> 510
G25: Sub-Total | H25: =+SUM(G19:G25) -> 9038.796053
B27: III. TRANSPORTES
B28: Materiales | C28: Vol-Peso | D28: Distancia | E28: m³/km | F28: Tarifa | G28: Valor Unitario
E29: =IF(D29=0,"",C29*D29) ->  | F29: =IF(B29="","",'Equipos y transporte'!$E$63) ->  | G29: =+IF(B29="","",E29*F29) -> 
E30: =IF(D30=0,"",C30*D30) ->  | F30: =IF(B30="","",'Equipos y transporte'!$E$63) ->  | G30: =+IF(B30="","",E30*F30) -> 
G31: Sub-Total | H31: =+SUM(G29:G31) -> 0
B33: IV. MANO DE OBRA
B34: Trabajador o Cuadrilla | C34: Cantidad | D34: Jornal/und* | E34: Jornal total | F34: Rendimiento | G34: Valor Unitario
B35: Oficial de construccion | C35: 1 | D35: =VLOOKUP(B35,Tabla3[],6,FALSE) -> 95915 | E35: =+D35*C35 -> 95915 | F35: =+F20*8 -> 24 | G35: =+E35/F35 -> 3996.458333
B36: Ayudante de construccion | C36: 2 | D36: =VLOOKUP(B36,Tabla3[],6,FALSE) -> 65506 | E36: =+D36*C36 -> 131012 | F36: =+F35 -> 24 | G36: =+E36/F36 -> 5458.833333
G37: Sub-Total | H37: =+SUM(G35:G37) -> 9455.291667
B38: *Incluye prestaciones de ley
B39: Total Costos Directos | F39: =+B6 -> ITEM: | G39: =+C6 -> 1.10 | H39: =+H15+H25+H31+H37 -> 600016.9377

Sheet 1.11
B2: ANÁLISIS DE PRECIOS UNITARIOS
B3: CAPITULO: | C3: =+'Presupuesto General'!D7 -> Estructura de pavimento | F3: Municipio: | G3: =+'Datos generales'!C5 -> Apartadó
F4: Departamento: | G4: =+'Datos generales'!C6 -> Antioquia
B5: ACTIVIDAD: | C5: =VLOOKUP(C6,Tabla4[],3,FALSE) -> Suministro, transporte y colocación de loseta táctil guía y alerta para discapacitados visuales
B6: ITEM: | C6: =+'Presupuesto General'!B18 -> 1.11 | G6: UNIDAD | H6: =VLOOKUP(C6,Tabla4[],4,FALSE) -> m²
B7: I. MATERIALES EN OBRA
B8: Descripción | D8: Unidad | E8: Precio-Unit. | F8: Cantidad | G8: Valor Unitario
B9: Mortero 1:3 Con Arena Fina | D9: =IF(B9="","",VLOOKUP(B9,Tabla1[[INSUMO]:[PRECIO]],2,FALSE)) -> m³ | E9: =IF(B9="","",VLOOKUP(B9,Tabla1[[INSUMO]:[PRECIO]],3,FALSE)) -> 525142 | F9: 0.03 | G9: =IF(B9="-","-",F9*E9) -> 15754.26
B10: Loseta prefabricada táctil | D10: =IF(B10="","",VLOOKUP(B10,Tabla1[[INSUMO]:[PRECIO]],2,FALSE)) -> m2 | E10: =IF(B10="","",VLOOKUP(B10,Tabla1[[INSUMO]:[PRECIO]],3,FALSE)) -> 72500 | F10: 1.05 | G10: =IF(B10="-","-",F10*E10) -> 76125
G11: Sub-Total | H11: =+SUM(G9:G11) -> 91879.26
B13: II. EQUIPO Y HERRAMIENTAS
B14: Descripción | D14: Unidad | E14: Tarifa/Unidad | F14: Rendimiento | G14: Valor Unitario
B15: =CONCATENATE("Herramientas menores ",F15*100,"%M.O") -> Herramientas menores 5%M.O | F15: 0.05 | G15: =F15*H30 -> 567.3175
B16: Minicargador | D16: =IF(B16="","",VLOOKUP(B16,Tabla2[[EQUIPOS Y TRANSPORTE]:[PRECIO]],2,FALSE)) -> h | E16: =IF(B16="","",VLOOKUP(B16,Tabla2[[EQUIPOS Y TRANSPORTE]:[PRECIO]],3,FALSE)) -> 60000 | F16: 20 | G16: =IF(B16="-","-",E16/F16) -> 3000
B17: - | D17: =IF(B17="","",VLOOKUP(B17,Tabla2[[EQUIPOS Y TRANSPORTE]:[PRECIO]],2,FALSE)) -> - | E17: =IF(B17="","",VLOOKUP(B17,Tabla2[[EQUIPOS Y TRANSPORTE]:[PRECIO]],3,FALSE)) -> - | G17: =IF(B17="-","-",E17/F17) -> -
G18: Sub-Total | H18: =+SUM(G15:G18) -> 3567.3175
B20: III. TRANSPORTES
B21: Materiales | C21: Vol-Peso | D21: Distancia | E21: m³/km | F21: Tarifa | G21: Valor Unitario
E22: =IF(D22=0,"",C22*D22) ->  | F22: =IF(B22="","",'Equipos y transporte'!$E$63) ->  | G22: =+IF(B22="","",E22*F22) -> 
E23: =IF(D23=0,"",C23*D23) ->  | F23: =IF(B23="","",'Equipos y transporte'!$E$63) ->  | G23: =+IF(B23="","",E23*F23) -> 
G24: Sub-Total | H24: =+SUM(G22:G24) -> 0
B26: IV. MANO DE OBRA
B27: Trabajador o Cuadrilla | C27: Cantidad | D27: Jornal/und* | E27: Jornal total | F27: Rendimiento | G27: Valor Unitario
B28: Oficial de construccion | C28: 1 | D28: =VLOOKUP(B28,Tabla3[],6,FALSE) -> 95915 | E28: =+D28*C28 -> 95915 | F28: 20 | G28: =+E28/F28 -> 4795.75
B29: Ayudante de construccion | C29: 2 | D29: =VLOOKUP(B29,Tabla3[],6,FALSE) -> 65506 | E29: =+D29*C29 -> 131012 | F29: =+F28 -> 20 | G29: =+E29/F29 -> 6550.6
G30: Sub-Total | H30: =+SUM(G28:G30) -> 11346.35
B31: *Incluye prestaciones de ley
B32: Total Costos Directos | F32: =+B6 -> ITEM: | G32: =+C6 -> 1.11 | H32: =+H11+H18+H24+H30 -> 106792.9275

Sheet Insumos
B1: INSUMOS DE OBRA
B2: CÓDIGO | C2: INSUMO | D2: UNIDAD | E2: PRECIO
B3: - | C3: - | D3: - | E3: -
B4: INS_1 | C4: Acelerante para concreto | D4: kg | E4: 19380
B5: INS_2 | C5: Acero 60.000 psi, incluye Transporte y descargue | D5: kg | E5: 5827
B6: INS_5 | C6: Acero en Elementos Estructurales | D6: kg | E6: =12000 -> 12000
B7: INS_6 | C7: Acero refuerzo G-60 sin figurar | D7: kg | E7: 4512.34
B8: INS_7 | C8: Aditivo curador | D8: kg | E8: 21875
B9: INS_8 | C9: Aditivo reductor de agua de alto rango | D9: kg | E9: 23311
B10: INS_9 | C10: Agregado para concreto | D10: m³ | E10: 81438
B11: INS_10 | C11: Agua | D11: Lt | E11: 90
B12: INS_11 | C12: Alambre negro no. 17 | D12: kg | E12: 8970
B13: INS_12 | C13: Alcantarilla prefabricada en concreto reforzado de 28 Mpa, de 1x1x1 m | D13: und | E13: 2688000
B14: INS_13 | C14: Antisol blanco (presentación 20 kg) | D14: kg | E14: 13734
B15: INS_14 | C15: Apoyos elastoméricos adosados en topes sísmicos (0,30m x 0,20m x 0,025m) | D15: und | E15: 222264
B16: INS_15 | C16: Apoyos elastoméricos adosados en topes sísmicos (11,0m x 0,30m x 0,025m) | D16: =+D15 -> und | E16: 3571470
B17: INS_16 | C17: Arena fina | D17: m³ | E17: =53041*1.1 -> 58345.1
B18: INS_17 | C18: Arena lavada de rio | D18: m³ | E18: =56611*1.1 -> 62272.1
B19: INS_18 | C19: Barra corrugada 1/2" x 6m | D19: kg | E19: 4827.29
B20: INS_19 | C20: Barra redonda lisa 1" x6m | D20: kg | E20: 6298.157454
B21: INS_20 | C21: Barreras plasticas de Aproximación (Maletines tipo Newjersy o similar) | D21: un | E21: 561600
B22: INS_21 | C22: Barricada Metalica con tres (3) tableros con franjas reflectivas color naranja y blanco | D22: un | E22: 365000
B23: INS_22 | C23: Bordillo Prefabricado de 0.4x0.15x0.8 | D23: un | E23: 32500
B24: INS_23 | C24: Botas de seguridad | D24: un | E24: 99900
B25: INS_24 | C25: Camisa dril manga larga con dos logos estampados | D25: un | E25: 35800
B26: INS_25 | C26: Can Zunchado en madera común. De 3,5cm x 20 cm x 3,0m. Incluye transporte. | D26: un | E26: 21645
B27: INS_26 | C27: Canastilla o silla pasajuntas | D27: un | E27: 26500
B28: INS_27 | C28: Cascos | D28: un | E28: 18966
B29: INS_28 | C29: Cemento gris uso general, Inlcuye transporte interno en obra cargue y descargue | D29: kg | E29: 750
B30: INS_29 | C30: Chaleco con tres logos bordados | D30: un | E30: 97500
B31: INS_30 | C31: Chalecos reflectivos | D31: un | E31: 26900
B32: INS_31 | C32: Cinta Plastica "PELIGRO NO PASE" | D32: m | E32: 229
B33: INS_32 | C33: Cintilla De Poliuretano (Pavimentos De Concreto Hidráulico) | D33: m | E33: 1398
B34: INS_33 | C34: Clavo común de 1 1/2". Caja x 500gr. | D34: lb | E34: 5300
B35: INS_34 | C35: =+'Concretos y Morteros'!A19 -> Concreto de 17,5 Mpa en obra | D35: =+'Concretos y Morteros'!B19 -> m³ | E35: =+'Concretos y Morteros'!D19 -> 444337
B36: INS_35 | C36: =+'Concretos y Morteros'!A15 -> Concreto de 2000psi (140kg/cm^2) | D36: =+'Concretos y Morteros'!B15 -> m³ | E36: =+'Concretos y Morteros'!D15 -> 411201
B37: INS_36 | C37: =+'Concretos y Morteros'!A16 -> Concreto de 3000psi (210kg/cm^2) | D37: =+'Concretos y Morteros'!B16 -> m³ | E37: =+'Concretos y Morteros'!D16 -> 493485
B38: INS_37 | C38: =+'Concretos y Morteros'!A17 -> Concreto de MR=3.8 Mpa, F'c (280kg/cm^2) | D38: =+'Concretos y Morteros'!B17 -> m³ | E38: =+'Concretos y Morteros'!D17 -> 569357
B39: INS_38 | C39: =+CONCATENATE("Concreto premezclado hidráulico para pavimento MR-",'Datos generales'!C37,"MPa incluye servicio de bombeo T.Max . 1'' Asent.(7+/-1'')") -> Concreto premezclado hidráulico para pavimento MR-3.8MPa incluye servicio de bombeo T.Max . 1'' Asent.(7+/-1'') | D39: m³ | E39: 701740
B40: INS_39 | C40: Costal de fibra o fique | D40: m² | E40: 2633.333333
B41: INS_40 | C41: Delineadores tubulares (Colombinas) | D41: un | E41: 66000
B42: INS_41 | C42: Desencofrante | D42: kg | E42: 20500
B43: INS_42 | C43: Disco abrasivo corte de metal 14" | D43: un | E43: 31900
B44: INS_43 | C44: Disolvente para Pinturas a Base de Aceite. | D44: gln | E44: 35900
B45: INS_44 | C45: Endurecedor de Cuarzo (Tonos terracota o rojo) | D45: kg | E45: 2100
B46: INS_45 | C46: Esmalte a Base de Aceite, Rendimiento 30m2/gl | D46: gln | E46: 91900
B47: INS_46 | C47: Flasher luminoso para barricadas | D47: un | E47: 85000
B48: INS_47 | C48: Geotextil T-2400 | D48: m2 | E48: 9800
B49: INS_48 | C49: Geotextil tipo NT 1800 | D49: m2 | E49: 8340
B50: INS_49 | C50: Guantes | D50: un | E50: 13685
B51: INS_50 | C51: Junta de dilatacion en elastomero con refuerzo metalico, incluye pernos de anclaje | D51: Und | E51: 2485000
B52: INS_51 | C52: Larguero 3.0 m x 8.0 cm x 4.0 cm seco | D52: un | E52: 14158.8
B53: INS_52 | C53: Larguero de madera comun de 1" x 2" | D53: m | E53: 2962.8
B54: INS_53 | C54: Larguero de madera comun de 2" x 2", 3 mts | D54: un | E54: 17880
B55: INS_54 | C55: Loseta prefabricada táctil | D55: m2 | E55: 72500
B56: INS_55 | C56: Malla electrosoldada D84 Largo 6mt x Ancho 2.35mt Hueco 15x15cm Diámetro 4.0mm | D56: m2 | E56: 24567
B57: INS_56 | C57: Material clasificado de 6" para filtro | D57: m³ | E57: 69120
B58: INS_57 | C58: Material de base | D58: m³ | E58: 77541.8
B59: INS_58 | C59: Material de Recebo Para Relleno | D59: m³ | E59: 44160
B60: INS_59 | C60: Material de subbase | D60: m³ | E60: 77542.8
B61: INS_60 | C61: Material seleccionado de cantera | D61: m³ | E61: 58528
B62: INS_61 | C62: Moldura en madera 1/4 bocel de L=3.00 m. | D62: ml | E62: 2110.8
B63: INS_62 | C63: =+'Concretos y Morteros'!A18 -> Mortero 1:3 Con Arena Fina | D63: =+'Concretos y Morteros'!B18 -> m³ | E63: =+'Concretos y Morteros'!D18 -> 525142
B64: INS_63 | C64: Mulch Orgánico | D64: kg | E64: 14900
B65: INS_64 | C65: Paletas pare y siga 4x45cm | D65: un | E65: 66000
B66: INS_65 | C66: Pantalón dril | D66: un | E66: 69900
B67: INS_66 | C67: Pasavias en tela | D67: un | E67: 250000
B68: INS_67 | C68: Perfil C 150 x 50 x 1.5 mm | D68: m | E68: 29800
B69: INS_68 | C69: Perno expansión c/ tuerca y golilla. 1/2 x 4. 1/4. Laprox.= 10 cm. | D69: un | E69: 7871
B70: INS_69 | C70: Piedra para Concreto Ciclópeo (Rajón o Canto Rodado) | D70: m³ | E70: 73920
B71: INS_70 | C71: Pintura anticorrosivo gris. Pintuco | D71: gln | E71: 59900
B72: INS_71 | C72: Pitos para auxiliares de tránsito | D72: un | E72: 17900
B73: INS_72 | C73: Poste en angulo de 2*2*1/4 de 3,5m para señal | D73: un | E73: 134537
B74: INS_73 | C74: Protector auditivo | D74: un | E74: 3380
B75: INS_74 | C75: Puntilla con cabeza | D75: kg | E75: 9900
B76: INS_75 | C76: Sellador acrílico transparente | D76: lt | E76: 14800
B77: INS_76 | C77: Sello de silicona o sellador autonivelante | D77: m | E77: 9370
B78: INS_77 | C78: Semillas para empradizar | D78: kg | E78: 59800
B79: INS_78 | C79: Señal (grupo 1). Tablero en lámina galvanizada de 75cm*75cm, calibre 16, reflectivo tipo 1/ incluye poste ) | D79: un | E79: 344383
B80: INS_79 | C80: Separol o equivalente (Desmoldante para evitar adherencia de concretos a formaletas.Presentación 15Kg. Rendimiento metal :45g/m2 madera:55g/m2 (15 kg)). para metal puro, para madera diluir hasta 5 partes de agua segun porosidad de la madera. | D80: un | E80: 431100
B81: INS_80 | C81: Sika flex 2C SL ó similar | D81: gln | E81: 179760
B82: INS_81 | C82: Sika rod ó similar | D82: ml | E82: 2800
B83: INS_82 | C83: SIO-03 Fin de Obra | D83: un | E83: 341650
B84: INS_83 | C84: SIO-07 Desvio | D84: un | E84: 341650
B85: INS_84 | C85: SIO-24 Peatones | D85: un | E85: 341650
B86: INS_85 | C86: Soldadura 7018 | D86: kg | E86: 15930
B87: INS_86 | C87: Soldadura Eléctrica 6013 de 5/32Pulg | D87: kg | E87: 21190
B88: INS_87 | C88: SPO-01 Trabajadores en la via | D88: un | E88: 341650
B89: INS_88 | C89: SPO-02 Maquinaria en la via | D89: un | E89: 341650
B90: INS_89 | C90: SPO-03 Auxiliar de Transito | D90: un | E90: 341650
B91: INS_90 | C91: SPO-30 Reducción asimétrica de calzada izquierda | D91: un | E91: 341651
B92: INS_91 | C92: SRO-0 Cierre de vía | D92: un | E92: 341649
B93: INS_92 | C93: SRO-03 Uno a Uno | D93: un | E93: 341650
B94: INS_93 | C94: SRO-04 Pare/Siga | D94: un | E94: 341650
B95: INS_94 | C95: Steeldeck cal 22 3" | D95: m2 | E95: 79738.62
B96: INS_95 | C96: Tabla madera pino de 1,9cm x 19cm x 2,5m. Incluye transporte. | D96: un | E96: 18688.8
B97: INS_96 | C97: Tapa Bocas | D97: un | E97: 1350
B98: INS_97 | C98: Tela cerramiento obra verde, ancho: 2.10 m. Incluye transporte externo e interno. | D98: m | E98: 2142.38
B99: INS_98 | C99: Triturado 1" | D99: m³ | E99: 60768
B100: INS_99 | C100: Tuberia Corrugada de 6" perforada | D100: ml | E100: 36598
B101: INS_100 | C101: Tubería perforada PVC, ASTM D 1785, de Diámetro 100 mm (4") | D101: m | E101: 18100
B102: INS_101 | C102: Tubo concreto reforzado 900mm (Tipo 1). Incluye transporte | D102: m | E102: 683284.91
B103: INS_102 | C103: Tubo rectangular 100x40x1.5 mm | D103: m | E103: 23291.67

Sheet Equipos y transporte
B1: EQUIPOS Y TRANSPORTES DE OBRA
B2: CÓDIGO | C2: EQUIPOS Y TRANSPORTE | D2: UNIDAD | E2: PRECIO
B3: - | C3: - | D3: - | E3: -
B4: EH-1 | C4: Alquiler de equipos de computo con software SIG. | D4: mes | E4: 2600000
B5: EH-2 | C5: Alquiler de gps de precision menor a 5 mts, receptor GPS doble frecuencia GNSS (incluye mecanismo de sorte y Colectara de datos) | D5: mes | E5: 4250000
B6: EH-3 | C6: Aspersor manual (día) | D6: día | E6: =16800*1.2 -> 20160
B7: EH-4 | C7: Aspersor manual (h) | D7: h | E7: =1812*1.2 -> 2174.4
B8: EH-5 | C8: Buldozer, Potencia al volante de 140 HP, motor de 2200 RPM, longitud de hoja 4,80 m. | D8: h | E8: 180000
B9: EH-6 | C9: Camión 350 | D9: día | E9: =450000*1.2 -> 540000
B10: EH-7 | C10: Camioneta D-300 | D10: h | E10: =55000*1.2 -> 66000
B11: EH-8 | C11: Camioneta o Campero 4x4 modelo 2015 en adelante, incluye conductor, combustible y mantenimiento | D11: mes | E11: =4000000 -> 4000000
B12: EH-9 | C12: Can zunchado en madera común de 5,0cmx20cmx3,0m (alquiler). Incluye transporte. | D12: día | E12: =420*1.2 -> 504
B13: EH-10 | C13: Can zunchado en madera común de 5,0cmx20cmx3,0m (alquiler). Incluye transporte. | D13: día | E13: =315*1.2 -> 378
B14: EH-11 | C14: Carrotanque de Agua 1000 gl | D14: h | E14: 225000
B15: EH-12 | C15: Carrotanque de agua(1000 Galones) | D15: h | E15: =51113.1483778459*1.2 -> 61335.77805
B16: EH-13 | C16: Cizalla manual de 90 cm. | D16: h | E16: =1036.12305400177*1.2 -> 1243.347665
B17: EH-14 | C17: Compactador manual (SALTARIN) Peso de operación (Kg.) 52, Fuerza de impacto por golpe (KN) 12. | D17: h | E17: =14580*1.2 -> 17496
B18: EH-15 | C18: Compresor (barrido y soplado) | D18: día | E18: =583256.404074159*1.2 -> 699907.6849
B19: EH-16 | C19: Compresor 80HP, con martillo | D19: h | E19: =82500*1.2 -> 99000
B20: EH-17 | C20: Compresor aire con manguera | D20: h | E20: =5425*1.2 -> 6510
B21: EH-18 | C21: Concretadora de 2 bultos diesel | D21: día | E21: 81500
B22: EH-19 | C22: Cortadora de pavimento, Máxima profundidad de corte: 160 mm. Capacidad de disco: desde 12´´ hasta 18´´ de diámetro. Peso operacional: 135 kg, 13.5 hp de potencia | D22: día | E22: =95000*1.2 -> 114000
B23: EH-20 | C23: Diferencial 2T (alquiler) | D23: día | E23: =41390*1.2 -> 49668
B24: EH-21 | C24: Disco corte concreto 7" | D24: un | E24: =15200*1.2 -> 18240
B25: EH-22 | C25: Equipo de oxicorte, con pipetas | D25: día | E25: =48030*1.2 -> 57636
B26: EH-23 | C26: Equipo de soldadura eléctrica MILLER XMT CC/W 300 AMP. Incluye transporte. | D26: día | E26: =70380*1.2 -> 84456
B27: EH-24 | C27: Estación total O similar | D27: mes | E27: =2400000*1.2 -> 2880000
B28: EH-25 | C28: Formaleta (gaviones, juntas de bordillos, juntas de cunetas, muros, concretos clase D,E, F y G) | D28: m² | E28: =4529.50054891831*1.2 -> 5435.400659
B29: EH-26 | C29: Formaleta madera | D29: m | E29: =8500 -> 8500
B30: EH-27 | C30: Formaleta metálica (concreto hidráulico) | D30: Dia | E30: =18000*1.2 -> 21600
B31: EH-28 | C31: Gato tensor (alquiler) | D31: =+D30 -> Dia | E31: =1342*1.2 -> 1610.4
B32: EH-29 | C32: Guadañadora/ cortadora de cesped , Cilindraje 41.5 cm3, Longitud del mango 1450 mm, Peso 7.4 kg. Incluye, combustible y transporte. | D32: h | E32: =5161*1.2 -> 6193.2
B33: EH-30 | C33: Manila para Molinete (alquiler) | D33: ml | E33: =80*1.2 -> 96
B34: EH-31 | C34: Máquina hidrosembradora | D34: Dia | E34: =176000*1.2 -> 211200
B35: EH-32 | C35: Mezcladora a gasolina, Inc. combustible | D35: día | E35: =68000*1.2 -> 81600
B36: EH-33 | C36: Minicargador | D36: h | E36: 60000
B37: EH-34 | C37: Molde poliuretano para estampar concreto | D37: und | E37: 325000
B38: EH-35 | C38: Molinete (alquiler) | D38: día | E38: =2900*1.2 -> 3480
B39: EH-36 | C39: Motobomba Eléctrica Sumergible 2" - 17m prof. Incluye manguera flexible 2" (26m), extensión eléctrica encauchetada (50m) y transporte. | D39: =D38 -> día | E39: =70200*1.2 -> 84240
B40: EH-37 | C40: Motoniveladora potencia 215 HP, ancho de cuchilla 4,27 m | D40: h | E40: 200000
B41: EH-38 | C41: Motoniveladora potencia 215 HP, ancho de cuchilla 4,27 m, peso 18 ton. | D41: h | E41: 200000
B42: EH-39 | C42: Nivel de presición autonivelante | D42: día | E42: =120000*1.2 -> 144000
B43: EH-40 | C43: Pisón para estampado 114cmx28.9cm | D43: und | E43: 255000
B44: EH-41 | C44: Planta Electrica (Diesel-Gasolina) | D44: día | E44: =61600*1.2 -> 73920
B45: EH-42 | C45: Pluma grúa giratoria de 250 kg 30-60m. | D45: día | E45: =42390*1.2 -> 50868
B46: EH-43 | C46: Pulidora manual electrica | D46: h | E46: =3145*1.2 -> 3774
B47: EH-44 | C47: Regla vibratoria, de longitud de 3 a 5 m, motor de 3600 rpm, potencia 6 HP | D47: día | E47: =82080*1.2 -> 98496
B48: EH-45 | C48: Retroexcavadora de llantas, motor 62 HP, profundidad de excavacion de 5.41m | D48: h | E48: 170000
B49: EH-46 | C49: Retroexcavadora sobre llantas JD 410 | D49: h | E49: 160000
B50: EH-47 | C50: Retroexcavadora sobre oruga, potencia 138 HP, balde de 1,5 m3. | D50: h | E50: 250000
B51: EH-48 | C51: Riel metalico 2.8x0.15x0.2m | D51: un | E51: =1418*1.2 -> 1701.6
B52: EH-49 | C52: Sección completa de andamio (1.2m-1.5m) x 1.5 m. (+ 4 ruedas) Incluye transporte. | D52: día | E52: =4130*1.2 -> 4956
B53: EH-50 | C53: Sección completa de andamio (1.2m-1.5m) x 1.5 m. (+ 4 ruedas) Incluye transporte. | D53: dia | E53: =3952*1.2 -> 4742.4
B54: EH-51 | C54: Soldador Electrico de 5 a 300 Amperios a 110 Voltios | D54: día | E54: =50000*1.2 -> 60000
B55: EH-52 | C55: Taco metálico hasta 2.8m, incluye transporte | D55: día | E55: =325*1.2 -> 390
B56: EH-53 | C56: Taladro industrial | D56: h | E56: =2897*1.2 -> 3476.4
B57: EH-54 | C57: Tronzadora 14" | D57: día | E57: =30000*1.2 -> 36000
B58: EH-55 | C58: Tronzadora electrica 14" | D58: h | E58: =5200*1.2 -> 6240
B59: EH-56 | C59: Vibrador a gasolina, Incluye combustible | D59: h | E59: =10125 -> 10125
B60: EH-57 | C60: Vibrador de concreto, Motor de 3 hp a 18.000 rpm Mangueras de 4 mt | D60: h | E60: =7200*1.2 -> 8640
B61: EH-58 | C61: Vibrocompatador, potencia 153 HP, peso 10 Ton. | D61: h | E61: 170000
B62: EH-59 | C62: Volqueta 6 m³ | D62: h | E62: 200000
B63: EH-60 | C63: Volqueta 6 m³/km (Transporte) | D63: m³/km | E63: 1945

Sheet Cuadrillas
B2: SALARIOS DE PERSONAL
B3: CARGO | C3: VALOR SUELDO BÁSICO | D3: AUXILIO | E3: FACTOR PRESTACIONAL | F3: VALOR PRESTACIONES SOCIALESxMES | G3: VALOR DÍA DE SALARIO
B4: - | C4: - | D4: - | E4: - | F4: - | G4: -
B5: Ayudante de construccion | C5: =+smmlv -> 1160000 | D5: =+IF(C5<=2*smmlv,auxiliotrans,0) -> 140606 | E5: =+'Factor Prest. AIU'!C28 -> 1.5729 | F5: =+ROUND(C5*E5+D5,0) -> 1965170 | G5: =+ROUND((F5/(30)),0) -> 65506
B6: Ayudante entendido | C6: =C10 -> 1508000 | D6: 140606 | E6: =+'Factor Prest. AIU'!$C$28 -> 1.5729 | F6: 2512539 | G6: =+ROUND((F6/(30)),0) -> 83751
B7: Oficial de construccion | C7: =+smmlv*1.5 -> 1740000 | D7: 140606 | E7: =+'Factor Prest. AIU'!$C$28 -> 1.5729 | F7: 2877452 | G7: 95915
B8: Maestro de Obra | C8: =smmlv*2.1 -> 2436000 | D8: =+IF(C8<=2*smmlv,auxiliotrans,0) -> 0 | E8: =+'Factor Prest. AIU'!C28 -> 1.5729 | F8: =+ROUND(C8*E8+D8,0) -> 3831584 | G8: =+ROUND((F8/(30)),0) -> 127719
B9: Soldador | C9: =+C8 -> 2436000 | D9: =+IF(C9<=2*smmlv,auxiliotrans,0) -> 0 | E9: =+'Factor Prest. AIU'!$D$28 -> 1.5329 | F9: =+ROUND(C9*E9+D9,0) -> 3734144 | G9: =+ROUND((F9/(30)),0) -> 124471
B10: Ayudante Soldador | C10: =smmlv*1.3 -> 1508000 | D10: =+IF(C10<=2*smmlv,auxiliotrans,0) -> 140606 | E10: =+'Factor Prest. AIU'!$D$28 -> 1.5329 | F10: =+ROUND(C10*E10+D10,0) -> 2452219 | G10: =+ROUND((F10/(30)),0) -> 81741
B11: Conductor | C11: =+smmlv*1.7 -> 1972000 | D11: 140606 | E11: =+'Factor Prest. AIU'!$D$28 -> 1.5329 | F11: 3163485 | G11: 105450
B12: Topógrafo | C12: =+smmlv*2.2 -> 2552000 | D12: 0 | E12: =+'Factor Prest. AIU'!$D$28 -> 1.5329 | F12: 3911961 | G12: 130399
B13: Cadenero 1° | C13: =smmlv*1.2 -> 1392000 | D13: 140606 | E13: =+'Factor Prest. AIU'!$D$28 -> 1.5329 | F13: 2274403 | G13: 75813
B14: Ingeniero residente de obra | C14: =3.5*smmlv -> 4060000 | D14: 0 | E14: =+'Factor Prest. AIU'!$D$28 -> 1.5329 | F14: 6223574 | G14: 207452
B15: Ingeniero residente de estructuras | C15: =4.3*smmlv -> 4988000 | D15: 0 | E15: =+'Factor Prest. AIU'!$D$28 -> 1.5329 | F15: 7646105 | G15: 254870
B16: Ingeniero especialista en geotecnia | C16: =4.3*smmlv -> 4988000 | D16: 0 | E16: =+'Factor Prest. AIU'!$D$28 -> 1.5329 | F16: 7646105 | G16: 254870
B17: Inspector de obra | C17: =1.9*smmlv -> 2204000 | D17: 140606 | E17: =+'Factor Prest. AIU'!$D$28 -> 1.5329 | F17: 3519118 | G17: 117304
B18: Director de obra | C18: =smmlv*5 -> 5800000 | D18: 0 | E18: =+'Factor Prest. AIU'!$D$28 -> 1.5329 | F18: 8890820 | G18: 296361
B19: Ingeniero ambiental | C19: =3.5*smmlv -> 4060000 | D19: 0 | E19: =+'Factor Prest. AIU'!$D$28 -> 1.5329 | F19: 6223574 | G19: 207452
B20: Trabajador social | C20: 2500000 | D20: =+IF(C20<=2*smmlv,auxiliotrans,0) -> 0 | E20: =+'Factor Prest. AIU'!$D$28 -> 1.5329 | F20: =+ROUND(C20*E20+D20,0) -> 3832250 | G20: =+ROUND((F20/(30)),0) -> 127742
B21: Asesor Legal (Abogado) | C21: =smmlv*4.5 -> 5220000 | D21: 0 | E21: =+'Factor Prest. AIU'!$D$28 -> 1.5329 | F21: 8001738 | G21: 266725
B22: Almacenista | C22: =smmlv -> 1160000 | D22: 140606 | E22: =+'Factor Prest. AIU'!$D$28 -> 1.5329 | F22: 1918770 | G22: 63959
B23: Vigilante | C23: =smmlv -> 1160000 | D23: 140606 | E23: =+'Factor Prest. AIU'!$D$28 -> 1.5329 | F23: 1918770 | G23: 63959
B24: Profesional SISO | C24: =smmlv*2.8 -> 3248000 | D24: 0 | E24: =+'Factor Prest. AIU'!$D$28 -> 1.5329 | F24: 4978859 | G24: 165962
B25: Profesional SIG | C25: =smmlv*3.5 -> 4060000 | D25: 0 | E25: =+'Factor Prest. AIU'!$D$28 -> 1.5329 | F25: 6223574 | G25: 207452
B26: Ingeniero de levantamiento de campo | C26: =smmlv*3.25 -> 3770000 | D26: 0 | E26: =+'Factor Prest. AIU'!$D$28 -> 1.5329 | F26: 5779033 | G26: 192634
B27: Contador | C27: =smmlv*3.3 -> 3828000 | D27: 0 | E27: =+'Factor Prest. AIU'!$D$28 -> 1.5329 | F27: 5867941 | G27: 195598
B28: Oficios Varios | C28: =smmlv -> 1160000 | D28: 140606 | E28: =+'Factor Prest. AIU'!C28 -> 1.5729 | F28: 1965170 | G28: 65506
B29: Secretaria | C29: =1.21882698*smmlv -> 1413839.297 | D29: 140606 | E29: =+'Factor Prest. AIU'!$D$28 -> 1.5329 | F29: 2307880 | G29: 76929
B30: Asesor de Tráfico | C30: =smmlv*3 -> 3480000 | D30: 0 | E30: =+'Factor Prest. AIU'!$D$28 -> 1.5329 | F30: 5334492 | G30: 177816
B31: Auxiliar de Transito | C31: =smmlv*1 -> 1160000 | D31: 140606 | E31: =+'Factor Prest. AIU'!C28 -> 1.5729 | F31: 1965170 | G31: 65506
B32: Delineante arquitectura | C32: 2436000 | D32: =+IF(C32<=2*smmlv,auxiliotrans,0) -> 0 | E32: =+'Factor Prest. AIU'!$D$28 -> 1.5329 | F32: =+ROUND(C32*E32+D32,0) -> 3734144 | G32: =+ROUND((F32/(30)),0) -> 124471
B33: Especialista en geotecnia y/o pavimentos | C33: 7000000 | D33: =+IF(C33<=2*smmlv,auxiliotrans,0) -> 0 | E33: 1 | F33: =+ROUND(C33*E33+D33,0) -> 7000000 | G33: =+ROUND((F33/(30)),0) -> 233333
B34: Especialista estructural | C34: 6500000 | D34: =+IF(C34<=2*smmlv,auxiliotrans,0) -> 0 | E34: 1 | F34: =+ROUND(C34*E34+D34,0) -> 6500000 | G34: =+ROUND((F34/(30)),0) -> 216667
B35: Especialista en vías y transporte o diseño geométrico. | C35: 6000000 | D35: =+IF(C35<=2*smmlv,auxiliotrans,0) -> 0 | E35: 1 | F35: =+ROUND(C35*E35+D35,0) -> 6000000 | G35: =+ROUND((F35/(30)),0) -> 200000
B36: Especialista en Hidráulica e Hidrología | C36: 6000000 | D36: =+IF(C36<=2*smmlv,auxiliotrans,0) -> 0 | E36: 1 | F36: =+ROUND(C36*E36+D36,0) -> 6000000 | G36: =+ROUND((F36/(30)),0) -> 200000

Sheet Concretos y Morteros
A2: =+_xlfn.CONCAT("Concretos municipio de ",'Datos generales'!C5,", ",'Datos generales'!C6) -> Concretos municipio de Apartadó, Antioquia
A4: Insumo | B4: Unidad | C4: Bulto 50 Kg | D4: Valor Unitario
A5: CEMENTO USO GENERAL INCLUYE TRANSPORTE INTERNO EN OBRA CARGUE Y DESCARGUE | B5: kg | C5: =+D5*50 -> 37500 | D5: =+Insumos!E29 -> 750
A6: PRECIO ACTUAL DE ARENA FINA | B6: m³ | D6: =+Insumos!E17 -> 58345.1
A7: PRECIO ACTUAL DE ARENA LAVADA DE RIO | B7: m³ | D7: =+Insumos!E18 -> 62272.1
A8: GRAVA (AGREGADO 3/4") | B8: m³ | D8: =+Insumos!E10 -> 81438
A9: AGUA | B9: L | D9: =+Insumos!E11 -> 90
A13: =+_xlfn.CONCAT("Concretos municipio de ",'Datos generales'!C5) -> Concretos municipio de Apartadó
A14: TIPO | B14: Unidad | C14: Cantidad | D14: Valor unitario | E14: Valor parcial
A15: =+B142 -> Concreto de 2000psi (140kg/cm^2) | B15: m³ | C15: 1 | D15: =+G174 -> 411201 | E15: =+C15*D15 -> 411201
A16: =+B104 -> Concreto de 3000psi (210kg/cm^2) | B16: m³ | C16: 1 | D16: =+G136 -> 493485 | E16: =+C16*D16 -> 493485
A17: =+B66 -> Concreto de MR=3.8 Mpa, F'c (280kg/cm^2) | B17: m³ | C17: 1 | D17: =+G98 -> 569357 | E17: =+C17*D17 -> 569357
A18: =+B30 -> Mortero 1:3 Con Arena Fina | B18: m³ | C18: 1 | D18: =+G60 -> 525142 | E18: =+C18*D18 -> 525142
A19: =+B180 -> Concreto de 17,5 Mpa en obra | B19: m³ | C19: 1 | D19: =+G212 -> 444337 | E19: =+C19*D19 -> 444337
A21: Rendimiento m3 | B21: 10
A28: ANÁLISIS DE PRECIOS UNITARIOS
A29: =+'Datos generales'!$B$5 -> Municipio: | B29: =+'Datos generales'!$C$5 -> Apartadó | D29: =+'Datos generales'!$B$6 -> Departamento: | F29: =+'Datos generales'!$C$6 -> Antioquia
A30: ACTIVIDAD: | B30: Mortero 1:3 Con Arena Fina
A31: ITEM: | B31: Morteros y Concretos | F31: UNIDAD | G31: M3
A33: I. MATERIALES EN OBRA
A34: Descripción | C34: Unidad | D34: Precio-Unit. | E34: Cantidad | F34: Valor Unitario
A35: Cemento | C35: kg | D35: =+$D$5 -> 750 | E35: 454 | F35: =+D35*E35 -> 340500
A36: Arena Fina | C36: m3 | D36: =+$D$6 -> 58345.1 | E36: 1.09 | F36: =+D36*E36 -> 63596.159
A37: Agua | C37: lt | D37: =+$D$9 -> 90 | E37: 240 | F37: =+D37*E37 -> 21600
F39: Sub-Total | G39: =+ROUND(SUM(F35:F38),0) -> 425696
A41: II. EQUIPO
A42: Descripción | C42: Unidad | D42: Tarifa/Unidad | E42: Rendimiento | F42: Valor Unitario
A43: =+'Equipos y transporte'!C21 -> Concretadora de 2 bultos diesel | D43: =+'Equipos y transporte'!E21 -> 81500 | E43: =+B21 -> 10 | F43: =+D43/E43 -> 8150
F45: Sub-Total | G45: =+ROUND(SUM(F43:F44),0) -> 8150
A47: III. TRANSPORTES
A48: Materiales | B48: Vol-Peso | C48: Distancia | D48: m³/km | E48: Tarifa | F48: Valor Unitario
A49: Arena Fina | B49: =+E36 -> 1.09 | C49: =+AGREGADOS -> 20 | D49: =+B49*C49 -> 21.8 | E49: =+TRANSPORTE -> 1945 | F49: =+D49*E49 -> 42401
F51: Sub-Total | G51: =+ROUND(SUM(F49:F50),0) -> 42401
A53: IV. MANO DE OBRA
A54: Trabajador o Cuadrilla | B54: Cantidad | C54: Jornal/und* | D54: Jornal total | E54: Rendimiento | F54: Valor Unitario
A55: Oficial | B55: 1 | C55: =+Cuadrillas!$G$7 -> 95915 | D55: =+B55*C55 -> 95915 | E55: =+B21 -> 10 | F55: =+D55/E55 -> 9591.5
A56: Ayudantes (6) | B56: 6 | C56: =+Cuadrillas!$G$5 -> 65506 | D56: =+B56*C56 -> 393036 | E56: =+B21 -> 10 | F56: =+D56/E56 -> 39303.6
F58: Sub-Total | G58: =+ROUND(SUM(F55:F57),0) -> 48895
A60: Precio Unitario Total Aproximado al Peso | G60: =+ROUND(G45+G39+G51+G58,0) -> 525142
A64: ANÁLISIS DE PRECIOS UNITARIOS
A65: =+'Datos generales'!$B$5 -> Municipio: | B65: =+'Datos generales'!$C$5 -> Apartadó | D65: =+'Datos generales'!$B$6 -> Departamento: | F65: =+'Datos generales'!$C$6 -> Antioquia
A66: ACTIVIDAD: | B66: Concreto de MR=3.8 Mpa, F'c (280kg/cm^2)
A67: ITEM: | B67: Morteros y Concretos | F67: UNIDAD | G67: M3
A69: I. MATERIALES EN OBRA
A70: Descripción | C70: Unidad | D70: Precio-Unit. | E70: Cantidad | F70: Valor Unitario
A71: Cemento | C71: kg | D71: =+$D$5 -> 750 | E71: 454 | F71: =+D71*E71 -> 340500
A72: Arena Lavada de Rio | C72: m3 | D72: =+D7 -> 62272.1 | E72: 0.67 | F72: =+D72*E72 -> 41722.307
A73: Grava (Agregado 3/4") | C73: m3 | D73: =+D8 -> 81438 | E73: =+E72 -> 0.67 | F73: =+D73*E73 -> 54563.46
A74: Agua | C74: lt | D74: =+D9 -> 90 | E74: 260 | F74: =+D74*E74 -> 23400
A75: Aditivo reductor de agua de alto rango | C75: kg | D75: =+Insumos!E9 -> 23311 | E75: 0 | F75: =+E75*D75 -> 0
F76: Sub-Total | G76: =+ROUND(SUM(F71:F75),0) -> 460186
A78: II. EQUIPO
A79: Descripción | C79: Unidad | D79: Tarifa/Unidad | E79: Rendimiento | F79: Valor Unitario
A80: Concretadora | D80: =+D43 -> 81500 | E80: =+$E$55 -> 10 | F80: =+D80/E80 -> 8150
F83: Sub-Total | G83: =+ROUND(SUM(F80:F82),0) -> 8150
A85: III. TRANSPORTES
A86: Materiales | B86: Vol-Peso | C86: Distancia | D86: m³/km | E86: Tarifa | F86: Valor Unitario
A87: =+A72 -> Arena Lavada de Rio | B87: =+E72 -> 0.67 | C87: =+AGREGADOS -> 20 | D87: =+B87*C87 -> 13.4 | E87: =+TRANSPORTE -> 1945 | F87: =+D87*E87 -> 26063
A88: =+A73 -> Grava (Agregado 3/4") | B88: =+E73 -> 0.67 | C88: =+C87 -> 20 | D88: =+B88*C88 -> 13.4 | E88: =+TRANSPORTE -> 1945 | F88: =+D88*E88 -> 26063
F89: Sub-Total | G89: =+ROUND(SUM(F87:F88),0) -> 52126
A91: IV. MANO DE OBRA
A92: Trabajador o Cuadrilla | B92: Cantidad | C92: Jornal/und* | D92: Jornal total | E92: Rendimiento | F92: Valor Unitario
A93: Oficial | B93: 1 | C93: =+Cuadrillas!$G$7 -> 95915 | D93: =+B93*C93 -> 95915 | E93: =+$E$55 -> 10 | F93: =+D93/E93 -> 9591.5
A94: Ayudantes (6) | B94: 6 | C94: =+Cuadrillas!$G$5 -> 65506 | D94: =+B94*C94 -> 393036 | E94: =+$E$55 -> 10 | F94: =+D94/E94 -> 39303.6
F96: Sub-Total | G96: =+ROUND(SUM(F93:F95),0) -> 48895
A98: Precio Unitario Total Aproximado al Peso | G98: =+ROUND(G83+G76+G89+G96,0) -> 569357
A102: ANÁLISIS DE PRECIOS UNITARIOS
A103: =+'Datos generales'!$B$5 -> Municipio: | B103: =+'Datos generales'!$C$5 -> Apartadó | D103: =+'Datos generales'!$B$6 -> Departamento: | F103: =+'Datos generales'!$C$6 -> Antioquia
A104: ACTIVIDAD: | B104: Concreto de 3000psi (210kg/cm^2)
A105: ITEM: | B105: Morteros y Concretos | F105: UNIDAD | G105: M3
A107: I. MATERIALES EN OBRA
A108: Descripción | C108: Unidad | D108: Precio-Unit. | E108: Cantidad | F108: Valor Unitario
A109: Cemento | C109: kg | D109: =+D5 -> 750 | E109: 350 | F109: =+D109*E109 -> 262500
A110: Arena Lavada de Rio | C110: m3 | D110: =+D7 -> 62272.1 | E110: 0.56 | F110: =+D110*E110 -> 34872.376
A111: Grava (Agregado 3/4") | C111: m3 | D111: =+D8 -> 81438 | E111: 0.84 | F111: =+D111*E111 -> 68407.92
A112: Agua | C112: lt | D112: =+D9 -> 90 | E112: 180 | F112: =+D112*E112 -> 16200
F114: Sub-Total | G114: =+ROUND(SUM(F109:F113),0) -> 381980
A116: II. EQUIPO
A117: Descripción | C117: Unidad | D117: Tarifa/Unidad | E117: Rendimiento | F117: Valor Unitario
A118: Concretadora | D118: =+D80 -> 81500 | E118: =+$E$55 -> 10 | F118: =+D118/E118 -> 8150
F121: Sub-Total | G121: =+ROUND(SUM(F118:F120),0) -> 8150
A123: III. TRANSPORTES
A124: Materiales | B124: Vol-Peso | C124: Distancia | D124: m³/km | E124: Tarifa | F124: Valor Unitario
A125: =+A110 -> Arena Lavada de Rio | B125: =+E110 -> 0.56 | C125: =+AGREGADOS -> 20 | D125: =+B125*C125 -> 11.2 | E125: =+TRANSPORTE -> 1945 | F125: =+D125*E125 -> 21784
A126: =+A111 -> Grava (Agregado 3/4") | B126: =+E111 -> 0.84 | C126: =+C125 -> 20 | D126: =+B126*C126 -> 16.8 | E126: =+TRANSPORTE -> 1945 | F126: =+D126*E126 -> 32676
F127: Sub-Total | G127: =+ROUND(SUM(F125:F126),0) -> 54460
A129: IV. MANO DE OBRA
A130: Trabajador o Cuadrilla | B130: Cantidad | C130: Jornal/und* | D130: Jornal total | E130: Rendimiento | F130: Valor Unitario
A131: Oficial | B131: 1 | C131: =+Cuadrillas!$G$7 -> 95915 | D131: =+B131*C131 -> 95915 | E131: =+$E$55 -> 10 | F131: =+D131/E131 -> 9591.5
A132: Ayudantes (6) | B132: 6 | C132: =+Cuadrillas!$G$5 -> 65506 | D132: =+B132*C132 -> 393036 | E132: =+E131 -> 10 | F132: =+D132/E132 -> 39303.6
F134: Sub-Total | G134: =+ROUND(SUM(F131:F133),0) -> 48895
A136: Precio Unitario Total Aproximado al Peso | G136: =+ROUND(G121+G114+G127+G134,0) -> 493485
A140: ANÁLISIS DE PRECIOS UNITARIOS
A141: =+'Datos generales'!$B$5 -> Municipio: | B141: =+'Datos generales'!$C$5 -> Apartadó | D141: =+'Datos generales'!$B$6 -> Departamento: | F141: =+'Datos generales'!$C$6 -> Antioquia
A142: ACTIVIDAD: | B142: Concreto de 2000psi (140kg/cm^2)
A143: ITEM: | B143: Morteros y Concretos | F143: UNIDAD | G143: M3
A145: I. MATERIALES EN OBRA
A146: Descripción | C146: Unidad | D146: Precio-Unit. | E146: Cantidad | F146: Valor Unitario
A147: Cemento | C147: kg | D147: =+D5 -> 750 | E147: 230 | F147: =+D147*E147 -> 172500
A148: Arena Lavada de Rio | C148: m3 | D148: =+D7 -> 62272.1 | E148: 0.55 | F148: =+D148*E148 -> 34249.655
A149: Grava (Agregado 3/4") | C149: m3 | D149: =+D8 -> 81438 | E149: 0.92 | F149: =+D149*E149 -> 74922.96
A150: Agua | C150: lt | D150: =+D9 -> 90 | E150: 170 | F150: =+D150*E150 -> 15300
F152: Sub-Total | G152: =+ROUND(SUM(F147:F151),0) -> 296973
A154: II. EQUIPO
A155: Descripción | C155: Unidad | D155: Tarifa/Unidad | E155: Rendimiento | F155: Valor Unitario
A156: Concretadora | D156: =+D118 -> 81500 | E156: =+$E$55 -> 10 | F156: =+D156/E156 -> 8150
F159: Sub-Total | G159: =+ROUND(SUM(F156:F158),0) -> 8150
A161: III. TRANSPORTES
A162: Materiales | B162: Vol-Peso | C162: Distancia | D162: m³/km | E162: Tarifa | F162: Valor Unitario
A163: =+A148 -> Arena Lavada de Rio | B163: =+E148 -> 0.55 | C163: =+AGREGADOS -> 20 | D163: =+B163*C163 -> 11 | E163: =+TRANSPORTE -> 1945 | F163: =+D163*E163 -> 21395
A164: =+A149 -> Grava (Agregado 3/4") | B164: =+E149 -> 0.92 | C164: =+C163 -> 20 | D164: =+B164*C164 -> 18.4 | E164: =+TRANSPORTE -> 1945 | F164: =+D164*E164 -> 35788
F165: Sub-Total | G165: =+ROUND(SUM(F163:F164),0) -> 57183
A167: IV. MANO DE OBRA
A168: Trabajador o Cuadrilla | B168: Cantidad | C168: Jornal/und* | D168: Jornal total | E168: Rendimiento | F168: Valor Unitario
A169: Oficial | B169: 1 | C169: =+Cuadrillas!$G$7 -> 95915 | D169: =+B169*C169 -> 95915 | E169: =+$E$55 -> 10 | F169: =+D169/E169 -> 9591.5
A170: Ayudantes (6) | B170: 6 | C170: =+Cuadrillas!$G$5 -> 65506 | D170: =+B170*C170 -> 393036 | E170: =+$E$55 -> 10 | F170: =+D170/E170 -> 39303.6
F172: Sub-Total | G172: =+ROUND(SUM(F169:F171),0) -> 48895
A174: Precio Unitario Total Aproximado al Peso | G174: =+ROUND(G159+G152+G165+G172,0) -> 411201
A178: ANÁLISIS DE PRECIOS UNITARIOS
A179: =+'Datos generales'!$B$5 -> Municipio: | B179: =+'Datos generales'!$C$5 -> Apartadó | D179: =+'Datos generales'!$B$6 -> Departamento: | F179: =+'Datos generales'!$C$6 -> Antioquia
A180: ACTIVIDAD: | B180: Concreto de 17,5 Mpa en obra
A181: ITEM: | B181: Morteros y Concretos | F181: UNIDAD | G181: M3
A183: I. MATERIALES EN OBRA
A184: Descripción | C184: Unidad | D184: Precio-Unit. | E184: Cantidad | F184: Valor Unitario
A185: Cemento | C185: kg | D185: =+D5 -> 750 | E185: 280 | F185: =+D185*E185 -> 210000
A186: Arena Lavada de Rio | C186: m3 | D186: =+D7 -> 62272.1 | E186: 0.55 | F186: =+D186*E186 -> 34249.655
A187: Grava (Agregado 3/4") | C187: m3 | D187: =+D8 -> 81438 | E187: 0.88 | F187: =+D187*E187 -> 71665.44
A188: Agua | C188: lt | D188: =+D9 -> 90 | E188: 175 | F188: =+D188*E188 -> 15750
F190: Sub-Total | G190: =+ROUND(SUM(F185:F189),0) -> 331665
A192: II. EQUIPO
A193: Descripción | C193: Unidad | D193: Tarifa/Unidad | E193: Rendimiento | F193: Valor Unitario
A194: Concretadora | D194: =+D156 -> 81500 | E194: =+$E$55 -> 10 | F194: =+D194/E194 -> 8150
F197: Sub-Total | G197: =+ROUND(SUM(F194:F196),0) -> 8150
A199: III. TRANSPORTES
A200: Materiales | B200: Vol-Peso | C200: Distancia | D200: m³/km | E200: Tarifa | F200: Valor Unitario
A201: =+A186 -> Arena Lavada de Rio | B201: =+E186 -> 0.55 | C201: =+AGREGADOS -> 20 | D201: =+B201*C201 -> 11 | E201: =+TRANSPORTE -> 1945 | F201: =+D201*E201 -> 21395
A202: =+A187 -> Grava (Agregado 3/4") | B202: =+E187 -> 0.88 | C202: =+C201 -> 20 | D202: =+B202*C202 -> 17.6 | E202: =+TRANSPORTE -> 1945 | F202: =+D202*E202 -> 34232
F203: Sub-Total | G203: =+ROUND(SUM(F201:F202),0) -> 55627
A205: IV. MANO DE OBRA
A206: Trabajador o Cuadrilla | B206: Cantidad | C206: Jornal/und* | D206: Jornal total | E206: Rendimiento | F206: Valor Unitario
A207: Oficial | B207: 1 | C207: =+Cuadrillas!$G$7 -> 95915 | D207: =+B207*C207 -> 95915 | E207: =+$E$55 -> 10 | F207: =+D207/E207 -> 9591.5
A208: Ayudantes (6) | B208: 6 | C208: =+Cuadrillas!$G$5 -> 65506 | D208: =+B208*C208 -> 393036 | E208: =+$E$55 -> 10 | F208: =+D208/E208 -> 39303.6
F210: Sub-Total | G210: =+ROUND(SUM(F207:F209),0) -> 48895
A212: Precio Unitario Total Aproximado al Peso | G212: =+ROUND(G197+G190+G203+G210,0) -> 444337

Sheet Caracterización vial
B4: CARACTERIZACIÓN VIAL
B6: CÁLCULO DETALLADO DEL VALOR DE LA CARACTERIZACIÓN VIAL POR KILOMETRO
B7: PROYECTO | D7: =+'Datos generales'!B4 -> Optimización del proceso de cálculo de cantidades y presupuesto de obras de pavimento rígido y flexible en la empresa Grupo Tecmedic S.A.S
B8: N° | C8: CONCEPTO | D8: A | E8: B | F8: C | H8: D | I8: F | J8: G
D9: SUELDO MES BÁSICO | E9: CANTIDAD | F9: % DE DEDICACIÓN | H9: VALOR MES (A * B * C*E) | I9: N° DE MESES | J9: TOTAL PARCIAL (D * E)
B10: 1.0 | C10: COSTO DE PERSONAL
B11: 1.1 | C11: PERSONAL TÉCNICO
B12: 1.1.1 | C12: Ingeniero SIG | D12: =+Cuadrillas!C25 -> 4060000 | E12: 1 | F12: 1 | G12: 1 | H12: =+D12*E12*F12*G12 -> 4060000 | I12: =2/104 -> 0.01923076923 | J12: =ROUND(H12*I12,0) -> 78077
B13: 1.2 | C13: PERSONAL OPERATIVO
B14: 1.2.1 | C14: Topografo | D14: =+Cuadrillas!C12 -> 2552000 | E14: 1 | F14: 1 | G14: 1 | H14: =+D14*E14*F14*G14 -> 2552000 | I14: =+I12 -> 0.01923076923 | J14: =ROUND(H14*I14,0) -> 49077
B15: 1.2.2 | C15: Cadenero | D15: =+Cuadrillas!C13 -> 1392000 | E15: 1 | F15: 1 | G15: 1 | H15: =+D15*E15*F15*G15 -> 1392000 | I15: =+I14 -> 0.01923076923 | J15: =ROUND(H15*I15,0) -> 26769
C16: TOTAL COSTOS DE PERSONAL | J16: =SUM(J12:J15) -> 153923
C17: FACTOR MULTIPLICADOR | J17: 1.82
J18: =+J17*J16 -> 280139.86
C20: DESCRIPCIÓN | D20: UNIDAD | F20: CANTIDAD | H20: VALOR UNITARIO | J20: VALOR TOTAL
B21: 2.0 | C21: COSTOS DIRECTOS
B22: 2.1 | C22: Alquiler de Camioneta o Campero 4x4 modelo 2015 en adelante, incluye conductor, comustible y mantenimiento | D22: mes | F22: =+I12 -> 0.01923076923 | H22: =+'Equipos y transporte'!E11 -> 4000000 | J22: =(F22*H22) -> 76923.07692
B23: 2.2 | C23: Alquiler de gps de precision menor a 5 mts, receptor GPS doble frecuencia GNSS (incluye mecanismo de sorte y Colectara de datos) | D23: mes | F23: =+F22 -> 0.01923076923 | H23: =+'Equipos y transporte'!E5 -> 4250000 | J23: =(F23*H23) -> 81730.76923
B24: 2.3 | C24: Alquiler de equipos de computo con software SIG. | D24: mes | F24: =+F23 -> 0.01923076923 | H24: =+'Equipos y transporte'!E4 -> 2600000 | J24: =(F24*H24) -> 50000
C25: TOTAL COSTOS DIRECTOS | J25: =SUM(J22:J24) -> 208653.8462
C26: SUBTOTAL COSTOS DE PERSONAL + COSTOS DIRECTOS | J26: =+J25+J18 -> 488793.7062
C27: IVA (19%) | J27: =0.19*J26 -> 92870.80417
B29: TOTAL COSTOS | J29: =SUM(J26:J28) -> 581664.5103
B31: PROYECTO | D31: =+'Datos generales'!B4 -> Optimización del proceso de cálculo de cantidades y presupuesto de obras de pavimento rígido y flexible en la empresa Grupo Tecmedic S.A.S
B32: CARACTERIZACION VIAL POR MUNICIPIO
B33: LONGITUD TOTAL DEL PROYECTO A CARACTERIZAR EN KM | H33: =+ROUND(SUM(F36:F37),2) -> 20
B34: Ítem | C34: Descripción | E34: Unidad | F34: Cantidad | G34: Precio Unitario | H34: Valor parcial
B35: 1.0 | C35: Caracterización vial | E35: km
B36: 1.9 | C36: Caracterización vial
B37: 1.9.1 | C37: Vía a caracterizar | E37: km | F37: =+'Datos generales'!C17 -> 20 | G37: =+J29 -> 581664.5103 | H37: =+ROUND(F37*G37,0) -> 11633290
C38: VALOR TOTAL CARACTERIZACIÓN | H38: =+H37 -> 11633290
C39: =+_xlfn.CONCAT("CARACTERIZACIÓN VIAL DE ",H33," Km ( Resolución 1860 de 2013 y 1067 de 2015 del Ministerio de Transporte)") -> CARACTERIZACIÓN VIAL DE 20 Km ( Resolución 1860 de 2013 y 1067 de 2015 del Ministerio de Transporte)

Sheet Factor Prest. AIU
B3: CÁLCULO FACTOR PRESTACIONAL AIU
B5: ANÁLISIS MANO DE OBRA
B6: Salario Mínimo Mensual Legal Vigente año 2023 | C6: 1160000
B7: Subsidio de Transporte (Salario<=2 SMML) | C7: =140606 -> 140606
B9: DESCRIPCIÓN | C9: SALARIO <=2 SMMLV | D9: SALARIO >2 SMMLV
C10: PERSONAL TECNICO, OPERATIVO Riesgo Clase V | D10: PERSONAL TECNICO, OPERATIVO Riesgo Clase V
B12: PRESTACIONES SOCIALES
B13: Cesantías | C13: 0.0833 | D13: 0.0833
B14: Intereses de Cesantías | C14: 0.01 | D14: 0.01
B15: Vacaciones | C15: =+((15/360)) -> 0.04166666667 | D15: =+((15/360)) -> 0.04166666667
B16: Primas | C16: 0.0833 | D16: 0.0833
B18: SEGURIDAD SOCIAL
B19: Aporte régimen general de pensiones (I.V.M) | C19: 0.12 | D19: 0.12
B20: Aportes riesgos profesionales A.R.P. | C20: 0.0696 | D20: 0.0696
B21: Aportes régimen contributivo de salud | C21: 0.085 | D21: 0.085
B23: OTROS APORTES
B24: Subsidio de transporte
B25: Otros (Auxilios varios, prestaciones extralegales, Incapacidades no cubiertas) | C25: 0.02 | D25: 0.01
B26: Examenes medicos de ingreso y egreso | C26: 0.02 | D26: 0.01
B27: Dotación | C27: 0.04 | D27: 0.02
B28: FACTOR PRESTACIONAL | C28: =ROUND(SUM(C13:C27)+1,4) -> 1.5729 | D28: =ROUND(SUM(D13:D27)+1,4) -> 1.5329

Sheet AIU
A2: CÁLCULO DE LA ADMINISTRACION, IMPREVISTOS Y UTILIDADES
A4: PROYECTO | C4: =+'Datos generales'!B4 -> Optimización del proceso de cálculo de cantidades y presupuesto de obras de pavimento rígido y flexible en la empresa Grupo Tecmedic S.A.S
E5: Costos Directos + PAGA + PMT + Caracterización | I5: =+'Presupuesto General'!H19+'Presupuesto General'!H25+'Presupuesto General'!H26+'Presupuesto General'!H27 -> 5677838930
E6: Costos Directos | I6: =+'Presupuesto General'!H19 -> 5608381060
A7: ITEM | B7: DESCRIPCIÓN | C7: UNIDAD | D7: Cantidad | E7: V.M./BASE | F7: FACT PREST. | G7: DEDICACIÓN | H7: DURACIÓN OBRA (Meses) | I7: V.PARCIAL
A8: 1 | B8: PERSONAL PROFESIONAL TÉCNICO | I8: =SUM(I9:I15) -> 139874059
A9: =+IF(B9<>"-",A8+0.1," ") -> 1.1 | B9: Director de obra | C9: =+IF(B9="-"," ","und") -> und | D9: 1 | E9: =+IF(B9=" "," ",VLOOKUP(B9,Tabla3[],2,FALSE)) -> 5800000 | F9: =IF(B9="-"," ",'Factor Prest. AIU'!$D$28) -> 1.5329 | G9: 0.5 | H9: =IF(B9="-"," ",duracion) -> 6 | I9: =IF(B9="-"," ",ROUND(D9*E9*F9*G9*H9,0)) -> 26672460
A10: =+IF(B10<>"-",A9+0.1," ") -> 1.2 | B10: Ingeniero residente de obra | C10: und | D10: 1 | E10: =+IF(B10=" "," ",VLOOKUP(B10,Tabla3[],2,FALSE)) -> 4060000 | F10: =IF(B10="-"," ",'Factor Prest. AIU'!$D$28) -> 1.5329 | G10: 1 | H10: 6 | I10: =IF(B10="-"," ",ROUND(D10*E10*F10*G10*H10,0)) -> 37341444
A11: 1.3 | B11: Trabajador social | C11: und | D11: 2 | E11: =+IF(B11=" "," ",VLOOKUP(B11,Tabla3[],2,FALSE)) -> 2500000 | F11: =IF(B11="-"," ",'Factor Prest. AIU'!$D$28) -> 1.5329 | G11: 1 | H11: 6 | I11: 45987000
A12: 1.4 | B12: Profesional SISO | C12: und | D12: 1 | E12: =+IF(B12=" "," ",VLOOKUP(B12,Tabla3[],2,FALSE)) -> 3248000 | F12: =IF(B12="-"," ",'Factor Prest. AIU'!$D$28) -> 1.5329 | G12: 1 | H12: 6 | I12: 29873155
B13: - | E13: =+IF(B13=" "," ",VLOOKUP(B13,Tabla3[],2,FALSE)) -> - | F13: =IF(B13="-"," ",'Factor Prest. AIU'!$D$28) -> 
B14: - | E14: =+IF(B14=" "," ",VLOOKUP(B14,Tabla3[],2,FALSE)) -> - | F14: =IF(B14="-"," ",'Factor Prest. AIU'!$D$28) -> 
B15: - | C15: =+IF(B15="-"," ","und") ->  | E15: =+IF(B15=" "," ",VLOOKUP(B15,Tabla3[],2,FALSE)) -> - | F15: =IF(B15="-"," ",'Factor Prest. AIU'!$D$28) -> 
A17: 2 | B17: PERSONAL OPERATIVO Y ACTIVO | I17: =SUM(I18:I21) -> 70063257
A18: =+IF(B18<>"-",A17+0.1," ") -> 2.1 | B18: Maestro de Obra | C18: =+IF(B18="-"," ","und") -> und | D18: 1 | E18: =+IF(B18=" "," ",VLOOKUP(B18,Tabla3[],2,FALSE)) -> 2436000 | F18: =IF(B18="-"," ",'Factor Prest. AIU'!$C$28) -> 1.5729 | G18: 1 | H18: =IF(B18="-"," ",duracion) -> 6 | I18: =+ROUND(D18*E18*F18*G18*H18,0) -> 22989506
A19: =+IF(B19<>"-",A18+0.1," ") -> 2.2 | B19: Almacenista | C19: und | D19: 1 | E19: =+IF(B19=" "," ",VLOOKUP(B19,Tabla3[],2,FALSE)) -> 1160000 | F19: =IF(B19="-"," ",'Factor Prest. AIU'!$C$28) -> 1.5729 | G19: 1 | H19: =IF(B19="-"," ",duracion) -> 6 | I19: =+ROUND(D19*E19*F19*G19*H19,0) -> 10947384
A20: 2.3 | B20: Cadenero 1° | C20: und | D20: 1 | E20: =+IF(B20=" "," ",VLOOKUP(B20,Tabla3[],2,FALSE)) -> 1392000 | F20: =IF(B20="-"," ",'Factor Prest. AIU'!$C$28) -> 1.5729 | G20: 1 | H20: =IF(B20="-"," ",duracion) -> 6 | I20: =+ROUND(D20*E20*F20*G20*H20,0) -> 13136861
A21: 2.4 | B21: Delineante arquitectura | C21: und | D21: 1 | E21: =+IF(B21=" "," ",VLOOKUP(B21,Tabla3[],2,FALSE)) -> 2436000 | F21: =IF(B21="-"," ",'Factor Prest. AIU'!$C$28) -> 1.5729 | G21: 1 | H21: =IF(B21="-"," ",duracion) -> 6 | I21: =+ROUND(D21*E21*F21*G21*H21,0) -> 22989506
A22: 3 | B22: GASTOS OPERACIONALES | I22: =SUM(I23:I26) -> 72000000
A23: 3.1 | B23: Instalacion de oficina y otras instalaciones provisionales en la obra(Incluye muebles, enseres , equipo de oficina, servicios publicos y telecomunicaciones) | C23: Un | D23: 1 | E23: =1.2*3950000 -> 4740000 | H23: =+duracion -> 6 | I23: =+D23*E23*H23 -> 28440000
A24: 3.2 | B24: Papeleria, Tinta, Fotocopias, Planos y otros | C24: Un | D24: 1 | E24: =1.2*250000 -> 300000 | H24: =+duracion -> 6 | I24: =+D24*E24*H24 -> 1800000
A25: 3.3 | B25: Alquiler de Bodegas Provisionales (incluye servicios publicos) o Construccion de campamento auxiliar | C25: Un | D25: 4 | E25: =1.2*1450000 -> 1740000 | H25: =+duracion -> 6 | I25: =+D25*E25*H25 -> 41760000
A26: 3.4 | B26: Alquiler de Equipo de Topografia | C26: Un | D26: =+D14 -> 0 | E26: =1.2*80000*30 -> 2880000 | H26: =+duracion -> 6 | I26: =+D26*E26*H26 -> 0
A27: 4 | B27: CONTROL DE CALIDAD | I27: =SUM(I28:I33) -> 8472000
A28: 4.1 | B28: Ensayo de densidad de Base in situ (1) uno por cada 50 m por capa no mayores de 15 cm | C28: Un | D28: =+ROUNDUP('Datos generales'!C27/50,0)*2 -> 88 | E28: =1.2*45000 -> 54000 | I28: =+D28*E28 -> 4752000
A29: 4.2 | B29: Ensayo de laboratorio Proctor modificado para material de Base uno (3) por cada cantera utilizada | C29: Un | D29: 3 | E29: =1.2*28000 -> 33600 | I29: 100800
A30: 4.3 | B30: Ensayo de laboratorio Granulometria de material para Base uno (1) por cada cantera | C30: Un | D30: 2 | E30: =1.2*28000 -> 33600 | I30: 67200
A31: 4.6 | B31: Diseño de mezcla de concreto MR=3.8 MPA uno (1) por cada cantera | C31: Un | D31: 2 | E31: =1.2*650000 -> 780000 | I31: 1560000
A32: 4.7 | B32: Diseño de mezcla de concreto f'c=21 MPA uno (1) por cada cantera | C32: Un | D32: 2 | E32: =1.2*650000 -> 780000 | I32: 1560000
A33: 4.8 | B33: Ensayo de laboratorio de Resistencia del concreto | C33: Un | D33: =+ROUNDUP('Datos generales'!C27/90,0) -> 24 | E33: =1.2*15000 -> 18000 | I33: 432000
A34: 6.0 | B34: VEHICULOS | I34: =+I35 -> 120000000
A35: 6.1 | B35: Alquiler de Camioneta o Campero 4x4 modelo 2015 en adelante, incluye conductor, combustible y mantenimiento | C35: Un | D35: 4 | E35: =5000000 -> 5000000 | H35: =duracion -> 6 | I35: =+D35*Vehiculo__Tipo_pickup*H35 -> 120000000
A36: 7.0 | B36: IMPACTO COMUNITARIO - VALLA | I36: =+I37 -> 3571976.4
A37: 7.1 | B37: Suministro, transporte e instalación de valla informativa ( según Circular 006 de 2014 del SGR) (3mx 2m, incluye todo lo necesario para su correcta instalacion)(Acorde con diseño incluido en el proyecto) | C37: Un | D37: 1 | E37: 3571976.4 | I37: =+D37*E37 -> 3571976.4
B39: Administración (Costo Administración/Costos Directos) antes de impuestos y Polizas | H39: 0.2164818485 | I39: =+I8+I17+I22+I27+I34+I36 -> 413981292.4
B40: Porcentaje de Imprevistos (Estimado por Obra) | H40: 0.01 | I40: =+ROUND($I$6*H40,0) -> 56083811
B41: Porcentaje de Utilidad | H41: 0.05 | I41: =+ROUND($I$6*H41,0) -> 280419053
A42: TOTAL A.U.I. antes de impuestos | I42: =+SUM(I39:I41) -> 750484156.4
A43: GASTOS DE LEGALIZACIÓN
B44: % Gastos de Legalizacíon y Perfeccionamiento | H44: =+(I44/I6) -> 0.1623519702 | I44: =ROUND(+SUM(F45:G48,G50:H54),0) -> 910531715
A45: 9.1 | B45: Estampilla Unicordoba | C45: =+($I$42+$I$5)/(1-(SUM($E$45:$E$48,$F$50:$F$54))) -> 7338854802 | E45: 0.01 | F45: =+C45*E45 -> 73388548.02
A46: 9.2 | B46: Estampilla Procultura | C46: =+($I$42+$I$5)/(1-(SUM($E$45:$E$48,$F$50:$F$54))) -> 7338854802 | E46: 0.02 | F46: =+C46*E46 -> 146777096
A47: 9.3 | B47: Estampilla Adulto Mayòr | C47: =+($I$42+$I$5)/(1-(SUM($E$45:$E$48,$F$50:$F$54))) -> 7338854802 | E47: 0.04 | F47: =+C47*E47 -> 293554192.1
A48: 9.4 | B48: Fondo Seguridad | C48: =+($I$42+$I$5)/(1-(SUM($E$45:$E$48,$F$50:$F$54))) -> 7338854802 | E48: 0.05 | F48: =+C48*E48 -> 366942740.1
A49: 8.1 | B49: Polizas | C49: % Asegurado | E49: Base asegurada | F49: % Costo Poliza | G49: V. Parcial | I49: =+SUM(G50:H54) -> 29869139.04
A50: 8.1.1 | B50: Cumplimiento | C50: 0.1 | E50: =+($I$42+$I$5)/(1-(SUM($E$45:$E$48,$F$50:$F$54))) -> 7338854802 | F50: 0.0004 | G50: =+F50*E50 -> 2935541.921
A51: 8.1.2 | B51: Estabilidad y Calidad de la Obras | C51: 0.1 | E51: =+($I$42+$I$5)/(1-(SUM($E$45:$E$48,$F$50:$F$54))) -> 7338854802 | F51: 0.001 | G51: =+F51*E51 -> 7338854.802
A52: 8.1.3 | B52: Salarios y Prestaciones Sociales | C52: 0.1 | E52: =+($I$42+$I$5)/(1-(SUM($E$45:$E$48,$F$50:$F$54))) -> 7338854802 | F52: 0.00067 | G52: =+F52*E52 -> 4917032.717
A53: 8.1.4 | B53: Buen Manejo y Correcta Inversión del Anticipo | C53: 1 | E53: =+($I$42+$I$5)/(1-(SUM($E$45:$E$48,$F$50:$F$54))) -> 7338854802 | F53: 0.0011 | G53: =+F53*E53 -> 8072740.282
A54: 8.1.5 | B54: DECRETO 1082 SMMLV Responsabilidad Civil | C54: 5% Total de contrato | E54: =+($I$42+$I$5)/(1-(SUM($E$45:$E$48,$F$50:$F$54))) -> 7338854802 | F54: 0.0009 | G54: =+F54*E54 -> 6604969.321
A57: Porcentaje Administración (Costo Administración/Costos Directos) despues de impuestos | H57: =+I57/I6 -> 0.2361667285 | I57: =+ROUND(I39+I44,4) -> 1324513007
A58: TOTAL A.U.I. | H58: =+I58/I6 -> 0.2961667285 | I58: =ROUND(+I40+I41+I57,0) -> 1661015871

Sheet Ambiental
B2: PRESUPUESTO AMBIENTAL
B4: PROYECTO | C4: =+'Datos generales'!B4 -> Optimización del proceso de cálculo de cantidades y presupuesto de obras de pavimento rígido y flexible en la empresa Grupo Tecmedic S.A.S
B5: ITEM | C5: DESCRIPCIÓN | D5: UNIDAD | E5: CANTIDAD | F5: PRECIO UNITARIO | G5: VALOR PARCIAL
B6: 1 | C6: ACTIVIDADES CONSTRUCTIVAS
B7: 1.1 | C7: Manejo Integral de Materiales de Construcción, pétreos, concretos, prefabricados
B8: 1.1.1 | C8: Plástico negro, calibre 6 y ancho de 2m u otros elementos para la protección del suelo durante el almacenamiento o preparación de materiales de construcción | D8: ROLLO | E8: 4 | F8: 846000 | G8: =+E8*F8 -> 3384000
B9: 1.1.2 | C9: Kit de 6 señalización en zonas de acopio, sitios de disposición temporal de residuos, rótulos de pimpinas (la señalización debe estar laminada o plastificada letra visible 0,25x0.4m) | D9: UND | E9: 1 | F9: 80000 | G9: =+E9*F9 -> 80000
B10: 1.1.3 | C10: Cinta para cerramiento (rollo 500m de longitud) | D10: UND | E10: 2 | F10: 34000 | G10: 68000
B11: 1.2 | C11: Manejo de Residuos Sólidos Convencionales y Especiales
B12: 1.2.1 | C12: Punto ecológico 3 colores de 100 litros con tapa debidamente rotulados | D12: UND | E12: 2 | F12: 315000 | G12: 630000
B13: 1.2.2 | C13: Paquete de Bolsas de Colores (4) Biodegradegradables para puntos ecológicos 100x120cm x100 Unidades | D13: UND | E13: 5 | F13: 98000 | G13: 490000
B14: 1.2.3 | C14: Herramientas y equipos para el aseo y limpieza en la obra | D14: UND | E14: 4 | F14: 89564 | G14: 358256
C15: TOTAL ACTIVIDADES CONSTRUCTIVAS | G15: =+SUM(G8:G14) -> 5010256
B16: 2 | C16: BIODIVERSIDAD Y SERVICIOS ECOSISTÉMICOS
B17: 2.1 | C17: Gestión para la Protección Fauna y flora
B18: 2.1.1 | C18: Malla tipo polisombra negra al 35% de 4 x 100 mt el rollo para delimitación y protección de zonas verdes | D18: UND | E18: 5 | F18: 400000 | G18: 2000000
C19: TOTAL BIODIVERSIDAD Y SERVICIOS ECOSISTÉMICOS | G19: =+SUM(G18) -> 2000000
B20: 3.0 | C20: MANEJO DE CAMPAMENTO E INSTALACIONES TEMPORALES
B21: 3.1 | C21: Cerramiento
B22: 3.1.1 | C22: Cinta para cerramiento (rollo 500m de longitud) | D22: UND | E22: 4 | F22: 34000 | G22: 136000
B23: 3.2 | C23: Manejo de Residuos líquidos
B24: 3.2.1 | C24: Kit ambiental antiderrames | D24: UND | E24: 1 | F24: 160000 | G24: 160000
B25: 3.2.2 | C25: Alquiler de 1 Baño portátil (unidad por cada 15 personas) para los servicios sanitarios con todo lo requerido conforme la resolución para su adecuadofuncionamiento en los sitios de trabajo por el tiempo de duración del proyecto,incluyendo su transporte y mantenimiento. | D25: ALQUILER/MES | E25: 6 | F25: 1047000 | G25: 6282000
C26: TOTAL MANEJO DE CAMPAMENTO E INSTALACIONES TEMPORALES | G26: =+SUM(G22:G25) -> 6578000
C27: TOTAL GESTIÓN AMBIENTAL | G27: =+G15+G19+G26 -> 13588256
B28: 4 | C28: GESTIÓN SOCIAL
B29: 4.1 | C29: Participación
B30: 4.1.1 | C30: Logística de reuniones de inicio y finalización(2) por municipio | D30: UND | E30: 2 | F30: 200000 | G30: 400000
B31: 4.2 | C31: Comunicación y Divulgación
B32: 4.2.1 | C32: Vallas informativas en lona 3,10 x 2,10 | D32: UND | E32: 1 | F32: 800000 | G32: 800000
B33: 4.2.2 | C33: Buzón de sugerencias en acrílico de 30cmx30cmx30cm | D33: UND | E33: 1 | F33: 145000 | G33: 145000
B34: 4.2.3 | C34: Cartelera informativa de 1.0mx0.8m en madera con fondo de corcho | D34: UND | E34: 2 | F34: 310000 | G34: 620000
B35: 4.2.4 | C35: Elaboración de volantes informativos | D35: UND | E35: 1000 | F35: 950 | G35: 950000
C36: TOTAL GESTIÓN SOCIAL | G36: =+SUM(G30:G35) -> 2915000
B37: COSTO TOTAL DE LA IMPLEMENTACIÓN DEL PLAN DE MANEJO AMBIENTAL (PMA) | G37: =+G36+G27 -> 16503256

Sheet Interventoría
A2: CÁLCULO DETALLADO DEL VALOR DE LA INTERVENTORÍA
A4: PROYECTO | C4: =+'Datos generales'!B4 -> Optimización del proceso de cálculo de cantidades y presupuesto de obras de pavimento rígido y flexible en la empresa Grupo Tecmedic S.A.S
A5: Costos Directos + PAGA + PMT + Caracterización | I5: =+'Presupuesto General'!H19+'Presupuesto General'!H25+'Presupuesto General'!H26+'Presupuesto General'!H27 -> 5677838930
A6: Costos Directos | I6: =+'Presupuesto General'!H19 -> 5608381060
A7: ÍTEM | B7: DESCRIPCIÓN | C7: UNIDAD | D7: CANTIDAD | E7: V.M./BASE | F7: FACT PREST. | G7: DEDICACIÓN | H7: DURACIÓN OBRA (Meses) | I7: V.PARCIAL
A8: 1 | B8: PERSONAL PROFESIONAL TÉCNICO | I8: =SUM(I9:I15) -> 204366228
A9: =+IF(B9<>"-",A8+0.1," ") -> 1.1 | B9: Director de obra | C9: =+IF(B9="-"," ","und") -> und | D9: 1 | E9: =+IF(B9=" "," ",VLOOKUP(B9,Tabla3[],2,FALSE)) -> 5800000 | F9: =IF(B9="-"," ",'Factor Prest. AIU'!$D$28) -> 1.5329 | G9: 1 | H9: =IF(B9="-"," ",duracion) -> 6 | I9: =IF(B9="-"," ",ROUND(D9*E9*F9*G9*H9,0)) -> 53344920
A10: =+IF(B10<>"-",A9+0.1," ") -> 1.2 | B10: Ingeniero residente de obra | C10: und | D10: 1 | E10: =+IF(B10=" "," ",VLOOKUP(B10,Tabla3[],2,FALSE)) -> 4060000 | F10: =IF(B10="-"," ",'Factor Prest. AIU'!$D$28) -> 1.5329 | G10: 1 | H10: 6 | I10: =IF(B10="-"," ",ROUND(D10*E10*F10*G10*H10,0)) -> 37341444
A11: 1.3 | B11: Trabajador social | C11: und | D11: 1 | E11: =+IF(B11=" "," ",VLOOKUP(B11,Tabla3[],2,FALSE)) -> 2500000 | F11: =IF(B11="-"," ",'Factor Prest. AIU'!$D$28) -> 1.5329 | G11: 1 | H11: 6 | I11: 22993500
A12: 1.4 | B12: Profesional SISO | C12: und | D12: 1 | E12: =+IF(B12=" "," ",VLOOKUP(B12,Tabla3[],2,FALSE)) -> 3248000 | F12: =IF(B12="-"," ",'Factor Prest. AIU'!$D$28) -> 1.5329 | G12: 1 | H12: 6 | I12: 29873155
A13: 1.5 | B13: Topógrafo | C13: und | D13: 1 | E13: =+IF(B13=" "," ",VLOOKUP(B13,Tabla3[],2,FALSE)) -> 2552000 | F13: =IF(B13="-"," ",'Factor Prest. AIU'!$D$28) -> 1.5329 | G13: 1 | H13: 6 | I13: 23471765
A14: 1.6 | B14: Ingeniero ambiental | C14: und | D14: 1 | E14: =+IF(B14=" "," ",VLOOKUP(B14,Tabla3[],2,FALSE)) -> 4060000 | F14: =IF(B14="-"," ",'Factor Prest. AIU'!$D$28) -> 1.5329 | G14: 1 | H14: 6 | I14: 37341444
B15: - | C15: =+IF(B15="-"," ","und") ->  | E15: =+IF(B15=" "," ",VLOOKUP(B15,Tabla3[],2,FALSE)) -> - | F15: =IF(B15="-"," ",'Factor Prest. AIU'!$D$28) -> 
A17: 2 | B17: PERSONAL DE APOYO | I17: =SUM(I18:I21) -> 13003646
A18: =+IF(B18<>"-",A17+0.1," ") -> 2.1 | B18: Secretaria | C18: =+IF(B18="-"," ","und") -> und | D18: 1 | E18: =+IF(B18=" "," ",VLOOKUP(B18,Tabla3[],2,FALSE)) -> 1413839.297 | F18: =IF(B18="-"," ",'Factor Prest. AIU'!$D$28) -> 1.5329 | G18: 1 | H18: =IF(B18="-"," ",duracion) -> 6 | I18: =+ROUND(D18*E18*F18*G18*H18,0) -> 13003646
A19: =+IF(B19<>"-",A18+0.1," ") ->  | B19: - | E19: =+IF(B19=" "," ",VLOOKUP(B19,Tabla3[],2,FALSE)) -> - | F19: =IF(B19="-"," ",'Factor Prest. AIU'!$C$28) ->  | H19: =IF(B19="-"," ",duracion) ->  | I19: =IF(B19="-"," ",ROUND(D19*E19*F19*G19*H19,0)) -> 
B20: - | E20: =+IF(B20=" "," ",VLOOKUP(B20,Tabla3[],2,FALSE)) -> - | F20: =IF(B20="-"," ",'Factor Prest. AIU'!$C$28) ->  | H20: =IF(B20="-"," ",duracion) ->  | I20: =IF(B20="-"," ",ROUND(D20*E20*F20*G20*H20,0)) -> 
B21: - | E21: =+IF(B21=" "," ",VLOOKUP(B21,Tabla3[],2,FALSE)) -> - | F21: =IF(B21="-"," ",'Factor Prest. AIU'!$C$28) ->  | H21: =IF(B21="-"," ",duracion) -> 
A22: 3 | B22: GASTOS OPERACIONALES | I22: =SUM(I23:I25) -> 47520000
A23: 3.1 | B23: Instalacion de oficina y otras instalaciones provisionales en la obra(Incluye muebles, enseres , equipo de oficina, servicios publicos y telecomunicaciones) | C23: Un | D23: 1 | E23: =1.2*3950000 -> 4740000 | H23: =+duracion -> 6 | I23: =+D23*E23*H23 -> 28440000
A24: 3.2 | B24: Papeleria, Tinta, Fotocopias, Planos y otros | C24: Un | D24: 1 | E24: =1.2*250000 -> 300000 | H24: =+duracion -> 6 | I24: =+D24*E24*H24 -> 1800000
A25: 3.3 | B25: Alquiler de Equipo de Topografia | C25: Un | D25: =+D14 -> 1 | E25: =1.2*80000*30 -> 2880000 | H25: =+duracion -> 6 | I25: =+D25*E25*H25 -> 17280000
A26: 4 | B26: LABORATORIOS | I26: =SUM(I27:I28) -> 3060000
A27: 4.1 | B27: Ensayo de densidad de Base in situ (1) uno por cada 50 m por capa no mayores de 15 cm | C27: Un | D27: 40 | E27: =1.2*45000 -> 54000 | I27: =+D27*E27 -> 2160000
A28: 4.2 | B28: Ensayo de laboratorio de Resistencia del concreto | C28: Un | D28: 50 | E28: =1.2*15000 -> 18000 | I28: 900000
A29: 6 | B29: VEHICULOS | I29: =+I30 -> 120000000
A30: 6.1 | B30: Alquiler de Camioneta o Campero 4x4 modelo 2015 en adelante, incluye conductor, combustible y mantenimiento | C30: Un | D30: 4 | E30: =5000000 -> 5000000 | H30: =duracion -> 6 | I30: =+D30*Vehiculo__Tipo_pickup*H30 -> 120000000
A31: 7 | B31: IMPACTO COMUNITARIO - VALLA | I31: =+I32 -> 3571976.4
A32: 7.1 | B32: Suministro, transporte e instalación de valla informativa ( según Circular 006 de 2014 del SGR) (3mx 2m, incluye todo lo necesario para su correcta instalacion)(Acorde con diseño incluido en el proyecto) | C32: Un | D32: 1 | E32: 3571976.4 | I32: =+D32*E32 -> 3571976.4
A34: TOTAL COSTOS PERSONAL + OTRTOS COSTOS | I34: =+ROUND(I8+I17+I22+I26+I29+I31,4) -> 391521850.4
A35: IVA (19%) | H35: 0.19 | I35: =+ROUND(I34*H35,0) -> 74389152
A36: TOTAL COSTOS INTERVENTORÍA | H36: =+I36/I6 -> 0.08307406316 | I36: =+I34+I35 -> 465911002.4

Sheet Supervisión contrato
A2: CÁLCULO PARA CONTRATO DE APOYO A LA SUPERVISIÓN
A4: PROYECTO | C4: =+'Datos generales'!$B$4 -> Optimización del proceso de cálculo de cantidades y presupuesto de obras de pavimento rígido y flexible en la empresa Grupo Tecmedic S.A.S
A5: Presupuesto oficial de apoyo a la Supervisión del Contrato
A6: ÍTEM | B6: DESCRIPCIÓN | C6: UNIDAD | D6: CANTIDAD | E6: V.M./Base (incluye Factor Prestacional) | F6: FACTOR PRESTACIONAL | G6: DEDICACIÓN | H6: DURACIÓN OBRA (Meses) | I6: V.PARCIAL
A7: 1.0 | B7: Personal Profesional Técnico | I7: =SUM(I8:I8) -> 36000000
A8: 1.1 | B8: Especialista en vías y transporte o diseño geométrico. | C8: Un | D8: 1 | E8: =+IF(B8=" "," ",VLOOKUP(B8,Tabla3[],2,FALSE)) -> 6000000 | G8: 1 | H8: =+duracion -> 6 | I8: =+E8*H8 -> 36000000
A9: TOTAL COSTOS DE PERSONAL | I9: =+I7 -> 36000000
A11: 2 | B11: OTROS COSTOS | I11: =SUM(I12:I12) -> 12000000
A12: 2.1 | B12: Alquiler de transporte para visitas a campo con frecuencia 2 visita por municipio mensual + Viaticos de supervisor | C12: Día/Mes | D12: 2 | E12: 1000000 | H12: =+duracion -> 6 | I12: =+D12*E12*H12 -> 12000000
B13: TOTAL OTROS COSTOS | I13: =+I11 -> 12000000
A15: COSTO TOTAL DE SUPERVISIÓN | I15: =+I13+I9 -> 48000000

Sheet Revisión estudios
A2: REVISIÓN DE ESTUDIOS Y DISEÑOS
A4: =+'Datos generales'!$B$4 -> Optimización del proceso de cálculo de cantidades y presupuesto de obras de pavimento rígido y flexible en la empresa Grupo Tecmedic S.A.S
A5: VALOR DE LA PROPUESTA | E5: PLAZO TOTAL | F5: =+CONCATENATE("UN (",E8,") MES") -> UN (1) MES
A6: CARGO / OFICIO | B6: CANT. | C6: SUELDO Y/O JORNAL MENSUAL | D6: PRIMA REGIONAL | E6: PARTICIPACIÓN TOTAL (mes) | F6: VALOR PARCIAL
B7: (1) | C7: (2) | D7: (3) | E7: (4) | F7: (1)*((2)+(3))*(4) = (5)
A8: Especialista en geotecnia y/o pavimentos | B8: 1 | C8: =+IF(A8=" "," ",VLOOKUP(A8,Tabla3[],2,FALSE)) -> 7000000 | E8: 1 | F8: =(C8+D8)*E8 -> 7000000
A9: Especialista estructural | B9: 1 | C9: =+IF(A9=" "," ",VLOOKUP(A9,Tabla3[],2,FALSE)) -> 6500000 | E9: 1 | F9: =(C9+D9)*E9 -> 6500000
A10: Especialista en vías y transporte o diseño geométrico. | B10: 1 | C10: =+IF(A10=" "," ",VLOOKUP(A10,Tabla3[],2,FALSE)) -> 6000000 | E10: 1 | F10: =(C10+D10)*E10 -> 6000000
A11: Especialista en Hidráulica e Hidrología | B11: 1 | C11: =+IF(A11=" "," ",VLOOKUP(A11,Tabla3[],2,FALSE)) -> 6000000 | E11: 1 | F11: =(C11+D11)*E11 -> 6000000
A12: SUBTOTAL COSTO DE PERSONAL | F12: =SUM(F8:F11) -> 25500000
A13: FACTOR MULTIPLICADOR | F13: 2.34
A14: TOTAL COSTOS DE PERSONAL | F14: =+(F12*F13) -> 59670000
A16: CONCEPTO | B16: CANT. | C16: UNIDAD | D16: COSTOS | E16: TIEMPO TOTAL | F16: VALOR TOTAL
A17: Adquisición de Cartografía (Imágenes de satélite y fotos aéreas existentes), información hidrológiva e Información Secundaria. S/Comprobante Pago | B17: 1 | C17: Gl | D17: 3000000 | E17: 1 | F17: =D17*E17 -> 3000000
A18: Levantamiento Topográfico (Incluye personal, equipos, transporte, desplazamientos y viáticos) | B18: 1 | C18: Día | D18: 800000 | E18: 8 | F18: =D18*E18 -> 6400000
A19: Edición de Informes Finales (Incluye impresión, ploteo de planchas originales en papel de seguridad, una copia en papel bond y dos copias en archivos magnéticos) S/Comprobante Pago | B19: 1 | C19: Gl | D19: 2000000 | E19: 1 | F19: =D19*E19 -> 2000000
A20: Consideraciones de transito y cargas de diseño (aforos de transito). S/Comprobante Pago | B20: 1 | C20: Gl | D20: 1000000 | E20: 1 | F20: =D20*E20 -> 1000000
A21: Ensayos de Laboratorio. S/Comprobante Pago | B21: 1 | C21: Gl | D21: 7000000 | E21: 1 | F21: =D21*E21 -> 7000000
A22: TOTAL COSTOS DIRECTOS | F22: =SUM(F17:F21) -> 19400000
A23: VALOR TOTAL BÁSICO | F23: =ROUND((F14+F22),0) -> 79070000
A24: IVA | F24: =ROUND(F23*19%,0) -> 15023300
A25: VALOR CONTRATO CONSULTORÍA | F25: =F23+F24 -> 94093300

Sheet APU PMT
A3: ANÁLISIS DE PRECIOS UNITARIOS, PLAN DE MANEJO DE TRÁNSITO
A5: ANÁLISIS DE PRECIOS UNITARIOS
A6: CAPITULO: 1 | B6: DISPOSITIVOS, SEÑALIZACION Y EQUIPOS
A7: ACTIVIDAD GENERAL: | B7: DISPOSITIVOS DE CONTROL
A8: ACTIVIDAD: | B8: =+PMT!$B$10 -> Delineadores tubulares (Colombinas)
A9: ITEM: | B9: =+PMT!$A$10 -> 1.1.1 | F9: UNIDAD | G9: =+PMT!$F$10 -> Un
A11: I. MATERIALES EN OBRA
A12: Descripción | C12: Unidad | D12: Precio-Unit. | E12: Cantidad | F12: Valor Unitario
A13: Delineadores tubulares (Colombinas) | C13: =IF(A13="","",VLOOKUP(A13,Tabla1[[INSUMO]:[PRECIO]],2,FALSE)) -> un | D13: =IF(A13="","",VLOOKUP(A13,Tabla1[[INSUMO]:[PRECIO]],3,FALSE)) -> 66000 | E13: 1 | F13: =+D13*E13 -> 66000
F15: Sub-Total | G15: =+ROUND(SUM(F13:F14),0) -> 66000
A17: II. EQUIPO Y HERRAMIENTAS
A18: Descripción | C18: Unidad | D18: Tarifa/Unidad | E18: Rendimiento | F18: Valor Unitario
A19: =CONCATENATE("Herramientas menores ",E19*100,"%M.O") -> Herramientas menores 5%M.O | E19: 0.05 | F19: =E19*G33 -> 93.6
A20: Camioneta D-300 | C20: =IF(A20="","",VLOOKUP(A20,Tabla2[[EQUIPOS Y TRANSPORTE]:[PRECIO]],2,FALSE)) -> h | D20: =IF(A20="","",VLOOKUP(A20,Tabla2[[EQUIPOS Y TRANSPORTE]:[PRECIO]],3,FALSE)) -> 66000 | E20: 30 | F20: =+D20/E20 -> 2200
A21: - | C21: =IF(A21="","",VLOOKUP(A21,Tabla2[[EQUIPOS Y TRANSPORTE]:[PRECIO]],2,FALSE)) -> - | D21: =IF(A21="","",VLOOKUP(A21,Tabla2[[EQUIPOS Y TRANSPORTE]:[PRECIO]],3,FALSE)) -> -
F22: Sub-Total | G22: =+ROUND(SUM(F19:F21),0) -> 2294
A24: III. TRANSPORTES
A25: Materiales | B25: Vol-Peso | C25: Distancia | D25: m³/km | E25: Tarifa | F25: Valor Unitario
F27: Sub-Total | G27: =+ROUND(SUM(F26:F26),0) -> 0
A29: IV. MANO DE OBRA
A30: Trabajador o Cuadrilla | B30: Cantidad | C30: Jornal/und* | D30: Jornal total | E30: Rendimiento | F30: Valor Unitario
A31: Ayudante de construccion | B31: 2 | C31: =VLOOKUP(A31,Tabla3[],6,FALSE) -> 65506 | D31: =+B31*C31 -> 131012 | E31: 70 | F31: =+D31/E31 -> 1871.6
F33: Sub-Total | G33: =+ROUND(SUM(F31:F32),0) -> 1872
A35: Precio Unitario Total Aproximado al Peso | G35: =+ROUND(G22+G15+G27+G33,0) -> 70166
A41: ANÁLISIS DE PRECIOS UNITARIOS
A42: CAPITULO: 1 | B42: DISPOSITIVOS, SEÑALIZACION Y EQUIPOS
A43: ACTIVIDAD GENERAL: | B43: DISPOSITIVOS DE CONTROL
A44: ACTIVIDAD: | B44: =+PMT!$B$11 -> Barreras plasticas de Aproximación (Maletines o similar)
A45: ITEM: | B45: =+PMT!$A$11 -> 1.1.2 | F45: UNIDAD | G45: =+PMT!$F$11 -> Un
A47: I. MATERIALES EN OBRA
A48: Descripción | C48: Unidad | D48: Precio-Unit. | E48: Cantidad | F48: Valor Unitario
A49: Barreras plasticas de Aproximación (Maletines tipo Newjersy o similar) | C49: =IF(A49="","",VLOOKUP(A49,Tabla1[[INSUMO]:[PRECIO]],2,FALSE)) -> un | D49: =IF(A49="","",VLOOKUP(A49,Tabla1[[INSUMO]:[PRECIO]],3,FALSE)) -> 561600 | E49: 1 | F49: =+D49*E49 -> 561600
A50: Arena lavada de rio | C50: =IF(A50="","",VLOOKUP(A50,Tabla1[[INSUMO]:[PRECIO]],2,FALSE)) -> m³ | D50: =IF(A50="","",VLOOKUP(A50,Tabla1[[INSUMO]:[PRECIO]],3,FALSE)) -> 62272.1 | E50: 0.2 | F50: =+D50*E50 -> 12454.42
F51: Sub-Total | G51: =+ROUND(SUM(F49:F50),0) -> 574054
A53: II. EQUIPO Y HERRAMIENTAS
A54: Descripción | C54: Unidad | D54: Tarifa/Unidad | E54: Rendimiento | F54: Valor Unitario
A55: =CONCATENATE("Herramientas menores ",E55*100,"%M.O") -> Herramientas menores 10%M.O | E55: 0.1 | F55: =E55*G68 -> 1637.7
A56: Camioneta D-300 | C56: =IF(A56="","",VLOOKUP(A56,Tabla2[[EQUIPOS Y TRANSPORTE]:[PRECIO]],2,FALSE)) -> h | D56: =IF(A56="","",VLOOKUP(A56,Tabla2[[EQUIPOS Y TRANSPORTE]:[PRECIO]],3,FALSE)) -> 66000 | E56: 30 | F56: =+D56/E56 -> 2200
F57: Sub-Total | G57: =+ROUND(SUM(F55:F56),0) -> 3838
A59: III. TRANSPORTES
A60: Materiales | B60: Vol-Peso | C60: Distancia | D60: m³/km | E60: Tarifa | F60: Valor Unitario
F62: Sub-Total | G62: =+ROUND(SUM(F61:F61),0) -> 0
A64: IV. MANO DE OBRA
A65: Trabajador o Cuadrilla | B65: Cantidad | C65: Jornal/und* | D65: Jornal total | E65: Rendimiento | F65: Valor Unitario
A66: Ayudante de construccion | B66: 2 | C66: =VLOOKUP(A66,Tabla3[],6,FALSE) -> 65506 | D66: =+B66*C66 -> 131012 | E66: 8 | F66: =+D66/E66 -> 16376.5
F68: Sub-Total | G68: =+ROUND(SUM(F66:F67),0) -> 16377
A70: Precio Unitario Total Aproximado al Peso | G70: =+ROUND(G57+G51+G62+G68,0) -> 594269
A76: ANÁLISIS DE PRECIOS UNITARIOS
A77: CAPITULO: 1 | B77: DISPOSITIVOS, SEÑALIZACION Y EQUIPOS
A78: ACTIVIDAD GENERAL: | B78: DISPOSITIVOS DE CONTROL
A79: ACTIVIDAD: | B79: =+PMT!$B$12 -> Cinta Plastica "PELIGRO NO PASE"
A80: ITEM: | B80: =+PMT!$A$12 -> 1.1.3 | F80: UNIDAD | G80: =+PMT!$F$12 -> M
A82: I. MATERIALES EN OBRA
A83: Descripción | C83: Unidad | D83: Precio-Unit. | E83: Cantidad | F83: Valor Unitario
A84: Cinta Plastica "PELIGRO NO PASE" | C84: =IF(A84="","",VLOOKUP(A84,Tabla1[[INSUMO]:[PRECIO]],2,FALSE)) -> m | D84: =IF(A84="","",VLOOKUP(A84,Tabla1[[INSUMO]:[PRECIO]],3,FALSE)) -> 229 | E84: 1.05 | F84: =+D84*E84 -> 240.45
A85: - | C85: =IF(A85="","",VLOOKUP(A85,Tabla1[[INSUMO]:[PRECIO]],2,FALSE)) -> - | D85: =IF(A85="","",VLOOKUP(A85,Tabla1[[INSUMO]:[PRECIO]],3,FALSE)) -> -
F86: Sub-Total | G86: =+ROUND(SUM(F84:F85),0) -> 240
A88: II. EQUIPO Y HERRAMIENTAS
A89: Descripción | C89: Unidad | D89: Tarifa/Unidad | E89: Rendimiento | F89: Valor Unitario
F92: Sub-Total | G92: =+ROUND(SUM(F90:F91),0) -> 0
A94: III. TRANSPORTES
A95: Materiales | B95: Vol-Peso | C95: Distancia | D95: m³/km | E95: Tarifa | F95: Valor Unitario
F97: Sub-Total | G97: =+ROUND(SUM(F96:F96),0) -> 0
A99: IV. MANO DE OBRA
A100: Trabajador o Cuadrilla | B100: Cantidad | C100: Jornal/und* | D100: Jornal total | E100: Rendimiento | F100: Valor Unitario
A101: Ayudante de construccion | B101: 2 | C101: =VLOOKUP(A101,Tabla3[],6,FALSE) -> 65506 | D101: =+B101*C101 -> 131012 | E101: 1800 | F101: =+D101/E101 -> 72.78444444
F103: Sub-Total | G103: =+ROUND(SUM(F101:F102),0) -> 73
A105: Precio Unitario Total Aproximado al Peso | G105: =+ROUND(G92+G86+G97+G103,0) -> 313
A111: ANÁLISIS DE PRECIOS UNITARIOS
A112: CAPITULO: 1 | B112: DISPOSITIVOS, SEÑALIZACION Y EQUIPOS
A113: ACTIVIDAD GENERAL: | B113: DISPOSITIVOS DE CONTROL
A114: ACTIVIDAD: | B114: =+PMT!$B$13 -> Flasher luminoso para barricadas
A115: ITEM: | B115: =+PMT!$A$13 -> 1.1.4 | F115: UNIDAD | G115: =+PMT!$F$13 -> Un
A117: I. MATERIALES EN OBRA
A118: Descripción | C118: Unidad | D118: Precio-Unit. | E118: Cantidad | F118: Valor Unitario
A119: Flasher luminoso para barricadas | C119: =IF(A119="","",VLOOKUP(A119,Tabla1[[INSUMO]:[PRECIO]],2,FALSE)) -> un | D119: =IF(A119="","",VLOOKUP(A119,Tabla1[[INSUMO]:[PRECIO]],3,FALSE)) -> 85000 | E119: 1 | F119: =+D119*E119 -> 85000
A120: - | C120: =IF(A120="","",VLOOKUP(A120,Tabla1[[INSUMO]:[PRECIO]],2,FALSE)) -> - | D120: =IF(A120="","",VLOOKUP(A120,Tabla1[[INSUMO]:[PRECIO]],3,FALSE)) -> -
F121: Sub-Total | G121: =+ROUND(SUM(F119:F120),0) -> 85000
A123: II. EQUIPO Y HERRAMIENTAS
A124: Descripción | C124: Unidad | D124: Tarifa/Unidad | E124: Rendimiento | F124: Valor Unitario
F127: Sub-Total | G127: =+ROUND(SUM(F125:F126),0) -> 0
A129: III. TRANSPORTES
A130: Materiales | B130: Vol-Peso | C130: Distancia | D130: m³/km | E130: Tarifa | F130: Valor Unitario
F132: Sub-Total | G132: =+ROUND(SUM(F131:F131),0) -> 0
A134: IV. MANO DE OBRA
A135: Trabajador o Cuadrilla | B135: Cantidad | C135: Jornal/und* | D135: Jornal total | E135: Rendimiento | F135: Valor Unitario
A136: Ayudante de construccion | B136: 2 | C136: =VLOOKUP(A136,Tabla3[],6,FALSE) -> 65506 | D136: =+B136*C136 -> 131012 | E136: 26 | F136: =+D136/E136 -> 5038.923077
F138: Sub-Total | G138: =+ROUND(SUM(F136:F137),0) -> 5039
A140: Precio Unitario Total Aproximado al Peso | G140: =+ROUND(G127+G121+G132+G138,0) -> 90039
A146: ANÁLISIS DE PRECIOS UNITARIOS
A147: CAPITULO: 1 | B147: DISPOSITIVOS, SEÑALIZACION Y EQUIPOS
A148: ACTIVIDAD GENERAL: | B148: DISPOSITIVOS DE CONTROL
A149: ACTIVIDAD: | B149: =+PMT!$B$14 -> SPO-01 Trabajadores en la via
A150: ITEM: | B150: =+PMT!$A$14 -> 1.1.5 | F150: UNIDAD | G150: =+PMT!$F$14 -> Un
A152: I. MATERIALES EN OBRA
A153: Descripción | C153: Unidad | D153: Precio-Unit. | E153: Cantidad | F153: Valor Unitario
A154: SPO-01 Trabajadores en la via | C154: =IF(A154="","",VLOOKUP(A154,Tabla1[[INSUMO]:[PRECIO]],2,FALSE)) -> un | D154: =IF(A154="","",VLOOKUP(A154,Tabla1[[INSUMO]:[PRECIO]],3,FALSE)) -> 341650 | E154: 1 | F154: =+D154*E154 -> 341650
A155: - | C155: =IF(A155="","",VLOOKUP(A155,Tabla1[[INSUMO]:[PRECIO]],2,FALSE)) -> - | D155: =IF(A155="","",VLOOKUP(A155,Tabla1[[INSUMO]:[PRECIO]],3,FALSE)) -> -
F156: Sub-Total | G156: =+ROUND(SUM(F154:F155),0) -> 341650
A158: II. EQUIPO Y HERRAMIENTAS
A159: Descripción | C159: Unidad | D159: Tarifa/Unidad | E159: Rendimiento | F159: Valor Unitario
A160: =CONCATENATE("Herramientas menores ",E160*100,"%M.O") -> Herramientas menores 10%M.O | E160: 0.1 | F160: =E160*G173 -> 2269.3
A161: Camioneta D-300 | C161: =IF(A161="","",VLOOKUP(A161,Tabla2[[EQUIPOS Y TRANSPORTE]:[PRECIO]],2,FALSE)) -> h | D161: =IF(A161="","",VLOOKUP(A161,Tabla2[[EQUIPOS Y TRANSPORTE]:[PRECIO]],3,FALSE)) -> 66000 | E161: 2.5 | F161: =+D161/E161 -> 26400
F162: Sub-Total | G162: =+ROUND(SUM(F160:F161),0) -> 28669
A164: III. TRANSPORTES
A165: Materiales | B165: Vol-Peso | C165: Distancia | D165: m³/km | E165: Tarifa | F165: Valor Unitario
F167: Sub-Total | G167: =+ROUND(SUM(F166:F166),0) -> 0
A169: IV. MANO DE OBRA
A170: Trabajador o Cuadrilla | B170: Cantidad | C170: Jornal/und* | D170: Jornal total | E170: Rendimiento | F170: Valor Unitario
A171: Oficial de construccion | B171: 1 | C171: =VLOOKUP(A171,Tabla3[],6,FALSE) -> 95915 | D171: =+B171*C171 -> 95915 | E171: 10 | F171: =+D171/E171 -> 9591.5
A172: Ayudante de construccion | B172: 2 | C172: =VLOOKUP(A172,Tabla3[],6,FALSE) -> 65506 | D172: =+B172*C172 -> 131012 | E172: =+E171 -> 10 | F172: =+D172/E172 -> 13101.2
F173: Sub-Total | G173: =+ROUND(SUM(F171:F172),0) -> 22693
A175: Precio Unitario Total Aproximado al Peso | G175: =+ROUND(G162+G156+G167+G173,0) -> 393012
A181: ANÁLISIS DE PRECIOS UNITARIOS
A182: CAPITULO: 1 | B182: DISPOSITIVOS, SEÑALIZACION Y EQUIPOS
A183: ACTIVIDAD GENERAL: | B183: DISPOSITIVOS DE CONTROL
A184: ACTIVIDAD: | B184: =+PMT!$B$15 -> SPO-02 Maquinaria en la via
A185: ITEM: | B185: =+PMT!$A$15 -> 1.1.6 | F185: UNIDAD | G185: =+PMT!$F$15 -> Un
A187: I. MATERIALES EN OBRA
A188: Descripción | C188: Unidad | D188: Precio-Unit. | E188: Cantidad | F188: Valor Unitario
A189: SPO-02 Maquinaria en la via | C189: =IF(A189="","",VLOOKUP(A189,Tabla1[[INSUMO]:[PRECIO]],2,FALSE)) -> un | D189: =IF(A189="","",VLOOKUP(A189,Tabla1[[INSUMO]:[PRECIO]],3,FALSE)) -> 341650 | E189: 1 | F189: =+D189*E189 -> 341650
A190: - | C190: =IF(A190="","",VLOOKUP(A190,Tabla1[[INSUMO]:[PRECIO]],2,FALSE)) -> - | D190: =IF(A190="","",VLOOKUP(A190,Tabla1[[INSUMO]:[PRECIO]],3,FALSE)) -> -
F191: Sub-Total | G191: =+ROUND(SUM(F189:F190),0) -> 341650
A193: II. EQUIPO Y HERRAMIENTAS
A194: Descripción | C194: Unidad | D194: Tarifa/Unidad | E194: Rendimiento | F194: Valor Unitario
A195: =CONCATENATE("Herramientas menores ",E195*100,"%M.O") -> Herramientas menores 10%M.O | E195: 0.1 | F195: =E195*G208 -> 2269.3
A196: Camioneta D-300 | C196: =IF(A196="","",VLOOKUP(A196,Tabla2[[EQUIPOS Y TRANSPORTE]:[PRECIO]],2,FALSE)) -> h | D196: =IF(A196="","",VLOOKUP(A196,Tabla2[[EQUIPOS Y TRANSPORTE]:[PRECIO]],3,FALSE)) -> 66000 | E196: 2.5 | F196: =+D196/E196 -> 26400
F197: Sub-Total | G197: =+ROUND(SUM(F195:F196),0) -> 28669
A199: III. TRANSPORTES
A200: Materiales | B200: Vol-Peso | C200: Distancia | D200: m³/km | E200: Tarifa | F200: Valor Unitario
F202: Sub-Total | G202: =+ROUND(SUM(F201:F201),0) -> 0
A204: IV. MANO DE OBRA
A205: Trabajador o Cuadrilla | B205: Cantidad | C205: Jornal/und* | D205: Jornal total | E205: Rendimiento | F205: Valor Unitario
A206: Oficial de construccion | B206: 1 | C206: =VLOOKUP(A206,Tabla3[],6,FALSE) -> 95915 | D206: =+B206*C206 -> 95915 | E206: 10 | F206: =+D206/E206 -> 9591.5
A207: Ayudante de construccion | B207: 2 | C207: =VLOOKUP(A207,Tabla3[],6,FALSE) -> 65506 | D207: =+B207*C207 -> 131012 | E207: =+E206 -> 10 | F207: =+D207/E207 -> 13101.2
F208: Sub-Total | G208: =+ROUND(SUM(F206:F207),0) -> 22693
A210: Precio Unitario Total Aproximado al Peso | G210: =+ROUND(G197+G191+G202+G208,0) -> 393012
A216: ANÁLISIS DE PRECIOS UNITARIOS
A217: CAPITULO: 1 | B217: DISPOSITIVOS, SEÑALIZACION Y EQUIPOS
A218: ACTIVIDAD GENERAL: | B218: DISPOSITIVOS DE CONTROL
A219: ACTIVIDAD: | B219: =+PMT!$B$16 -> SPO-03 Auxiliar de Transito
A220: ITEM: | B220: =+PMT!$A$16 -> 1.1.7 | F220: UNIDAD | G220: =+PMT!$F$16 -> Un
A222: I. MATERIALES EN OBRA
A223: Descripción | C223: Unidad | D223: Precio-Unit. | E223: Cantidad | F223: Valor Unitario
A224: SPO-03 Auxiliar de Transito | C224: =IF(A224="","",VLOOKUP(A224,Tabla1[[INSUMO]:[PRECIO]],2,FALSE)) -> un | D224: =IF(A224="","",VLOOKUP(A224,Tabla1[[INSUMO]:[PRECIO]],3,FALSE)) -> 341650 | E224: 1 | F224: =+D224*E224 -> 341650
A225: - | C225: =IF(A225="","",VLOOKUP(A225,Tabla1[[INSUMO]:[PRECIO]],2,FALSE)) -> - | D225: =IF(A225="","",VLOOKUP(A225,Tabla1[[INSUMO]:[PRECIO]],3,FALSE)) -> -
F226: Sub-Total | G226: =+ROUND(SUM(F224:F225),0) -> 341650
A228: II. EQUIPO Y HERRAMIENTAS
A229: Descripción | C229: Unidad | D229: Tarifa/Unidad | E229: Rendimiento | F229: Valor Unitario
A230: =CONCATENATE("Herramientas menores ",E230*100,"%M.O") -> Herramientas menores 10%M.O | E230: 0.1 | F230: =E230*G243 -> 2269.3
A231: Camioneta D-300 | C231: =IF(A231="","",VLOOKUP(A231,Tabla2[[EQUIPOS Y TRANSPORTE]:[PRECIO]],2,FALSE)) -> h | D231: =IF(A231="","",VLOOKUP(A231,Tabla2[[EQUIPOS Y TRANSPORTE]:[PRECIO]],3,FALSE)) -> 66000 | E231: 2.5 | F231: =+D231/E231 -> 26400
F232: Sub-Total | G232: =+ROUND(SUM(F230:F231),0) -> 28669
A234: III. TRANSPORTES
A235: Materiales | B235: Vol-Peso | C235: Distancia | D235: m³/km | E235: Tarifa | F235: Valor Unitario
F237: Sub-Total | G237: =+ROUND(SUM(F236:F236),0) -> 0
A239: IV. MANO DE OBRA
A240: Trabajador o Cuadrilla | B240: Cantidad | C240: Jornal/und* | D240: Jornal total | E240: Rendimiento | F240: Valor Unitario
A241: Oficial de construccion | B241: 1 | C241: =VLOOKUP(A241,Tabla3[],6,FALSE) -> 95915 | D241: =+B241*C241 -> 95915 | E241: 10 | F241: =+D241/E241 -> 9591.5
A242: Ayudante de construccion | B242: 2 | C242: =VLOOKUP(A242,Tabla3[],6,FALSE) -> 65506 | D242: =+B242*C242 -> 131012 | E242: =+E241 -> 10 | F242: =+D242/E242 -> 13101.2
F243: Sub-Total | G243: =+ROUND(SUM(F241:F242),0) -> 22693
A245: Precio Unitario Total Aproximado al Peso | G245: =+ROUND(G232+G226+G237+G243,0) -> 393012
A252: ANÁLISIS DE PRECIOS UNITARIOS
A253: CAPITULO: 1 | B253: DISPOSITIVOS, SEÑALIZACION Y EQUIPOS
A254: ACTIVIDAD GENERAL: | B254: DISPOSITIVOS DE CONTROL
A255: ACTIVIDAD: | B255: =+PMT!$B$17 -> SRO-0 Cierre de Via
A256: ITEM: | B256: =+PMT!$A$17 -> 1.1.8 | F256: UNIDAD | G256: =+PMT!$F$17 -> Un
A258: I. MATERIALES EN OBRA
A259: Descripción | C259: Unidad | D259: Precio-Unit. | E259: Cantidad | F259: Valor Unitario
A260: SRO-0 Cierre de vía | C260: =IF(A260="","",VLOOKUP(A260,Tabla1[[INSUMO]:[PRECIO]],2,FALSE)) -> un | D260: =IF(A260="","",VLOOKUP(A260,Tabla1[[INSUMO]:[PRECIO]],3,FALSE)) -> 341649 | E260: 1 | F260: =+D260*E260 -> 341649
A261: - | C261: =IF(A261="","",VLOOKUP(A261,Tabla1[[INSUMO]:[PRECIO]],2,FALSE)) -> - | D261: =IF(A261="","",VLOOKUP(A261,Tabla1[[INSUMO]:[PRECIO]],3,FALSE)) -> -
F262: Sub-Total | G262: =+ROUND(SUM(F260:F261),0) -> 341649
A264: II. EQUIPO Y HERRAMIENTAS
A265: Descripción | C265: Unidad | D265: Tarifa/Unidad | E265: Rendimiento | F265: Valor Unitario
A266: =CONCATENATE("Herramientas menores ",E266*100,"%M.O") -> Herramientas menores 10%M.O | E266: 0.1 | F266: =E266*G279 -> 2269.3
A267: Camioneta D-300 | C267: =IF(A267="","",VLOOKUP(A267,Tabla2[[EQUIPOS Y TRANSPORTE]:[PRECIO]],2,FALSE)) -> h | D267: =IF(A267="","",VLOOKUP(A267,Tabla2[[EQUIPOS Y TRANSPORTE]:[PRECIO]],3,FALSE)) -> 66000 | E267: 2.5 | F267: =+D267/E267 -> 26400
F268: Sub-Total | G268: =+ROUND(SUM(F266:F267),0) -> 28669
A270: III. TRANSPORTES
A271: Materiales | B271: Vol-Peso | C271: Distancia | D271: m³/km | E271: Tarifa | F271: Valor Unitario
F273: Sub-Total | G273: =+ROUND(SUM(F272:F272),0) -> 0
A275: IV. MANO DE OBRA
A276: Trabajador o Cuadrilla | B276: Cantidad | C276: Jornal/und* | D276: Jornal total | E276: Rendimiento | F276: Valor Unitario
A277: Oficial de construccion | B277: 1 | C277: =VLOOKUP(A277,Tabla3[],6,FALSE) -> 95915 | D277: =+B277*C277 -> 95915 | E277: 10 | F277: =+D277/E277 -> 9591.5
A278: Ayudante de construccion | B278: 2 | C278: =VLOOKUP(A278,Tabla3[],6,FALSE) -> 65506 | D278: =+B278*C278 -> 131012 | E278: =+E277 -> 10 | F278: =+D278/E278 -> 13101.2
F279: Sub-Total | G279: =+ROUND(SUM(F277:F278),0) -> 22693
A281: Precio Unitario Total Aproximado al Peso | G281: =+ROUND(G268+G262+G273+G279,0) -> 393011
A287: ANÁLISIS DE PRECIOS UNITARIOS
A288: CAPITULO: 1 | B288: DISPOSITIVOS, SEÑALIZACION Y EQUIPOS
A289: ACTIVIDAD GENERAL: | B289: DISPOSITIVOS DE CONTROL
A290: ACTIVIDAD: | B290: =+PMT!$B$18 -> SRO-04 Pare/Siga
A291: ITEM: | B291: =+PMT!$A$18 -> 1.1.9 | F291: UNIDAD | G291: =+PMT!$F$18 -> Un
A293: I. MATERIALES EN OBRA
A294: Descripción | C294: Unidad | D294: Precio-Unit. | E294: Cantidad | F294: Valor Unitario
A295: SRO-04 Pare/Siga | C295: =IF(A295="","",VLOOKUP(A295,Tabla1[[INSUMO]:[PRECIO]],2,FALSE)) -> un | D295: =IF(A295="","",VLOOKUP(A295,Tabla1[[INSUMO]:[PRECIO]],3,FALSE)) -> 341650 | E295: 1 | F295: =+D295*E295 -> 341650
A296: - | C296: =IF(A296="","",VLOOKUP(A296,Tabla1[[INSUMO]:[PRECIO]],2,FALSE)) -> - | D296: =IF(A296="","",VLOOKUP(A296,Tabla1[[INSUMO]:[PRECIO]],3,FALSE)) -> -
F297: Sub-Total | G297: =+ROUND(SUM(F295:F296),0) -> 341650
A299: II. EQUIPO Y HERRAMIENTAS
A300: Descripción | C300: Unidad | D300: Tarifa/Unidad | E300: Rendimiento | F300: Valor Unitario
A301: =CONCATENATE("Herramientas menores ",E301*100,"%M.O") -> Herramientas menores 5%M.O | E301: 0.05 | F301: =E301*G314 -> 0
A302: Camioneta D-300 | C302: =IF(A302="","",VLOOKUP(A302,Tabla2[[EQUIPOS Y TRANSPORTE]:[PRECIO]],2,FALSE)) -> h | D302: =IF(A302="","",VLOOKUP(A302,Tabla2[[EQUIPOS Y TRANSPORTE]:[PRECIO]],3,FALSE)) -> 66000 | E302: 40 | F302: =+D302/E302 -> 1650
F303: Sub-Total | G303: =+ROUND(SUM(F301:F302),0) -> 1650
... 79 more rows

Sheet PMT
A2: PLAN DE MANEJO DE TRÁNSITO
A4: PRESUPUESTO PLAN GENERAL DE MANEJO DE TRÁFICO SEÑALIZACION Y DESVIOS
A6: =+'Datos generales'!B4 -> Optimización del proceso de cálculo de cantidades y presupuesto de obras de pavimento rígido y flexible en la empresa Grupo Tecmedic S.A.S
A7: ÍTEM | B7: DESCRIPCIÓN | F7: UND | G7: CANT. | H7: VR. UNIT | I7: VR. TOTAL
A9: 1.0 | B9: DISPOSITIVOS, SEÑALIZACION Y EQUIPOS | I9: =SUM(I10:I22) -> 18373940
A10: 1.1.1 | B10: Delineadores tubulares (Colombinas) | F10: Un | G10: 30 | H10: =+'APU PMT'!G35 -> 70166 | I10: =+ROUND(G10*H10,0) -> 2104980
A11: 1.1.2 | B11: Barreras plasticas de Aproximación (Maletines o similar) | F11: Un | G11: 8 | H11: =+'APU PMT'!G70 -> 594269 | I11: 4754152
A12: 1.1.3 | B12: Cinta Plastica "PELIGRO NO PASE" | F12: M | G12: 2500 | H12: =+'APU PMT'!G105 -> 313 | I12: 782500
A13: 1.1.4 | B13: Flasher luminoso para barricadas | F13: Un | G13: 3 | H13: =+'APU PMT'!G140 -> 90039 | I13: 270117
A14: 1.1.5 | B14: SPO-01 Trabajadores en la via | F14: Un | G14: 3 | H14: =+'APU PMT'!G175 -> 393012 | I14: 1179036
A15: 1.1.6 | B15: SPO-02 Maquinaria en la via | F15: Un | G15: 3 | H15: =+'APU PMT'!G210 -> 393012 | I15: 1179036
A16: 1.1.7 | B16: SPO-03 Auxiliar de Transito | F16: Un | G16: 3 | H16: =+'APU PMT'!G245 -> 393012 | I16: 1179036
A17: 1.1.8 | B17: SRO-0 Cierre de Via | F17: Un | G17: 3 | H17: =+'APU PMT'!G281 -> 393011 | I17: 1179033
A18: 1.1.9 | B18: SRO-04 Pare/Siga | F18: Un | G18: 3 | H18: =+'APU PMT'!G316 -> 343300 | I18: 1029900
A19: 1.1.10 | B19: SPO-30 Reduccion Asimetrica de Calzada Izquierda | F19: Un | G19: 3 | H19: =+'APU PMT'!G352 -> 393013 | I19: 1179039
A20: 1.1.10 | B20: SPO-31 Reduccion Asimetrica de Calzada Derecha | F20: Un | G20: 3 | H20: =+'APU PMT'!G352 -> 393013 | I20: 1179039
A21: 1.1.11 | B21: SIO-03 Fin de Obra | F21: Un | G21: 3 | H21: =+'APU PMT'!G387 -> 393012 | I21: 1179036
A22: 1.1.12 | B22: SIO-24 Peatones | F22: Un | G22: 3 | H22: =+'APU PMT'!G421 -> 393012 | I22: 1179036
A24: 2.0 | B24: IMPLEMENTACIÓN PLAN DE CONTINGENCIA | I24: =SUM(I25:I25) -> 12000000
A25: 2.1 | B25: Alquiler de Alquiler de Camioneta o Campero 4x4 modelo 2015 en adelante, incluye conductor, comustible y mantenimiento. Para transporte de población afectada por cierre temporal (50% DEDISPONIBILIDAD) | F25: Mes | G25: =+duracion/2 -> 3 | H25: =+'Equipos y transporte'!E11 -> 4000000 | I25: =+ROUND(G25*H25,0) -> 12000000
A26: SUBTOTAL PLAN DE MANEJO DE TRÁFICO DISPOSITIVOS, SEÑALIZACION Y PLAN DE CONTIGENCIA | I26: =ROUND(I9+I24,0) -> 30373940
A28: ÍTEM | B28: DESCRIPCIÓN | C28: UNIDAD | D28: CANT. | E28: V.M./Base | F28: Fact Prest. | G28: Dedicación | H28: Duración de la obra (Meses) | I28: Valor parcial
A29: 3.0 | B29: PERSONAL PROFESIONAL, AUXILIARES DE TRÁNSITO Y BRIGADAS ( B )
A30: 3.1.2 | B30: Auxiliar de Transito | C30: MES | D30: 1 | E30: =+smmlv -> 1160000 | F30: 1.5729 | G30: 1 | H30: =+duracion -> 6 | I30: =+ROUND(D30*E30*F30*G30*H30,0) -> 10947384
A31: SUBTOTAL IMPLEMENTACIÓN PLAN DE MANEJO DE TRAFICO ( PERSONAL ) | I31: =+I30 -> 10947384
A33: VALOR TOTAL IMPLEMTACIÓN PLAN DE MANEJO DE TRÁNSITO | I33: =+I26+I31 -> 41321324
